Workbook

Sheet NomPrénom
A1: PLACE | B1: LICENCE | C1: NOM | D1: CAT | E1: SERIE | F1: RANG | G1: CLUB | H1: FDLIC | I1: FDNOM | J1: FDPRENOM | K1: Cat | L1: Serie | M1: Rang | N1: Club | O1: Pays | R1: DUPLITOP-JOUEURS | U1: CAT | V1: SERIE | W1: RANG | X1: CLUB | Y1: PAYS | Z1: PHASE2 | AA1: PHASE3
A2: A01 | B2: 2323865 | C2: LEFEVRE Maryse | D2: R | E2: 4A | F2: 1751 | G2: V33 | H2: 2 | I2: =VLOOKUP(B2,Dupli!$A$1:$J$30000,3,0) -> LEFEVRE | J2: =VLOOKUP(B2,Dupli!$A$1:$J$30000,4,0) -> Maryse | K2: =D2 -> R | L2: =E2 -> 4A | M2: =F2 -> 1751 | N2: =G2 -> V33 | O2: FR | P2: =VLOOKUP(B2,Dupli!$A$1:$I$30000,6,0) -> R | Q2: =VLOOKUP(B2,Dupli!$A$1:$I$30000,5,0) -> 4A | R2: =VLOOKUP(B2,Dupli!$A$1:$I$30000,8,0) -> 1794 | S2: =VLOOKUP(B2,Dupli!$A$1:$I$30000,7,0) -> V33 | T2: =VLOOKUP(B2,Dupli!$A$1:$I$30000,9,0) -> FR | U2: =IF(K2=P2,"","erreur") ->  | V2: =IF(L2=Q2,"","erreur") ->  | W2: =IF(M2=R2,"","erreur") -> erreur | X2: =IF(N2=S2,"","erreur") ->  | Y2: =IF(O2=T2,"","erreur") ->  | Z2: =IF(OR(E2="3A",E2="3B",E2="4A",E2="4B",E2="4C",E2="4D"),B2,VLOOKUP(B2,Phase2!$A$2:$A$30000,1,0)) -> 2323865 | AA2: =IF(OR(E2="2A",E2="2B"),B2,VLOOKUP(B2,Phase3!$A$2:$A$29999,1,0)) -> 2323865
A3: A02 | B3: 1017965 | C3: LESPINE Huguette | D3: R | E3: 7 | F3: 18000 | G3: V06 | H3: 7 | I3: =VLOOKUP(B3,Dupli!$A$1:$J$30000,3,0) -> LESPINE | J3: =VLOOKUP(B3,Dupli!$A$1:$J$30000,4,0) -> Huguette | K3: R | L3: 7 | M3: 18000 | N3: V06 | O3: FR | P3: =VLOOKUP(B3,Dupli!$A$1:$I$30000,6,0) -> R | Q3: =VLOOKUP(B3,Dupli!$A$1:$I$30000,5,0) -> 7 | R3: =VLOOKUP(B3,Dupli!$A$1:$I$30000,8,0) -> 16873 | S3: =VLOOKUP(B3,Dupli!$A$1:$I$30000,7,0) -> V06 | T3: =VLOOKUP(B3,Dupli!$A$1:$I$30000,9,0) -> FR | V3: erreur | W3: erreur | Z3: =IF(OR(E3="3A",E3="3B",E3="4A",E3="4B",E3="4C",E3="4D"),B3,VLOOKUP(B3,Phase2!$A$2:$A$30000,1,0)) ->  | AA3: =IF(OR(E3="2A",E3="2B"),B3,VLOOKUP(B3,Phase3!$A$2:$A$29999,1,0)) -> 
A4: 1 | B4: 2313203 | C4: HAQUIN Irène | D4: D | E4: 3B | F4: 1231 | G4: V33 | H4: 11 | I4: =VLOOKUP(B4,Dupli!$A$1:$J$30000,3,0) -> HAQUIN | J4: =VLOOKUP(B4,Dupli!$A$1:$J$30000,4,0) -> Irène | K4: D | L4: 3B | M4: 1231 | N4: V33 | O4: FR | P4: =VLOOKUP(B4,Dupli!$A$1:$I$30000,6,0) -> D | Q4: =VLOOKUP(B4,Dupli!$A$1:$I$30000,5,0) -> 3B | R4: =VLOOKUP(B4,Dupli!$A$1:$I$30000,8,0) -> 1244 | S4: =VLOOKUP(B4,Dupli!$A$1:$I$30000,7,0) -> V33 | T4: =VLOOKUP(B4,Dupli!$A$1:$I$30000,9,0) -> FR | W4: erreur | Z4: =IF(OR(E4="3A",E4="3B",E4="4A",E4="4B",E4="4C",E4="4D"),B4,VLOOKUP(B4,Phase2!$A$2:$A$30000,1,0)) -> 2313203 | AA4: =IF(OR(E4="2A",E4="2B"),B4,VLOOKUP(B4,Phase3!$A$2:$A$29999,1,0)) -> 2313203
A5: 2 | B5: 1118507 | C5: DI MASCIO Lavinia | D5: D | E5: 3B | F5: 1374 | G5: V29 | H5: 13 | I5: =VLOOKUP(B5,Dupli!$A$1:$J$30000,3,0) -> DI MASCIO | J5: =VLOOKUP(B5,Dupli!$A$1:$J$30000,4,0) -> Lavinia | K5: D | L5: 3B | M5: 1374 | N5: V29 | O5: FR | P5: =VLOOKUP(B5,Dupli!$A$1:$I$30000,6,0) -> D | Q5: =VLOOKUP(B5,Dupli!$A$1:$I$30000,5,0) -> 3B | R5: =VLOOKUP(B5,Dupli!$A$1:$I$30000,8,0) -> 1387 | S5: =VLOOKUP(B5,Dupli!$A$1:$I$30000,7,0) -> V29 | T5: =VLOOKUP(B5,Dupli!$A$1:$I$30000,9,0) -> FR | W5: erreur | Z5: =IF(OR(E5="3A",E5="3B",E5="4A",E5="4B",E5="4C",E5="4D"),B5,VLOOKUP(B5,Phase2!$A$2:$A$30000,1,0)) -> 1118507 | AA5: =IF(OR(E5="2A",E5="2B"),B5,VLOOKUP(B5,Phase3!$A$2:$A$29999,1,0)) -> 1118507
A6: 3 | B6: 1092028 | C6: CAMUS Gioconde | D6: D | E6: 4A | F6: 1763 | G6: V33 | H6: 19 | I6: =VLOOKUP(B6,Dupli!$A$1:$J$30000,3,0) -> CAMUS | J6: =VLOOKUP(B6,Dupli!$A$1:$J$30000,4,0) -> Gioconde | K6: D | L6: 4A | M6: 1763 | N6: V33 | O6: FR | P6: =VLOOKUP(B6,Dupli!$A$1:$I$30000,6,0) -> D | Q6: =VLOOKUP(B6,Dupli!$A$1:$I$30000,5,0) -> 4A | R6: =VLOOKUP(B6,Dupli!$A$1:$I$30000,8,0) -> 1806 | S6: =VLOOKUP(B6,Dupli!$A$1:$I$30000,7,0) -> V33 | T6: =VLOOKUP(B6,Dupli!$A$1:$I$30000,9,0) -> FR | W6: erreur | Z6: =IF(OR(E6="3A",E6="3B",E6="4A",E6="4B",E6="4C",E6="4D"),B6,VLOOKUP(B6,Phase2!$A$2:$A$30000,1,0)) -> 1092028 | AA6: =IF(OR(E6="2A",E6="2B"),B6,VLOOKUP(B6,Phase3!$A$2:$A$29999,1,0)) -> 1092028
A7: 4 | B7: 2627313 | C7: RAMEL Josiane | D7: D | E7: 4A | F7: 2011 | G7: V29 | H7: 1 | I7: =VLOOKUP(B7,Dupli!$A$1:$J$30000,3,0) -> RAMEL | J7: =VLOOKUP(B7,Dupli!$A$1:$J$30000,4,0) -> Josiane | K7: D | L7: 4A | M7: 2011 | N7: V29 | O7: FR | P7: =VLOOKUP(B7,Dupli!$A$1:$I$30000,6,0) -> D | Q7: =VLOOKUP(B7,Dupli!$A$1:$I$30000,5,0) -> 4A | R7: =VLOOKUP(B7,Dupli!$A$1:$I$30000,8,0) -> 2051 | S7: =VLOOKUP(B7,Dupli!$A$1:$I$30000,7,0) -> V29 | T7: =VLOOKUP(B7,Dupli!$A$1:$I$30000,9,0) -> FR | W7: erreur | Z7: =IF(OR(E7="3A",E7="3B",E7="4A",E7="4B",E7="4C",E7="4D"),B7,VLOOKUP(B7,Phase2!$A$2:$A$30000,1,0)) -> 2627313 | AA7: =IF(OR(E7="2A",E7="2B"),B7,VLOOKUP(B7,Phase3!$A$2:$A$29999,1,0)) -> 2627313
A8: 5 | B8: 3330622 | C8: DELUGIAN Gérard | D8: V | E8: 4A | F8: 2141 | G8: V33 | H8: 20 | I8: =VLOOKUP(B8,Dupli!$A$1:$J$30000,3,0) -> DELUGIAN | J8: =VLOOKUP(B8,Dupli!$A$1:$J$30000,4,0) -> Gérard | K8: V | L8: 4A | M8: 2141 | N8: V33 | O8: FR | P8: =VLOOKUP(B8,Dupli!$A$1:$I$30000,6,0) -> V | Q8: =VLOOKUP(B8,Dupli!$A$1:$I$30000,5,0) -> 4A | R8: =VLOOKUP(B8,Dupli!$A$1:$I$30000,8,0) -> 2181 | S8: =VLOOKUP(B8,Dupli!$A$1:$I$30000,7,0) -> V33 | T8: =VLOOKUP(B8,Dupli!$A$1:$I$30000,9,0) -> FR | W8: erreur | Z8: =IF(OR(E8="3A",E8="3B",E8="4A",E8="4B",E8="4C",E8="4D"),B8,VLOOKUP(B8,Phase2!$A$2:$A$30000,1,0)) -> 3330622 | AA8: =IF(OR(E8="2A",E8="2B"),B8,VLOOKUP(B8,Phase3!$A$2:$A$29999,1,0)) -> 3330622
A9: 6 | B9: 3330633 | C9: DELUGIAN Christiane | D9: V | E9: 4C | F9: 2968 | G9: V33 | H9: 5 | I9: =VLOOKUP(B9,Dupli!$A$1:$J$30000,3,0) -> DELUGIAN | J9: =VLOOKUP(B9,Dupli!$A$1:$J$30000,4,0) -> Christiane | K9: V | L9: 4C | M9: 2968 | N9: V33 | O9: FR | P9: =VLOOKUP(B9,Dupli!$A$1:$I$30000,6,0) -> V | Q9: =VLOOKUP(B9,Dupli!$A$1:$I$30000,5,0) -> 4C | R9: =VLOOKUP(B9,Dupli!$A$1:$I$30000,8,0) -> 3006 | S9: =VLOOKUP(B9,Dupli!$A$1:$I$30000,7,0) -> V33 | T9: =VLOOKUP(B9,Dupli!$A$1:$I$30000,9,0) -> FR | W9: erreur | Z9: =IF(OR(E9="3A",E9="3B",E9="4A",E9="4B",E9="4C",E9="4D"),B9,VLOOKUP(B9,Phase2!$A$2:$A$30000,1,0)) -> 3330633 | AA9: =IF(OR(E9="2A",E9="2B"),B9,VLOOKUP(B9,Phase3!$A$2:$A$29999,1,0)) -> 3330633
A10: 7 | B10: 1037198 | C10: BAAN Annie | D10: D | E10: 4C | F10: 3345 | G10: V09 | H10: 9 | I10: =VLOOKUP(B10,Dupli!$A$1:$J$30000,3,0) -> BAAN | J10: =VLOOKUP(B10,Dupli!$A$1:$J$30000,4,0) -> Annie | K10: D | L10: 4C | M10: 3345 | N10: V09 | O10: FR | P10: =VLOOKUP(B10,Dupli!$A$1:$I$30000,6,0) -> D | Q10: =VLOOKUP(B10,Dupli!$A$1:$I$30000,5,0) -> 4C | R10: =VLOOKUP(B10,Dupli!$A$1:$I$30000,8,0) -> 3383 | S10: =VLOOKUP(B10,Dupli!$A$1:$I$30000,7,0) -> V09 | T10: =VLOOKUP(B10,Dupli!$A$1:$I$30000,9,0) -> FR | W10: erreur | Z10: =IF(OR(E10="3A",E10="3B",E10="4A",E10="4B",E10="4C",E10="4D"),B10,VLOOKUP(B10,Phase2!$A$2:$A$30000,1,0)) -> 1037198 | AA10: =IF(OR(E10="2A",E10="2B"),B10,VLOOKUP(B10,Phase3!$A$2:$A$29999,1,0)) -> 1037198
A11: 8 | B11: 1252022 | C11: GUILLON Chantal | D11: V | E11: 4D | F11: 3516 | G11: V33 | H11: 29 | I11: =VLOOKUP(B11,Dupli!$A$1:$J$30000,3,0) -> GUILLON | J11: =VLOOKUP(B11,Dupli!$A$1:$J$30000,4,0) -> Chantal | K11: V | L11: 4D | M11: 3516 | N11: V33 | O11: FR | P11: =VLOOKUP(B11,Dupli!$A$1:$I$30000,6,0) -> V | Q11: =VLOOKUP(B11,Dupli!$A$1:$I$30000,5,0) -> 4D | R11: =VLOOKUP(B11,Dupli!$A$1:$I$30000,8,0) -> 3554 | S11: =VLOOKUP(B11,Dupli!$A$1:$I$30000,7,0) -> V33 | T11: =VLOOKUP(B11,Dupli!$A$1:$I$30000,9,0) -> FR | W11: erreur | Z11: =IF(OR(E11="3A",E11="3B",E11="4A",E11="4B",E11="4C",E11="4D"),B11,VLOOKUP(B11,Phase2!$A$2:$A$30000,1,0)) -> 1252022 | AA11: =IF(OR(E11="2A",E11="2B"),B11,VLOOKUP(B11,Phase3!$A$2:$A$29999,1,0)) -> 
A12: 9 | B12: 1001129 | C12: VAILLANT Anny | D12: D | E12: 5A | F12: 4992 | G12: V33 | H12: 12 | I12: =VLOOKUP(B12,Dupli!$A$1:$J$30000,3,0) -> VAILLANT | J12: =VLOOKUP(B12,Dupli!$A$1:$J$30000,4,0) -> Anny | K12: D | L12: 5A | M12: 4992 | N12: V33 | O12: FR | P12: =VLOOKUP(B12,Dupli!$A$1:$I$30000,6,0) -> D | Q12: =VLOOKUP(B12,Dupli!$A$1:$I$30000,5,0) -> 5A | R12: =VLOOKUP(B12,Dupli!$A$1:$I$30000,8,0) -> 5084 | S12: =VLOOKUP(B12,Dupli!$A$1:$I$30000,7,0) -> V33 | T12: =VLOOKUP(B12,Dupli!$A$1:$I$30000,9,0) -> FR | W12: erreur | Z12: =IF(OR(E12="3A",E12="3B",E12="4A",E12="4B",E12="4C",E12="4D"),B12,VLOOKUP(B12,Phase2!$A$2:$A$30000,1,0)) -> 1001129 | AA12: =IF(OR(E12="2A",E12="2B"),B12,VLOOKUP(B12,Phase3!$A$2:$A$29999,1,0)) -> 
A13: 10 | B13: 1185806 | C13: POCHARD Margaret | D13: D | E13: 5B | F13: 5879 | G13: V33 | H13: 24 | I13: =VLOOKUP(B13,Dupli!$A$1:$J$30000,3,0) -> POCHARD | J13: =VLOOKUP(B13,Dupli!$A$1:$J$30000,4,0) -> Margaret | K13: D | L13: 5B | M13: 5879 | N13: V33 | O13: FR | P13: =VLOOKUP(B13,Dupli!$A$1:$I$30000,6,0) -> D | Q13: =VLOOKUP(B13,Dupli!$A$1:$I$30000,5,0) -> 5B | R13: =VLOOKUP(B13,Dupli!$A$1:$I$30000,8,0) -> 5966 | S13: =VLOOKUP(B13,Dupli!$A$1:$I$30000,7,0) -> V33 | T13: =VLOOKUP(B13,Dupli!$A$1:$I$30000,9,0) -> FR | W13: erreur | Z13: =IF(OR(E13="3A",E13="3B",E13="4A",E13="4B",E13="4C",E13="4D"),B13,VLOOKUP(B13,Phase2!$A$2:$A$30000,1,0)) -> 1185806 | AA13: =IF(OR(E13="2A",E13="2B"),B13,VLOOKUP(B13,Phase3!$A$2:$A$29999,1,0)) -> 1185806
A14: 11 | B14: 1271623 | C14: HILAIRE Colette | D14: D | E14: 5B | F14: 6071 | G14: V29 | H14: 13 | I14: =VLOOKUP(B14,Dupli!$A$1:$J$30000,3,0) -> HILAIRE | J14: =VLOOKUP(B14,Dupli!$A$1:$J$30000,4,0) -> Colette | K14: D | L14: 5B | M14: 6071 | N14: V29 | O14: FR | P14: =VLOOKUP(B14,Dupli!$A$1:$I$30000,6,0) -> D | Q14: =VLOOKUP(B14,Dupli!$A$1:$I$30000,5,0) -> 5B | R14: =VLOOKUP(B14,Dupli!$A$1:$I$30000,8,0) -> 6156 | S14: =VLOOKUP(B14,Dupli!$A$1:$I$30000,7,0) -> V29 | T14: =VLOOKUP(B14,Dupli!$A$1:$I$30000,9,0) -> FR | W14: erreur | Z14: =IF(OR(E14="3A",E14="3B",E14="4A",E14="4B",E14="4C",E14="4D"),B14,VLOOKUP(B14,Phase2!$A$2:$A$30000,1,0)) ->  | AA14: =IF(OR(E14="2A",E14="2B"),B14,VLOOKUP(B14,Phase3!$A$2:$A$29999,1,0)) -> 
A15: 12 | B15: 2800563 | C15: TOUFFET Rémy | D15: D | E15: 5C | F15: 6207 | G15: V33 | H15: 4 | I15: =VLOOKUP(B15,Dupli!$A$1:$J$30000,3,0) -> TOUFFET | J15: =VLOOKUP(B15,Dupli!$A$1:$J$30000,4,0) -> Rémy | K15: D | L15: 5C | M15: 6207 | N15: V33 | O15: FR | P15: =VLOOKUP(B15,Dupli!$A$1:$I$30000,6,0) -> D | Q15: =VLOOKUP(B15,Dupli!$A$1:$I$30000,5,0) -> 5C | R15: =VLOOKUP(B15,Dupli!$A$1:$I$30000,8,0) -> 6291 | S15: =VLOOKUP(B15,Dupli!$A$1:$I$30000,7,0) -> V33 | T15: =VLOOKUP(B15,Dupli!$A$1:$I$30000,9,0) -> FR | W15: erreur | Z15: =IF(OR(E15="3A",E15="3B",E15="4A",E15="4B",E15="4C",E15="4D"),B15,VLOOKUP(B15,Phase2!$A$2:$A$30000,1,0)) -> 2800563 | AA15: =IF(OR(E15="2A",E15="2B"),B15,VLOOKUP(B15,Phase3!$A$2:$A$29999,1,0)) -> 
A16: 13 | B16: 1008514 | C16: AZEMA Serge | D16: V | E16: 5C | F16: 6825 | G16: V33 | H16: 3 | I16: =VLOOKUP(B16,Dupli!$A$1:$J$30000,3,0) -> AZEMA | J16: =VLOOKUP(B16,Dupli!$A$1:$J$30000,4,0) -> Serge | K16: V | L16: 5C | M16: 6825 | N16: V33 | O16: FR | P16: =VLOOKUP(B16,Dupli!$A$1:$I$30000,6,0) -> V | Q16: =VLOOKUP(B16,Dupli!$A$1:$I$30000,5,0) -> 5C | R16: =VLOOKUP(B16,Dupli!$A$1:$I$30000,8,0) -> 6909 | S16: =VLOOKUP(B16,Dupli!$A$1:$I$30000,7,0) -> V33 | T16: =VLOOKUP(B16,Dupli!$A$1:$I$30000,9,0) -> FR | W16: erreur | Z16: =IF(OR(E16="3A",E16="3B",E16="4A",E16="4B",E16="4C",E16="4D"),B16,VLOOKUP(B16,Phase2!$A$2:$A$30000,1,0)) -> 1008514 | AA16: =IF(OR(E16="2A",E16="2B"),B16,VLOOKUP(B16,Phase3!$A$2:$A$29999,1,0)) -> 
A17: 14 | B17: 1006975 | C17: YVÉ Françoise | D17: V | E17: 5C | F17: 7050 | G17: V29 | H17: 5 | I17: =VLOOKUP(B17,Dupli!$A$1:$J$30000,3,0) -> YVÉ | J17: =VLOOKUP(B17,Dupli!$A$1:$J$30000,4,0) -> Françoise | K17: =D17 -> V | L17: =E17 -> 5C | M17: =F17 -> 7050 | N17: =G17 -> V29 | O17: FR | P17: =VLOOKUP(B17,Dupli!$A$1:$I$30000,6,0) -> V | Q17: =VLOOKUP(B17,Dupli!$A$1:$I$30000,5,0) -> 5C | R17: =VLOOKUP(B17,Dupli!$A$1:$I$30000,8,0) -> 7134 | S17: =VLOOKUP(B17,Dupli!$A$1:$I$30000,7,0) -> V29 | T17: =VLOOKUP(B17,Dupli!$A$1:$I$30000,9,0) -> FR | U17: =IF(K17=P17,"","erreur") ->  | V17: =IF(L17=Q17,"","erreur") ->  | W17: =IF(M17=R17,"","erreur") -> erreur | X17: =IF(N17=S17,"","erreur") ->  | Y17: =IF(O17=T17,"","erreur") ->  | Z17: =IF(OR(E17="3A",E17="3B",E17="4A",E17="4B",E17="4C",E17="4D"),B17,VLOOKUP(B17,Phase2!$A$2:$A$30000,1,0)) ->  | AA17: =IF(OR(E17="2A",E17="2B"),B17,VLOOKUP(B17,Phase3!$A$2:$A$29999,1,0)) -> 
A18: 15 | B18: 1017995 | C18: LAMORLETTE Marie-France | D18: V | E18: 7 | F18: 18000 | G18: V33 | H18: 37 | I18: =VLOOKUP(B18,Dupli!$A$1:$J$30000,3,0) -> LAMORLETTE | J18: =VLOOKUP(B18,Dupli!$A$1:$J$30000,4,0) -> Marie-France | K18: =D18 -> V | L18: =E18 -> 7 | M18: =F18 -> 18000 | N18: =G18 -> V33 | O18: FR | P18: =VLOOKUP(B18,Dupli!$A$1:$I$30000,6,0) -> V | Q18: =VLOOKUP(B18,Dupli!$A$1:$I$30000,5,0) -> 7 | R18: =VLOOKUP(B18,Dupli!$A$1:$I$30000,8,0) -> 16899 | S18: =VLOOKUP(B18,Dupli!$A$1:$I$30000,7,0) -> V33 | T18: =VLOOKUP(B18,Dupli!$A$1:$I$30000,9,0) -> FR | V18: erreur | W18: erreur | Z18: =IF(OR(E18="3A",E18="3B",E18="4A",E18="4B",E18="4C",E18="4D"),B18,VLOOKUP(B18,Phase2!$A$2:$A$30000,1,0)) ->  | AA18: =IF(OR(E18="2A",E18="2B"),B18,VLOOKUP(B18,Phase3!$A$2:$A$29999,1,0)) -> 
A19: 18 | B19: 1004167 | C19: SEVESTRE Maryse | D19: V | E19: 5C | F19: V09 | G19: V33 | H19: 22 | I19: =VLOOKUP(B19,Dupli!$A$1:$J$30000,3,0) -> SEVESTRE | J19: =VLOOKUP(B19,Dupli!$A$1:$J$30000,4,0) -> Maryse | K19: V | L19: 5C | M19: V09 | N19: V33 | O19: FR | P19: =VLOOKUP(B19,Dupli!$A$1:$I$30000,6,0) -> V | Q19: =VLOOKUP(B19,Dupli!$A$1:$I$30000,5,0) -> 5C | R19: =VLOOKUP(B19,Dupli!$A$1:$I$30000,8,0) -> 6765 | S19: =VLOOKUP(B19,Dupli!$A$1:$I$30000,7,0) -> V09 | T19: =VLOOKUP(B19,Dupli!$A$1:$I$30000,9,0) -> FR | W19: erreur | X19: erreur | Z19: =IF(OR(E19="3A",E19="3B",E19="4A",E19="4B",E19="4C",E19="4D"),B19,VLOOKUP(B19,Phase2!$A$2:$A$30000,1,0)) -> 1004167 | AA19: =IF(OR(E19="2A",E19="2B"),B19,VLOOKUP(B19,Phase3!$A$2:$A$29999,1,0)) -> 
A20: 19 | B20: 1015384 | C20: LAROULANDIE Marie-Christine | D20: S | E20: 7 | F20: V09 | G20: V33 | H20: 18 | I20: =VLOOKUP(B20,Dupli!$A$1:$J$30000,3,0) -> LAROULANDIE | J20: =VLOOKUP(B20,Dupli!$A$1:$J$30000,4,0) -> Marie-Christine | K20: S | L20: 7 | M20: V09 | N20: V33 | O20: FR | P20: =VLOOKUP(B20,Dupli!$A$1:$I$30000,6,0) -> S | Q20: =VLOOKUP(B20,Dupli!$A$1:$I$30000,5,0) -> 7 | R20: =VLOOKUP(B20,Dupli!$A$1:$I$30000,8,0) -> 14943 | S20: =VLOOKUP(B20,Dupli!$A$1:$I$30000,7,0) -> V09 | T20: =VLOOKUP(B20,Dupli!$A$1:$I$30000,9,0) -> FR | W20: erreur | X20: erreur | Z20: =IF(OR(E20="3A",E20="3B",E20="4A",E20="4B",E20="4C",E20="4D"),B20,VLOOKUP(B20,Phase2!$A$2:$A$30000,1,0)) ->  | AA20: =IF(OR(E20="2A",E20="2B"),B20,VLOOKUP(B20,Phase3!$A$2:$A$29999,1,0)) -> 
A21: 20 | B21: 1015395 | C21: LATOURTE Marie-Agnès | D21: V | E21: 7 | F21: V09 | G21: V33 | H21: 35 | I21: =VLOOKUP(B21,Dupli!$A$1:$J$30000,3,0) -> LATOURTE | J21: =VLOOKUP(B21,Dupli!$A$1:$J$30000,4,0) -> Marie-Agnès | K21: V | L21: 7 | M21: V09 | N21: V33 | O21: FR | P21: =VLOOKUP(B21,Dupli!$A$1:$I$30000,6,0) -> V | Q21: =VLOOKUP(B21,Dupli!$A$1:$I$30000,5,0) -> 7 | R21: =VLOOKUP(B21,Dupli!$A$1:$I$30000,8,0) -> 15632 | S21: =VLOOKUP(B21,Dupli!$A$1:$I$30000,7,0) -> V09 | T21: =VLOOKUP(B21,Dupli!$A$1:$I$30000,9,0) -> FR | W21: erreur | X21: erreur | Z21: =IF(OR(E21="3A",E21="3B",E21="4A",E21="4B",E21="4C",E21="4D"),B21,VLOOKUP(B21,Phase2!$A$2:$A$30000,1,0)) ->  | AA21: =IF(OR(E21="2A",E21="2B"),B21,VLOOKUP(B21,Phase3!$A$2:$A$29999,1,0)) -> 
A22: 21 | B22: 2343457 | C22: MARTIN Suzy | D22: V | E22: 5A | F22: V33 | G22: V29 | H22: 16 | I22: =VLOOKUP(B22,Dupli!$A$1:$J$30000,3,0) -> MARTIN | J22: =VLOOKUP(B22,Dupli!$A$1:$J$30000,4,0) -> Suzy | K22: V | L22: 5A | M22: V33 | N22: V29 | O22: FR | P22: =VLOOKUP(B22,Dupli!$A$1:$I$30000,6,0) -> V | Q22: =VLOOKUP(B22,Dupli!$A$1:$I$30000,5,0) -> 5A | R22: =VLOOKUP(B22,Dupli!$A$1:$I$30000,8,0) -> 4938 | S22: =VLOOKUP(B22,Dupli!$A$1:$I$30000,7,0) -> V33 | T22: =VLOOKUP(B22,Dupli!$A$1:$I$30000,9,0) -> FR | W22: erreur | X22: erreur | Z22: =IF(OR(E22="3A",E22="3B",E22="4A",E22="4B",E22="4C",E22="4D"),B22,VLOOKUP(B22,Phase2!$A$2:$A$30000,1,0)) ->  | AA22: =IF(OR(E22="2A",E22="2B"),B22,VLOOKUP(B22,Phase3!$A$2:$A$29999,1,0)) -> 
A23: 22 | B23: 1006975 | C23: YVÉ Françoise | D23: V | E23: 5C | F23: V29 | G23: V33 | H23: 9 | I23: =VLOOKUP(B23,Dupli!$A$1:$J$30000,3,0) -> YVÉ | J23: =VLOOKUP(B23,Dupli!$A$1:$J$30000,4,0) -> Françoise | K23: V | L23: 5C | M23: V29 | N23: V33 | O23: FR | P23: =VLOOKUP(B23,Dupli!$A$1:$I$30000,6,0) -> V | Q23: =VLOOKUP(B23,Dupli!$A$1:$I$30000,5,0) -> 5C | R23: =VLOOKUP(B23,Dupli!$A$1:$I$30000,8,0) -> 7134 | S23: =VLOOKUP(B23,Dupli!$A$1:$I$30000,7,0) -> V29 | T23: =VLOOKUP(B23,Dupli!$A$1:$I$30000,9,0) -> FR | W23: erreur | X23: erreur | Z23: =IF(OR(E23="3A",E23="3B",E23="4A",E23="4B",E23="4C",E23="4D"),B23,VLOOKUP(B23,Phase2!$A$2:$A$30000,1,0)) ->  | AA23: =IF(OR(E23="2A",E23="2B"),B23,VLOOKUP(B23,Phase3!$A$2:$A$29999,1,0)) -> 
A24: 23 | B24: 2640113 | C24: GUEHENNEUC Danielle | D24: D | E24: 5D | F24: V09 | G24: V29 | H24: 21 | I24: =VLOOKUP(B24,Dupli!$A$1:$J$30000,3,0) -> GUEHENNEUC | J24: =VLOOKUP(B24,Dupli!$A$1:$J$30000,4,0) -> Danielle | K24: D | L24: 5D | M24: V09 | N24: V29 | O24: FR | P24: =VLOOKUP(B24,Dupli!$A$1:$I$30000,6,0) -> D | Q24: =VLOOKUP(B24,Dupli!$A$1:$I$30000,5,0) -> 5D | R24: =VLOOKUP(B24,Dupli!$A$1:$I$30000,8,0) -> 7573 | S24: =VLOOKUP(B24,Dupli!$A$1:$I$30000,7,0) -> V09 | T24: =VLOOKUP(B24,Dupli!$A$1:$I$30000,9,0) -> FR | W24: erreur | X24: erreur | Z24: =IF(OR(E24="3A",E24="3B",E24="4A",E24="4B",E24="4C",E24="4D"),B24,VLOOKUP(B24,Phase2!$A$2:$A$30000,1,0)) ->  | AA24: =IF(OR(E24="2A",E24="2B"),B24,VLOOKUP(B24,Phase3!$A$2:$A$29999,1,0)) -> 
A25: 24 | B25: 1271623 | C25: HILAIRE Colette | D25: D | E25: 5B | F25: V29 | G25: V33 | H25: 39 | I25: =VLOOKUP(B25,Dupli!$A$1:$J$30000,3,0) -> HILAIRE | J25: =VLOOKUP(B25,Dupli!$A$1:$J$30000,4,0) -> Colette | K25: D | L25: 5B | M25: V29 | N25: V33 | O25: FR | P25: =VLOOKUP(B25,Dupli!$A$1:$I$30000,6,0) -> D | Q25: =VLOOKUP(B25,Dupli!$A$1:$I$30000,5,0) -> 5B | R25: =VLOOKUP(B25,Dupli!$A$1:$I$30000,8,0) -> 6156 | S25: =VLOOKUP(B25,Dupli!$A$1:$I$30000,7,0) -> V29 | T25: =VLOOKUP(B25,Dupli!$A$1:$I$30000,9,0) -> FR | W25: erreur | X25: erreur | Z25: =IF(OR(E25="3A",E25="3B",E25="4A",E25="4B",E25="4C",E25="4D"),B25,VLOOKUP(B25,Phase2!$A$2:$A$30000,1,0)) ->  | AA25: =IF(OR(E25="2A",E25="2B"),B25,VLOOKUP(B25,Phase3!$A$2:$A$29999,1,0)) -> 
A26: 27 | B26: 2640113 | C26: GUEHENNEUC Danielle | D26: D | E26: 5D | F26: 7490 | G26: V09 | H26: 30 | I26: =VLOOKUP(B26,Dupli!$A$1:$J$30000,3,0) -> GUEHENNEUC | J26: =VLOOKUP(B26,Dupli!$A$1:$J$30000,4,0) -> Danielle | K26: D | L26: 5D | M26: 7490 | N26: V09 | O26: FR | P26: =VLOOKUP(B26,Dupli!$A$1:$I$30000,6,0) -> D | Q26: =VLOOKUP(B26,Dupli!$A$1:$I$30000,5,0) -> 5D | R26: =VLOOKUP(B26,Dupli!$A$1:$I$30000,8,0) -> 7573 | S26: =VLOOKUP(B26,Dupli!$A$1:$I$30000,7,0) -> V09 | T26: =VLOOKUP(B26,Dupli!$A$1:$I$30000,9,0) -> FR | W26: erreur | Z26: =IF(OR(E26="3A",E26="3B",E26="4A",E26="4B",E26="4C",E26="4D"),B26,VLOOKUP(B26,Phase2!$A$2:$A$30000,1,0)) ->  | AA26: =IF(OR(E26="2A",E26="2B"),B26,VLOOKUP(B26,Phase3!$A$2:$A$29999,1,0)) -> 
A27: 28 | B27: 1300937 | C27: CHEVALLIER Odette | D27: D | E27: 6A | F27: 8349 | G27: V33 | H27: 13 | I27: =VLOOKUP(B27,Dupli!$A$1:$J$30000,3,0) -> CHEVALLIER | J27: =VLOOKUP(B27,Dupli!$A$1:$J$30000,4,0) -> Odette | K27: =D27 -> D | L27: =E27 -> 6A | M27: =F27 -> 8349 | N27: =G27 -> V33 | O27: FR | P27: =VLOOKUP(B27,Dupli!$A$1:$I$30000,6,0) -> D | Q27: =VLOOKUP(B27,Dupli!$A$1:$I$30000,5,0) -> 6A | R27: =VLOOKUP(B27,Dupli!$A$1:$I$30000,8,0) -> 8631 | S27: =VLOOKUP(B27,Dupli!$A$1:$I$30000,7,0) -> V33 | T27: =VLOOKUP(B27,Dupli!$A$1:$I$30000,9,0) -> FR | W27: erreur | Z27: =IF(OR(E27="3A",E27="3B",E27="4A",E27="4B",E27="4C",E27="4D"),B27,VLOOKUP(B27,Phase2!$A$2:$A$30000,1,0)) -> 1300937 | AA27: =IF(OR(E27="2A",E27="2B"),B27,VLOOKUP(B27,Phase3!$A$2:$A$29999,1,0)) -> 
A28: 29 | B28: 1006881 | C28: RODIER Nicole-Denise | D28: V | E28: 6A | F28: 8450 | G28: V09 | H28: 33 | I28: =VLOOKUP(B28,Dupli!$A$1:$J$30000,3,0) -> RODIER | J28: =VLOOKUP(B28,Dupli!$A$1:$J$30000,4,0) -> Nicole-Denise | K28: V | L28: 6A | M28: 8450 | N28: V09 | O28: FR | P28: =VLOOKUP(B28,Dupli!$A$1:$I$30000,6,0) -> V | Q28: =VLOOKUP(B28,Dupli!$A$1:$I$30000,5,0) -> 6A | R28: =VLOOKUP(B28,Dupli!$A$1:$I$30000,8,0) -> 8732 | S28: =VLOOKUP(B28,Dupli!$A$1:$I$30000,7,0) -> V09 | T28: =VLOOKUP(B28,Dupli!$A$1:$I$30000,9,0) -> FR | W28: erreur | Z28: =IF(OR(E28="3A",E28="3B",E28="4A",E28="4B",E28="4C",E28="4D"),B28,VLOOKUP(B28,Phase2!$A$2:$A$30000,1,0)) ->  | AA28: =IF(OR(E28="2A",E28="2B"),B28,VLOOKUP(B28,Phase3!$A$2:$A$29999,1,0)) -> 
A29: 30 | B29: 1014683 | C29: MULLER Pascale | D29: S | E29: 6A | F29: 9065 | G29: V09 | H29: 26 | I29: =VLOOKUP(B29,Dupli!$A$1:$J$30000,3,0) -> MULLER | J29: =VLOOKUP(B29,Dupli!$A$1:$J$30000,4,0) -> Pascale | K29: S | L29: 6A | M29: 9065 | N29: V09 | O29: FR | P29: =VLOOKUP(B29,Dupli!$A$1:$I$30000,6,0) -> S | Q29: =VLOOKUP(B29,Dupli!$A$1:$I$30000,5,0) -> 6A | R29: =VLOOKUP(B29,Dupli!$A$1:$I$30000,8,0) -> 9347 | S29: =VLOOKUP(B29,Dupli!$A$1:$I$30000,7,0) -> V09 | T29: =VLOOKUP(B29,Dupli!$A$1:$I$30000,9,0) -> FR | W29: erreur | Z29: =IF(OR(E29="3A",E29="3B",E29="4A",E29="4B",E29="4C",E29="4D"),B29,VLOOKUP(B29,Phase2!$A$2:$A$30000,1,0)) -> 1014683 | AA29: =IF(OR(E29="2A",E29="2B"),B29,VLOOKUP(B29,Phase3!$A$2:$A$29999,1,0)) -> 
A30: 31 | B30: 1014462 | C30: CONSTANT Sandrine | D30: S | E30: 6A | F30: 9442 | G30: V35 | H30: 31 | I30: =VLOOKUP(B30,Dupli!$A$1:$J$30000,3,0) -> CONSTANT | J30: =VLOOKUP(B30,Dupli!$A$1:$J$30000,4,0) -> Sandrine | K30: S | L30: 6A | M30: 9442 | N30: V35 | O30: FR | P30: =VLOOKUP(B30,Dupli!$A$1:$I$30000,6,0) -> S | Q30: =VLOOKUP(B30,Dupli!$A$1:$I$30000,5,0) -> 6A | R30: =VLOOKUP(B30,Dupli!$A$1:$I$30000,8,0) -> 9724 | S30: =VLOOKUP(B30,Dupli!$A$1:$I$30000,7,0) -> V35 | T30: =VLOOKUP(B30,Dupli!$A$1:$I$30000,9,0) -> FR | W30: erreur | Z30: =IF(OR(E30="3A",E30="3B",E30="4A",E30="4B",E30="4C",E30="4D"),B30,VLOOKUP(B30,Phase2!$A$2:$A$30000,1,0)) ->  | AA30: =IF(OR(E30="2A",E30="2B"),B30,VLOOKUP(B30,Phase3!$A$2:$A$29999,1,0)) -> 
A31: 32 | B31: 1004732 | C31: HARMAND Annik | D31: D | E31: 6B | F31: 10366 | G31: V09 | H31: 32 | I31: =VLOOKUP(B31,Dupli!$A$1:$J$30000,3,0) -> HARMAND | J31: =VLOOKUP(B31,Dupli!$A$1:$J$30000,4,0) -> Annik | K31: D | L31: 6B | M31: 10366 | N31: V09 | O31: FR | P31: =VLOOKUP(B31,Dupli!$A$1:$I$30000,6,0) -> D | Q31: =VLOOKUP(B31,Dupli!$A$1:$I$30000,5,0) -> 6B | R31: =VLOOKUP(B31,Dupli!$A$1:$I$30000,8,0) -> 10648 | S31: =VLOOKUP(B31,Dupli!$A$1:$I$30000,7,0) -> V09 | T31: =VLOOKUP(B31,Dupli!$A$1:$I$30000,9,0) -> FR | W31: erreur | Z31: =IF(OR(E31="3A",E31="3B",E31="4A",E31="4B",E31="4C",E31="4D"),B31,VLOOKUP(B31,Phase2!$A$2:$A$30000,1,0)) ->  | AA31: =IF(OR(E31="2A",E31="2B"),B31,VLOOKUP(B31,Phase3!$A$2:$A$29999,1,0)) -> 
A32: 33 | B32: 1008312 | C32: TETEVUIDE Annick | D32: D | E32: 6B | F32: 10451 | G32: V09 | H32: 28 | I32: =VLOOKUP(B32,Dupli!$A$1:$J$30000,3,0) -> TETEVUIDE | J32: =VLOOKUP(B32,Dupli!$A$1:$J$30000,4,0) -> Annick | K32: D | L32: 6B | M32: 10451 | N32: V09 | O32: FR | P32: =VLOOKUP(B32,Dupli!$A$1:$I$30000,6,0) -> D | Q32: =VLOOKUP(B32,Dupli!$A$1:$I$30000,5,0) -> 6B | R32: =VLOOKUP(B32,Dupli!$A$1:$I$30000,8,0) -> 10733 | S32: =VLOOKUP(B32,Dupli!$A$1:$I$30000,7,0) -> V09 | T32: =VLOOKUP(B32,Dupli!$A$1:$I$30000,9,0) -> FR | W32: erreur | Z32: =IF(OR(E32="3A",E32="3B",E32="4A",E32="4B",E32="4C",E32="4D"),B32,VLOOKUP(B32,Phase2!$A$2:$A$30000,1,0)) ->  | AA32: =IF(OR(E32="2A",E32="2B"),B32,VLOOKUP(B32,Phase3!$A$2:$A$29999,1,0)) -> 
A33: 34 | B33: 1013642 | C33: BOURGUIGNAT Catherine | D33: V | E33: 6B | F33: 10985 | G33: V09 | H33: 36 | I33: =VLOOKUP(B33,Dupli!$A$1:$J$30000,3,0) -> BOURGUIGNAT | J33: =VLOOKUP(B33,Dupli!$A$1:$J$30000,4,0) -> Catherine | K33: V | L33: 6B | M33: 10985 | N33: V09 | O33: FR | P33: =VLOOKUP(B33,Dupli!$A$1:$I$30000,6,0) -> V | Q33: =VLOOKUP(B33,Dupli!$A$1:$I$30000,5,0) -> 6B | R33: =VLOOKUP(B33,Dupli!$A$1:$I$30000,8,0) -> 11267 | S33: =VLOOKUP(B33,Dupli!$A$1:$I$30000,7,0) -> V09 | T33: =VLOOKUP(B33,Dupli!$A$1:$I$30000,9,0) -> FR | W33: erreur | Z33: =IF(OR(E33="3A",E33="3B",E33="4A",E33="4B",E33="4C",E33="4D"),B33,VLOOKUP(B33,Phase2!$A$2:$A$30000,1,0)) ->  | AA33: =IF(OR(E33="2A",E33="2B"),B33,VLOOKUP(B33,Phase3!$A$2:$A$29999,1,0)) -> 
A34: 35 | B34: 1015384 | C34: LAROULANDIE Marie-Christine | D34: S | E34: 7 | F34: 14070 | G34: V09 | H34: 22 | I34: =VLOOKUP(B34,Dupli!$A$1:$J$30000,3,0) -> LAROULANDIE | J34: =VLOOKUP(B34,Dupli!$A$1:$J$30000,4,0) -> Marie-Christine | K34: S | L34: 7 | M34: 14070 | N34: V09 | O34: FR | P34: =VLOOKUP(B34,Dupli!$A$1:$I$30000,6,0) -> S | Q34: =VLOOKUP(B34,Dupli!$A$1:$I$30000,5,0) -> 7 | R34: =VLOOKUP(B34,Dupli!$A$1:$I$30000,8,0) -> 14943 | S34: =VLOOKUP(B34,Dupli!$A$1:$I$30000,7,0) -> V09 | T34: =VLOOKUP(B34,Dupli!$A$1:$I$30000,9,0) -> FR | V34: erreur | W34: erreur | Z34: =IF(OR(E34="3A",E34="3B",E34="4A",E34="4B",E34="4C",E34="4D"),B34,VLOOKUP(B34,Phase2!$A$2:$A$30000,1,0)) ->  | AA34: =IF(OR(E34="2A",E34="2B"),B34,VLOOKUP(B34,Phase3!$A$2:$A$29999,1,0)) -> 
A35: 36 | B35: 1015395 | C35: LATOURTE Marie-Agnès | D35: V | E35: 7 | F35: 14760 | G35: V09 | H35: 27 | I35: =VLOOKUP(B35,Dupli!$A$1:$J$30000,3,0) -> LATOURTE | J35: =VLOOKUP(B35,Dupli!$A$1:$J$30000,4,0) -> Marie-Agnès | K35: V | L35: 7 | M35: 14760 | N35: V09 | O35: FR | P35: =VLOOKUP(B35,Dupli!$A$1:$I$30000,6,0) -> V | Q35: =VLOOKUP(B35,Dupli!$A$1:$I$30000,5,0) -> 7 | R35: =VLOOKUP(B35,Dupli!$A$1:$I$30000,8,0) -> 15632 | S35: =VLOOKUP(B35,Dupli!$A$1:$I$30000,7,0) -> V09 | T35: =VLOOKUP(B35,Dupli!$A$1:$I$30000,9,0) -> FR | V35: erreur | W35: erreur | Z35: =IF(OR(E35="3A",E35="3B",E35="4A",E35="4B",E35="4C",E35="4D"),B35,VLOOKUP(B35,Phase2!$A$2:$A$30000,1,0)) ->  | AA35: =IF(OR(E35="2A",E35="2B"),B35,VLOOKUP(B35,Phase3!$A$2:$A$29999,1,0)) -> 
A36: 37 | B36: 1015403 | C36: LE YAOUANQ Marie-Hélène | D36: V | E36: 7 | F36: 14761 | G36: V09 | H36: 41 | I36: =VLOOKUP(B36,Dupli!$A$1:$J$30000,3,0) -> LE YAOUANQ | J36: =VLOOKUP(B36,Dupli!$A$1:$J$30000,4,0) -> Marie-Hélène | K36: V | L36: 7 | M36: 14761 | N36: V09 | O36: FR | P36: =VLOOKUP(B36,Dupli!$A$1:$I$30000,6,0) -> V | Q36: =VLOOKUP(B36,Dupli!$A$1:$I$30000,5,0) -> 7 | R36: =VLOOKUP(B36,Dupli!$A$1:$I$30000,8,0) -> 15633 | S36: =VLOOKUP(B36,Dupli!$A$1:$I$30000,7,0) -> V09 | T36: =VLOOKUP(B36,Dupli!$A$1:$I$30000,9,0) -> FR | V36: erreur | W36: erreur | Z36: =IF(OR(E36="3A",E36="3B",E36="4A",E36="4B",E36="4C",E36="4D"),B36,VLOOKUP(B36,Phase2!$A$2:$A$30000,1,0)) ->  | AA36: =IF(OR(E36="2A",E36="2B"),B36,VLOOKUP(B36,Phase3!$A$2:$A$29999,1,0)) -> 
A37: 12 | B37: 1281015 | C37: RABUT Françoise | D37: D | E37: 5B | F37: 5272 | G37: V24 | H37: 38 | I37: =VLOOKUP(B37,Dupli!$A$1:$J$30000,3,0) -> RABUT | J37: =VLOOKUP(B37,Dupli!$A$1:$J$30000,4,0) -> Françoise | K37: D | L37: 5B | M37: 5272 | N37: V24 | O37: FR | P37: =VLOOKUP(B37,Dupli!$A$1:$I$30000,6,0) -> D | Q37: =VLOOKUP(B37,Dupli!$A$1:$I$30000,5,0) -> 5B | R37: =VLOOKUP(B37,Dupli!$A$1:$I$30000,8,0) -> 5361 | S37: =VLOOKUP(B37,Dupli!$A$1:$I$30000,7,0) -> V24 | T37: =VLOOKUP(B37,Dupli!$A$1:$I$30000,9,0) -> FR | W37: erreur | Z37: =IF(OR(E37="3A",E37="3B",E37="4A",E37="4B",E37="4C",E37="4D"),B37,VLOOKUP(B37,Phase2!$A$2:$A$30000,1,0)) -> 1281015 | AA37: =IF(OR(E37="2A",E37="2B"),B37,VLOOKUP(B37,Phase3!$A$2:$A$29999,1,0)) -> 
A38: 13 | B38: 1252793 | C38: RIO Jean-Claude | D38: D | E38: 5B | F38: 5998 | G38: V24 | H38: 34 | I38: =VLOOKUP(B38,Dupli!$A$1:$J$30000,3,0) -> RIO | J38: =VLOOKUP(B38,Dupli!$A$1:$J$30000,4,0) -> Jean-Claude | K38: D | L38: 5B | M38: 5998 | N38: V24 | O38: FR | P38: =VLOOKUP(B38,Dupli!$A$1:$I$30000,6,0) -> D | Q38: =VLOOKUP(B38,Dupli!$A$1:$I$30000,5,0) -> 5B | R38: =VLOOKUP(B38,Dupli!$A$1:$I$30000,8,0) -> 6084 | S38: =VLOOKUP(B38,Dupli!$A$1:$I$30000,7,0) -> V24 | T38: =VLOOKUP(B38,Dupli!$A$1:$I$30000,9,0) -> FR | W38: erreur | Z38: =IF(OR(E38="3A",E38="3B",E38="4A",E38="4B",E38="4C",E38="4D"),B38,VLOOKUP(B38,Phase2!$A$2:$A$30000,1,0)) -> 1252793 | AA38: =IF(OR(E38="2A",E38="2B"),B38,VLOOKUP(B38,Phase3!$A$2:$A$29999,1,0)) -> 
A39: 14 | B39: 1013062 | C39: BELLANGER Christelle | D39: S | E39: 5C | F39: 6536 | G39: V24 | H39: 40 | I39: =VLOOKUP(B39,Dupli!$A$1:$J$30000,3,0) -> BELLANGER | J39: =VLOOKUP(B39,Dupli!$A$1:$J$30000,4,0) -> Christelle | K39: S | L39: 5C | M39: 6536 | N39: V24 | O39: FR | P39: =VLOOKUP(B39,Dupli!$A$1:$I$30000,6,0) -> S | Q39: =VLOOKUP(B39,Dupli!$A$1:$I$30000,5,0) -> 5C | R39: =VLOOKUP(B39,Dupli!$A$1:$I$30000,8,0) -> 6620 | S39: =VLOOKUP(B39,Dupli!$A$1:$I$30000,7,0) -> V24 | T39: =VLOOKUP(B39,Dupli!$A$1:$I$30000,9,0) -> FR | W39: erreur | Z39: =IF(OR(E39="3A",E39="3B",E39="4A",E39="4B",E39="4C",E39="4D"),B39,VLOOKUP(B39,Phase2!$A$2:$A$30000,1,0)) -> 1013062 | AA39: =IF(OR(E39="2A",E39="2B"),B39,VLOOKUP(B39,Phase3!$A$2:$A$29999,1,0)) -> 
A40: 15 | B40: 1222504 | C40: RIO Hélène | D40: V | E40: 5C | F40: 6578 | G40: V24 | H40: 2 | I40: =VLOOKUP(B40,Dupli!$A$1:$J$30000,3,0) -> RIO | J40: =VLOOKUP(B40,Dupli!$A$1:$J$30000,4,0) -> Hélène | K40: V | L40: 5C | M40: 6578 | N40: V24 | O40: FR | P40: =VLOOKUP(B40,Dupli!$A$1:$I$30000,6,0) -> V | Q40: =VLOOKUP(B40,Dupli!$A$1:$I$30000,5,0) -> 5C | R40: =VLOOKUP(B40,Dupli!$A$1:$I$30000,8,0) -> 6662 | S40: =VLOOKUP(B40,Dupli!$A$1:$I$30000,7,0) -> V24 | T40: =VLOOKUP(B40,Dupli!$A$1:$I$30000,9,0) -> FR | W40: erreur | Z40: =IF(OR(E40="3A",E40="3B",E40="4A",E40="4B",E40="4C",E40="4D"),B40,VLOOKUP(B40,Phase2!$A$2:$A$30000,1,0)) -> 1222504 | AA40: =IF(OR(E40="2A",E40="2B"),B40,VLOOKUP(B40,Phase3!$A$2:$A$29999,1,0)) -> 
A41: 16 | B41: 1194335 | C41: ROLLAND Catherine | D41: V | E41: 5C | F41: 6804 | G41: V24 | H41: 1 | I41: =VLOOKUP(B41,Dupli!$A$1:$J$30000,3,0) -> ROLLAND | J41: =VLOOKUP(B41,Dupli!$A$1:$J$30000,4,0) -> Catherine | K41: V | L41: 5C | M41: 6804 | N41: V24 | O41: FR | P41: =VLOOKUP(B41,Dupli!$A$1:$I$30000,6,0) -> V | Q41: =VLOOKUP(B41,Dupli!$A$1:$I$30000,5,0) -> 5C | R41: =VLOOKUP(B41,Dupli!$A$1:$I$30000,8,0) -> 6888 | S41: =VLOOKUP(B41,Dupli!$A$1:$I$30000,7,0) -> V24 | T41: =VLOOKUP(B41,Dupli!$A$1:$I$30000,9,0) -> FR | W41: erreur | Z41: =IF(OR(E41="3A",E41="3B",E41="4A",E41="4B",E41="4C",E41="4D"),B41,VLOOKUP(B41,Phase2!$A$2:$A$30000,1,0)) -> 1194335 | AA41: =IF(OR(E41="2A",E41="2B"),B41,VLOOKUP(B41,Phase3!$A$2:$A$29999,1,0)) -> 
A42: 17 | B42: 1134803 | C42: WELC Christiane | D42: D | E42: 5C | F42: 6908 | G42: V24 | H42: 3 | I42: =VLOOKUP(B42,Dupli!$A$1:$J$30000,3,0) -> WELC | J42: =VLOOKUP(B42,Dupli!$A$1:$J$30000,4,0) -> Christiane | K42: D | L42: 5C | M42: 6908 | N42: V24 | O42: FR | P42: =VLOOKUP(B42,Dupli!$A$1:$I$30000,6,0) -> D | Q42: =VLOOKUP(B42,Dupli!$A$1:$I$30000,5,0) -> 5C | R42: =VLOOKUP(B42,Dupli!$A$1:$I$30000,8,0) -> 6992 | S42: =VLOOKUP(B42,Dupli!$A$1:$I$30000,7,0) -> V24 | T42: =VLOOKUP(B42,Dupli!$A$1:$I$30000,9,0) -> FR | W42: erreur | Z42: =IF(OR(E42="3A",E42="3B",E42="4A",E42="4B",E42="4C",E42="4D"),B42,VLOOKUP(B42,Phase2!$A$2:$A$30000,1,0)) ->  | AA42: =IF(OR(E42="2A",E42="2B"),B42,VLOOKUP(B42,Phase3!$A$2:$A$29999,1,0)) -> 
A43: 18 | B43: 1005413 | C43: LAVOT Annie | D43: D | E43: 5C | F43: 6947 | G43: V37 | H43: 9 | I43: =VLOOKUP(B43,Dupli!$A$1:$J$30000,3,0) -> LAVOT | J43: =VLOOKUP(B43,Dupli!$A$1:$J$30000,4,0) -> Annie | K43: D | L43: 5C | M43: 6947 | N43: V37 | O43: FR | P43: =VLOOKUP(B43,Dupli!$A$1:$I$30000,6,0) -> D | Q43: =VLOOKUP(B43,Dupli!$A$1:$I$30000,5,0) -> 5C | R43: =VLOOKUP(B43,Dupli!$A$1:$I$30000,8,0) -> 7031 | S43: =VLOOKUP(B43,Dupli!$A$1:$I$30000,7,0) -> V37 | T43: =VLOOKUP(B43,Dupli!$A$1:$I$30000,9,0) -> FR | W43: erreur | Z43: =IF(OR(E43="3A",E43="3B",E43="4A",E43="4B",E43="4C",E43="4D"),B43,VLOOKUP(B43,Phase2!$A$2:$A$30000,1,0)) ->  | AA43: =IF(OR(E43="2A",E43="2B"),B43,VLOOKUP(B43,Phase3!$A$2:$A$29999,1,0)) -> 
A44: 19 | B44: 1008353 | C44: TURBIARZ Françoise | D44: V | E44: 5D | F44: 7580 | G44: V24 | H44: 5 | I44: =VLOOKUP(B44,Dupli!$A$1:$J$30000,3,0) -> TURBIARZ | J44: =VLOOKUP(B44,Dupli!$A$1:$J$30000,4,0) -> Françoise | K44: V | L44: 5D | M44: 7580 | N44: V24 | O44: FR | P44: =VLOOKUP(B44,Dupli!$A$1:$I$30000,6,0) -> V | Q44: =VLOOKUP(B44,Dupli!$A$1:$I$30000,5,0) -> 5D | R44: =VLOOKUP(B44,Dupli!$A$1:$I$30000,8,0) -> 7663 | S44: =VLOOKUP(B44,Dupli!$A$1:$I$30000,7,0) -> V24 | T44: =VLOOKUP(B44,Dupli!$A$1:$I$30000,9,0) -> FR | W44: erreur | Z44: =IF(OR(E44="3A",E44="3B",E44="4A",E44="4B",E44="4C",E44="4D"),B44,VLOOKUP(B44,Phase2!$A$2:$A$30000,1,0)) ->  | AA44: =IF(OR(E44="2A",E44="2B"),B44,VLOOKUP(B44,Phase3!$A$2:$A$29999,1,0)) -> 
A45: 20 | B45: 1168507 | C45: CHARPENTREAU Danièle | D45: V | E45: 5D | F45: 7895 | G45: V24 | H45: 19 | I45: =VLOOKUP(B45,Dupli!$A$1:$J$30000,3,0) -> CHARPENTREAU | J45: =VLOOKUP(B45,Dupli!$A$1:$J$30000,4,0) -> Danièle | K45: V | L45: 5D | M45: 7895 | N45: V24 | O45: FR | P45: =VLOOKUP(B45,Dupli!$A$1:$I$30000,6,0) -> V | Q45: =VLOOKUP(B45,Dupli!$A$1:$I$30000,5,0) -> 5D | R45: =VLOOKUP(B45,Dupli!$A$1:$I$30000,8,0) -> 7977 | S45: =VLOOKUP(B45,Dupli!$A$1:$I$30000,7,0) -> V24 | T45: =VLOOKUP(B45,Dupli!$A$1:$I$30000,9,0) -> FR | W45: erreur | Z45: =IF(OR(E45="3A",E45="3B",E45="4A",E45="4B",E45="4C",E45="4D"),B45,VLOOKUP(B45,Phase2!$A$2:$A$30000,1,0)) ->  | AA45: =IF(OR(E45="2A",E45="2B"),B45,VLOOKUP(B45,Phase3!$A$2:$A$29999,1,0)) -> 
A46: A01 | B46: 2667645 | C46: DELATTRE Geneviève | D46: D | E46: 4B | F46: 2383 | G46: V37 | H46: 11 | I46: =VLOOKUP(B46,Dupli!$A$1:$J$30000,3,0) -> DELATTRE | J46: =VLOOKUP(B46,Dupli!$A$1:$J$30000,4,0) -> Geneviève | K46: D | L46: 4B | M46: 2383 | N46: V37 | O46: FR | P46: =VLOOKUP(B46,Dupli!$A$1:$I$30000,6,0) -> D | Q46: =VLOOKUP(B46,Dupli!$A$1:$I$30000,5,0) -> 4B | R46: =VLOOKUP(B46,Dupli!$A$1:$I$30000,8,0) -> 2422 | S46: =VLOOKUP(B46,Dupli!$A$1:$I$30000,7,0) -> V37 | T46: =VLOOKUP(B46,Dupli!$A$1:$I$30000,9,0) -> FR | W46: erreur | Z46: =IF(OR(E46="3A",E46="3B",E46="4A",E46="4B",E46="4C",E46="4D"),B46,VLOOKUP(B46,Phase2!$A$2:$A$30000,1,0)) -> 2667645 | AA46: =IF(OR(E46="2A",E46="2B"),B46,VLOOKUP(B46,Phase3!$A$2:$A$29999,1,0)) -> 2667645
A47: A02 | B47: 1151725 | C47: KESSAS Luce | D47: D | E47: 5A | F47: 5094 | G47: V24 | H47: 26 | I47: =VLOOKUP(B47,Dupli!$A$1:$J$30000,3,0) -> KESSAS | J47: =VLOOKUP(B47,Dupli!$A$1:$J$30000,4,0) -> Luce | K47: D | L47: 5A | M47: 5094 | N47: V24 | O47: FR | P47: =VLOOKUP(B47,Dupli!$A$1:$I$30000,6,0) -> D | Q47: =VLOOKUP(B47,Dupli!$A$1:$I$30000,5,0) -> 5A | R47: =VLOOKUP(B47,Dupli!$A$1:$I$30000,8,0) -> 5186 | S47: =VLOOKUP(B47,Dupli!$A$1:$I$30000,7,0) -> V24 | T47: =VLOOKUP(B47,Dupli!$A$1:$I$30000,9,0) -> FR | W47: erreur | Z47: =IF(OR(E47="3A",E47="3B",E47="4A",E47="4B",E47="4C",E47="4D"),B47,VLOOKUP(B47,Phase2!$A$2:$A$30000,1,0)) ->  | AA47: =IF(OR(E47="2A",E47="2B"),B47,VLOOKUP(B47,Phase3!$A$2:$A$29999,1,0)) -> 
A48: A03 | B48: 1066164 | C48: MOUTON Claudine | D48: D | E48: 5B | F48: 5367 | G48: V24 | H48: 14 | I48: =VLOOKUP(B48,Dupli!$A$1:$J$30000,3,0) -> MOUTON | J48: =VLOOKUP(B48,Dupli!$A$1:$J$30000,4,0) -> Claudine | K48: D | L48: 5B | M48: 5367 | N48: V24 | O48: FR | P48: =VLOOKUP(B48,Dupli!$A$1:$I$30000,6,0) -> D | Q48: =VLOOKUP(B48,Dupli!$A$1:$I$30000,5,0) -> 5B | R48: =VLOOKUP(B48,Dupli!$A$1:$I$30000,8,0) -> 5456 | S48: =VLOOKUP(B48,Dupli!$A$1:$I$30000,7,0) -> V24 | T48: =VLOOKUP(B48,Dupli!$A$1:$I$30000,9,0) -> FR | W48: erreur | Z48: =IF(OR(E48="3A",E48="3B",E48="4A",E48="4B",E48="4C",E48="4D"),B48,VLOOKUP(B48,Phase2!$A$2:$A$30000,1,0)) -> 1066164 | AA48: =IF(OR(E48="2A",E48="2B"),B48,VLOOKUP(B48,Phase3!$A$2:$A$29999,1,0)) -> 
A49: A04 | B49: 1146438 | C49: HURÉ Monelle | D49: V | E49: 5C | F49: 6836 | G49: V37 | H49: 7 | I49: =VLOOKUP(B49,Dupli!$A$1:$J$30000,3,0) -> HURÉ | J49: =VLOOKUP(B49,Dupli!$A$1:$J$30000,4,0) -> Monelle | K49: V | L49: 5C | M49: 6836 | N49: V37 | O49: FR | P49: =VLOOKUP(B49,Dupli!$A$1:$I$30000,6,0) -> V | Q49: =VLOOKUP(B49,Dupli!$A$1:$I$30000,5,0) -> 5C | R49: =VLOOKUP(B49,Dupli!$A$1:$I$30000,8,0) -> 6920 | S49: =VLOOKUP(B49,Dupli!$A$1:$I$30000,7,0) -> V37 | T49: =VLOOKUP(B49,Dupli!$A$1:$I$30000,9,0) -> FR | W49: erreur | Z49: =IF(OR(E49="3A",E49="3B",E49="4A",E49="4B",E49="4C",E49="4D"),B49,VLOOKUP(B49,Phase2!$A$2:$A$30000,1,0)) ->  | AA49: =IF(OR(E49="2A",E49="2B"),B49,VLOOKUP(B49,Phase3!$A$2:$A$29999,1,0)) -> 
A50: A05 | B50: 1004134 | C50: MEBARKI Martine | D50: V | E50: 5D | F50: 7817 | G50: V21 | H50: 17 | I50: =VLOOKUP(B50,Dupli!$A$1:$J$30000,3,0) -> MEBARKI | J50: =VLOOKUP(B50,Dupli!$A$1:$J$30000,4,0) -> Martine | K50: V | L50: 5D | M50: 7817 | N50: V21 | O50: FR | P50: =VLOOKUP(B50,Dupli!$A$1:$I$30000,6,0) -> V | Q50: =VLOOKUP(B50,Dupli!$A$1:$I$30000,5,0) -> 5D | R50: =VLOOKUP(B50,Dupli!$A$1:$I$30000,8,0) -> 7899 | S50: =VLOOKUP(B50,Dupli!$A$1:$I$30000,7,0) -> V21 | T50: =VLOOKUP(B50,Dupli!$A$1:$I$30000,9,0) -> FR | W50: erreur | Z50: =IF(OR(E50="3A",E50="3B",E50="4A",E50="4B",E50="4C",E50="4D"),B50,VLOOKUP(B50,Phase2!$A$2:$A$30000,1,0)) -> 1004134 | AA50: =IF(OR(E50="2A",E50="2B"),B50,VLOOKUP(B50,Phase3!$A$2:$A$29999,1,0)) -> 
A51: 1 | B51: 2171239 | C51: BAILLY Gérard | D51: V | E51: 2A | F51: 359 | G51: V11 | H51: 16 | I51: =VLOOKUP(B51,Dupli!$A$1:$J$30000,3,0) -> BAILLY | J51: =VLOOKUP(B51,Dupli!$A$1:$J$30000,4,0) -> Gérard | K51: V | L51: 2A | M51: 359 | N51: V11 | O51: FR | P51: =VLOOKUP(B51,Dupli!$A$1:$I$30000,6,0) -> V | Q51: =VLOOKUP(B51,Dupli!$A$1:$I$30000,5,0) -> 2A | R51: =VLOOKUP(B51,Dupli!$A$1:$I$30000,8,0) -> 364 | S51: =VLOOKUP(B51,Dupli!$A$1:$I$30000,7,0) -> V11 | T51: =VLOOKUP(B51,Dupli!$A$1:$I$30000,9,0) -> FR | W51: erreur | Z51: =IF(OR(E51="3A",E51="3B",E51="4A",E51="4B",E51="4C",E51="4D"),B51,VLOOKUP(B51,Phase2!$A$2:$A$30000,1,0)) ->  | AA51: =IF(OR(E51="2A",E51="2B"),B51,VLOOKUP(B51,Phase3!$A$2:$A$29999,1,0)) -> 2171239
A52: 2 | B52: 2309804 | C52: POULAIN Stéphane | D52: S | E52: 2A | F52: 410 | G52: V05 | H52: 7 | I52: =VLOOKUP(B52,Dupli!$A$1:$J$30000,3,0) -> POULAIN | J52: =VLOOKUP(B52,Dupli!$A$1:$J$30000,4,0) -> Stéphane | K52: S | L52: 2A | M52: 410 | N52: V05 | O52: FR | P52: =VLOOKUP(B52,Dupli!$A$1:$I$30000,6,0) -> S | Q52: =VLOOKUP(B52,Dupli!$A$1:$I$30000,5,0) -> 2A | R52: =VLOOKUP(B52,Dupli!$A$1:$I$30000,8,0) -> 415 | S52: =VLOOKUP(B52,Dupli!$A$1:$I$30000,7,0) -> V05 | T52: =VLOOKUP(B52,Dupli!$A$1:$I$30000,9,0) -> FR | W52: erreur | Z52: =IF(OR(E52="3A",E52="3B",E52="4A",E52="4B",E52="4C",E52="4D"),B52,VLOOKUP(B52,Phase2!$A$2:$A$30000,1,0)) ->  | AA52: =IF(OR(E52="2A",E52="2B"),B52,VLOOKUP(B52,Phase3!$A$2:$A$29999,1,0)) -> 2309804
A53: 3 | B53: 1520083 | C53: PILLARD Jean-Michel | D53: V | E53: 2B | F53: 635 | G53: V24 | H53: 22 | I53: =VLOOKUP(B53,Dupli!$A$1:$J$30000,3,0) -> PILLARD | J53: =VLOOKUP(B53,Dupli!$A$1:$J$30000,4,0) -> Jean-Michel | K53: V | L53: 2B | M53: 635 | N53: V24 | O53: FR | P53: =VLOOKUP(B53,Dupli!$A$1:$I$30000,6,0) -> V | Q53: =VLOOKUP(B53,Dupli!$A$1:$I$30000,5,0) -> 2B | R53: =VLOOKUP(B53,Dupli!$A$1:$I$30000,8,0) -> 640 | S53: =VLOOKUP(B53,Dupli!$A$1:$I$30000,7,0) -> V24 | T53: =VLOOKUP(B53,Dupli!$A$1:$I$30000,9,0) -> FR | W53: erreur | Z53: =IF(OR(E53="3A",E53="3B",E53="4A",E53="4B",E53="4C",E53="4D"),B53,VLOOKUP(B53,Phase2!$A$2:$A$30000,1,0)) ->  | AA53: =IF(OR(E53="2A",E53="2B"),B53,VLOOKUP(B53,Phase3!$A$2:$A$29999,1,0)) -> 1520083
A54: 4 | B54: 1770991 | C54: NOEL Jean-Pierre | D54: D | E54: 3A | F54: 965 | G54: V24 | H54: 15 | I54: =VLOOKUP(B54,Dupli!$A$1:$J$30000,3,0) -> NOEL | J54: =VLOOKUP(B54,Dupli!$A$1:$J$30000,4,0) -> Jean-Pierre | K54: D | L54: 3A | M54: 965 | N54: V24 | O54: FR | P54: =VLOOKUP(B54,Dupli!$A$1:$I$30000,6,0) -> D | Q54: =VLOOKUP(B54,Dupli!$A$1:$I$30000,5,0) -> 3A | R54: =VLOOKUP(B54,Dupli!$A$1:$I$30000,8,0) -> 979 | S54: =VLOOKUP(B54,Dupli!$A$1:$I$30000,7,0) -> V24 | T54: =VLOOKUP(B54,Dupli!$A$1:$I$30000,9,0) -> FR | W54: erreur | Z54: =IF(OR(E54="3A",E54="3B",E54="4A",E54="4B",E54="4C",E54="4D"),B54,VLOOKUP(B54,Phase2!$A$2:$A$30000,1,0)) -> 1770991 | AA54: =IF(OR(E54="2A",E54="2B"),B54,VLOOKUP(B54,Phase3!$A$2:$A$29999,1,0)) -> 1770991
A55: 5 | B55: 2237042 | C55: RENSON Marie-Hélène | D55: V | E55: 3B | F55: 1243 | G55: V32 | H55: 4 | I55: =VLOOKUP(B55,Dupli!$A$1:$J$30000,3,0) -> RENSON | J55: =VLOOKUP(B55,Dupli!$A$1:$J$30000,4,0) -> Marie-Hélène | K55: V | L55: 3B | M55: 1243 | N55: V32 | O55: FR | P55: =VLOOKUP(B55,Dupli!$A$1:$I$30000,6,0) -> V | Q55: =VLOOKUP(B55,Dupli!$A$1:$I$30000,5,0) -> 3B | R55: =VLOOKUP(B55,Dupli!$A$1:$I$30000,8,0) -> 1256 | S55: =VLOOKUP(B55,Dupli!$A$1:$I$30000,7,0) -> V32 | T55: =VLOOKUP(B55,Dupli!$A$1:$I$30000,9,0) -> FR | W55: erreur | Z55: =IF(OR(E55="3A",E55="3B",E55="4A",E55="4B",E55="4C",E55="4D"),B55,VLOOKUP(B55,Phase2!$A$2:$A$30000,1,0)) -> 2237042 | AA55: =IF(OR(E55="2A",E55="2B"),B55,VLOOKUP(B55,Phase3!$A$2:$A$29999,1,0)) -> 2237042
A56: 6 | B56: 2001045 | C56: SACHS Arlette | D56: V | E56: 3B | F56: 1543 | G56: V24 | H56: 31 | I56: =VLOOKUP(B56,Dupli!$A$1:$J$30000,3,0) -> SACHS | J56: =VLOOKUP(B56,Dupli!$A$1:$J$30000,4,0) -> Arlette | K56: V | L56: 3B | M56: 1543 | N56: V24 | O56: FR | P56: =VLOOKUP(B56,Dupli!$A$1:$I$30000,6,0) -> V | Q56: =VLOOKUP(B56,Dupli!$A$1:$I$30000,5,0) -> 3B | R56: =VLOOKUP(B56,Dupli!$A$1:$I$30000,8,0) -> 1556 | S56: =VLOOKUP(B56,Dupli!$A$1:$I$30000,7,0) -> V24 | T56: =VLOOKUP(B56,Dupli!$A$1:$I$30000,9,0) -> FR | W56: erreur | Z56: =IF(OR(E56="3A",E56="3B",E56="4A",E56="4B",E56="4C",E56="4D"),B56,VLOOKUP(B56,Phase2!$A$2:$A$30000,1,0)) -> 2001045 | AA56: =IF(OR(E56="2A",E56="2B"),B56,VLOOKUP(B56,Phase3!$A$2:$A$29999,1,0)) -> 2001045
A57: 7 | B57: 1092028 | C57: CAMUS Gioconde | D57: D | E57: 4A | F57: 1763 | G57: V33 | H57: 12 | I57: =VLOOKUP(B57,Dupli!$A$1:$J$30000,3,0) -> CAMUS | J57: =VLOOKUP(B57,Dupli!$A$1:$J$30000,4,0) -> Gioconde | K57: D | L57: 4A | M57: 1763 | N57: V33 | O57: FR | P57: =VLOOKUP(B57,Dupli!$A$1:$I$30000,6,0) -> D | Q57: =VLOOKUP(B57,Dupli!$A$1:$I$30000,5,0) -> 4A | R57: =VLOOKUP(B57,Dupli!$A$1:$I$30000,8,0) -> 1806 | S57: =VLOOKUP(B57,Dupli!$A$1:$I$30000,7,0) -> V33 | T57: =VLOOKUP(B57,Dupli!$A$1:$I$30000,9,0) -> FR | W57: erreur | Z57: =IF(OR(E57="3A",E57="3B",E57="4A",E57="4B",E57="4C",E57="4D"),B57,VLOOKUP(B57,Phase2!$A$2:$A$30000,1,0)) -> 1092028 | AA57: =IF(OR(E57="2A",E57="2B"),B57,VLOOKUP(B57,Phase3!$A$2:$A$29999,1,0)) -> 1092028
A58: 8 | B58: 1032166 | C58: GENT Sylvain | D58: S | E58: 4A | F58: 1857 | G58: V27 | H58: 5 | I58: =VLOOKUP(B58,Dupli!$A$1:$J$30000,3,0) -> GENT | J58: =VLOOKUP(B58,Dupli!$A$1:$J$30000,4,0) -> Sylvain | K58: S | L58: 4A | M58: 1857 | N58: V27 | O58: FR | P58: =VLOOKUP(B58,Dupli!$A$1:$I$30000,6,0) -> S | Q58: =VLOOKUP(B58,Dupli!$A$1:$I$30000,5,0) -> 4A | R58: =VLOOKUP(B58,Dupli!$A$1:$I$30000,8,0) -> 1900 | S58: =VLOOKUP(B58,Dupli!$A$1:$I$30000,7,0) -> V27 | T58: =VLOOKUP(B58,Dupli!$A$1:$I$30000,9,0) -> FR | W58: erreur | Z58: =IF(OR(E58="3A",E58="3B",E58="4A",E58="4B",E58="4C",E58="4D"),B58,VLOOKUP(B58,Phase2!$A$2:$A$30000,1,0)) -> 1032166 | AA58: =IF(OR(E58="2A",E58="2B"),B58,VLOOKUP(B58,Phase3!$A$2:$A$29999,1,0)) -> 1032166
A59: 9 | B59: 1771018 | C59: GUILCHER Cathy | D59: V | E59: 4A | F59: 2039 | G59: V24 | H59: 10 | I59: =VLOOKUP(B59,Dupli!$A$1:$J$30000,3,0) -> GUILCHER | J59: =VLOOKUP(B59,Dupli!$A$1:$J$30000,4,0) -> Cathy | K59: =D59 -> V | L59: =E59 -> 4A | M59: =F59 -> 2039 | N59: =G59 -> V24 | O59: FR | P59: =VLOOKUP(B59,Dupli!$A$1:$I$30000,6,0) -> V | Q59: =VLOOKUP(B59,Dupli!$A$1:$I$30000,5,0) -> 4A | R59: =VLOOKUP(B59,Dupli!$A$1:$I$30000,8,0) -> 2079 | S59: =VLOOKUP(B59,Dupli!$A$1:$I$30000,7,0) -> V24 | T59: =VLOOKUP(B59,Dupli!$A$1:$I$30000,9,0) -> FR | W59: erreur | Z59: =IF(OR(E59="3A",E59="3B",E59="4A",E59="4B",E59="4C",E59="4D"),B59,VLOOKUP(B59,Phase2!$A$2:$A$30000,1,0)) -> 1771018 | AA59: =IF(OR(E59="2A",E59="2B"),B59,VLOOKUP(B59,Phase3!$A$2:$A$29999,1,0)) -> 1771018
A60: 10 | B60: 1105197 | C60: FOURDRAIN Chantal | D60: V | E60: 4A | F60: 2169 | G60: V37 | H60: 20 | I60: =VLOOKUP(B60,Dupli!$A$1:$J$30000,3,0) -> FOURDRAIN | J60: =VLOOKUP(B60,Dupli!$A$1:$J$30000,4,0) -> Chantal | K60: V | L60: 4A | M60: 2169 | N60: V37 | O60: FR | P60: =VLOOKUP(B60,Dupli!$A$1:$I$30000,6,0) -> V | Q60: =VLOOKUP(B60,Dupli!$A$1:$I$30000,5,0) -> 4A | R60: =VLOOKUP(B60,Dupli!$A$1:$I$30000,8,0) -> 2209 | S60: =VLOOKUP(B60,Dupli!$A$1:$I$30000,7,0) -> V37 | T60: =VLOOKUP(B60,Dupli!$A$1:$I$30000,9,0) -> FR | W60: erreur | Z60: =IF(OR(E60="3A",E60="3B",E60="4A",E60="4B",E60="4C",E60="4D"),B60,VLOOKUP(B60,Phase2!$A$2:$A$30000,1,0)) -> 1105197 | AA60: =IF(OR(E60="2A",E60="2B"),B60,VLOOKUP(B60,Phase3!$A$2:$A$29999,1,0)) -> 1105197
A61: 11 | B61: 2550711 | C61: ALBARELLI Christiane | D61: V | E61: 4A | F61: 2249 | G61: V24 | H61: 18 | I61: =VLOOKUP(B61,Dupli!$A$1:$J$30000,3,0) -> ALBARELLI | J61: =VLOOKUP(B61,Dupli!$A$1:$J$30000,4,0) -> Christiane | K61: V | L61: 4A | M61: 2249 | N61: V24 | O61: FR | P61: =VLOOKUP(B61,Dupli!$A$1:$I$30000,6,0) -> V | Q61: =VLOOKUP(B61,Dupli!$A$1:$I$30000,5,0) -> 4A | R61: =VLOOKUP(B61,Dupli!$A$1:$I$30000,8,0) -> 2288 | S61: =VLOOKUP(B61,Dupli!$A$1:$I$30000,7,0) -> V24 | T61: =VLOOKUP(B61,Dupli!$A$1:$I$30000,9,0) -> FR | W61: erreur | Z61: =IF(OR(E61="3A",E61="3B",E61="4A",E61="4B",E61="4C",E61="4D"),B61,VLOOKUP(B61,Phase2!$A$2:$A$30000,1,0)) -> 2550711 | AA61: =IF(OR(E61="2A",E61="2B"),B61,VLOOKUP(B61,Phase3!$A$2:$A$29999,1,0)) -> 2550711
A62: 12 | B62: 1040895 | C62: MORIN Evelyne | D62: V | E62: 4A | F62: 2259 | G62: V24 | H62: 12 | I62: =VLOOKUP(B62,Dupli!$A$1:$J$30000,3,0) -> MORIN | J62: =VLOOKUP(B62,Dupli!$A$1:$J$30000,4,0) -> Evelyne | K62: V | L62: 4A | M62: 2259 | N62: V24 | O62: FR | P62: =VLOOKUP(B62,Dupli!$A$1:$I$30000,6,0) -> V | Q62: =VLOOKUP(B62,Dupli!$A$1:$I$30000,5,0) -> 4A | R62: =VLOOKUP(B62,Dupli!$A$1:$I$30000,8,0) -> 2298 | S62: =VLOOKUP(B62,Dupli!$A$1:$I$30000,7,0) -> V24 | T62: =VLOOKUP(B62,Dupli!$A$1:$I$30000,9,0) -> FR | W62: erreur | Z62: =IF(OR(E62="3A",E62="3B",E62="4A",E62="4B",E62="4C",E62="4D"),B62,VLOOKUP(B62,Phase2!$A$2:$A$30000,1,0)) -> 1040895 | AA62: =IF(OR(E62="2A",E62="2B"),B62,VLOOKUP(B62,Phase3!$A$2:$A$29999,1,0)) -> 1040895
A63: 13 | B63: 2667365 | C63: ALLOUCHE Nathalie | D63: S | E63: 4B | F63: 2325 | G63: V19 | H63: 29 | I63: =VLOOKUP(B63,Dupli!$A$1:$J$30000,3,0) -> ALLOUCHE | J63: =VLOOKUP(B63,Dupli!$A$1:$J$30000,4,0) -> Nathalie | K63: S | L63: 4B | M63: 2325 | N63: V19 | O63: FR | P63: =VLOOKUP(B63,Dupli!$A$1:$I$30000,6,0) -> S | Q63: =VLOOKUP(B63,Dupli!$A$1:$I$30000,5,0) -> 4B | R63: =VLOOKUP(B63,Dupli!$A$1:$I$30000,8,0) -> 2364 | S63: =VLOOKUP(B63,Dupli!$A$1:$I$30000,7,0) -> V19 | T63: =VLOOKUP(B63,Dupli!$A$1:$I$30000,9,0) -> FR | W63: erreur | Z63: =IF(OR(E63="3A",E63="3B",E63="4A",E63="4B",E63="4C",E63="4D"),B63,VLOOKUP(B63,Phase2!$A$2:$A$30000,1,0)) -> 2667365 | AA63: =IF(OR(E63="2A",E63="2B"),B63,VLOOKUP(B63,Phase3!$A$2:$A$29999,1,0)) -> 2667365
A64: 14 | B64: 2024141 | C64: VAN PETEGHEM Dominique | D64: D | E64: 4B | F64: 2345 | G64: S16 | H64: 24 | I64: =VLOOKUP(B64,Dupli!$A$1:$J$30000,3,0) -> VAN PETEGHEM | J64: =VLOOKUP(B64,Dupli!$A$1:$J$30000,4,0) -> Dominique | K64: D | L64: 4B | M64: 2345 | N64: S16 | O64: FR | P64: =VLOOKUP(B64,Dupli!$A$1:$I$30000,6,0) -> D | Q64: =VLOOKUP(B64,Dupli!$A$1:$I$30000,5,0) -> 4B | R64: =VLOOKUP(B64,Dupli!$A$1:$I$30000,8,0) -> 2384 | S64: =VLOOKUP(B64,Dupli!$A$1:$I$30000,7,0) -> S16 | T64: =VLOOKUP(B64,Dupli!$A$1:$I$30000,9,0) -> FR | U64: =IF(K64=P64,"","erreur") ->  | V64: =IF(L64=Q64,"","erreur") ->  | W64: =IF(M64=R64,"","erreur") -> erreur | X64: =IF(N64=S64,"","erreur") ->  | Y64: =IF(O64=T64,"","erreur") ->  | Z64: =IF(OR(E64="3A",E64="3B",E64="4A",E64="4B",E64="4C",E64="4D"),B64,VLOOKUP(B64,Phase2!$A$2:$A$30000,1,0)) -> 2024141 | AA64: =IF(OR(E64="2A",E64="2B"),B64,VLOOKUP(B64,Phase3!$A$2:$A$29999,1,0)) -> 2024141
A65: 15 | B65: 1004972 | C65: BOUYAUX Valérie | D65: D | E65: 4B | F65: 2408 | G65: V24 | H65: 27 | I65: =VLOOKUP(B65,Dupli!$A$1:$J$30000,3,0) -> BOUYAUX | J65: =VLOOKUP(B65,Dupli!$A$1:$J$30000,4,0) -> Valérie | K65: D | L65: 4B | M65: 2408 | N65: V24 | O65: FR | P65: =VLOOKUP(B65,Dupli!$A$1:$I$30000,6,0) -> D | Q65: =VLOOKUP(B65,Dupli!$A$1:$I$30000,5,0) -> 4B | R65: =VLOOKUP(B65,Dupli!$A$1:$I$30000,8,0) -> 2447 | S65: =VLOOKUP(B65,Dupli!$A$1:$I$30000,7,0) -> V24 | T65: =VLOOKUP(B65,Dupli!$A$1:$I$30000,9,0) -> FR | W65: erreur | Z65: =IF(OR(E65="3A",E65="3B",E65="4A",E65="4B",E65="4C",E65="4D"),B65,VLOOKUP(B65,Phase2!$A$2:$A$30000,1,0)) -> 1004972 | AA65: =IF(OR(E65="2A",E65="2B"),B65,VLOOKUP(B65,Phase3!$A$2:$A$29999,1,0)) -> 1004972
A66: 16 | B66: 1154115 | C66: BARSI Catherine | D66: V | E66: 4B | F66: 2629 | G66: V19 | H66: 23 | I66: =VLOOKUP(B66,Dupli!$A$1:$J$30000,3,0) -> BARSI | J66: =VLOOKUP(B66,Dupli!$A$1:$J$30000,4,0) -> Catherine | K66: V | L66: 4B | M66: 2629 | N66: V19 | O66: FR | P66: =VLOOKUP(B66,Dupli!$A$1:$I$30000,6,0) -> V | Q66: =VLOOKUP(B66,Dupli!$A$1:$I$30000,5,0) -> 4B | R66: =VLOOKUP(B66,Dupli!$A$1:$I$30000,8,0) -> 2667 | S66: =VLOOKUP(B66,Dupli!$A$1:$I$30000,7,0) -> V19 | T66: =VLOOKUP(B66,Dupli!$A$1:$I$30000,9,0) -> FR | W66: erreur | Z66: =IF(OR(E66="3A",E66="3B",E66="4A",E66="4B",E66="4C",E66="4D"),B66,VLOOKUP(B66,Phase2!$A$2:$A$30000,1,0)) -> 1154115 | AA66: =IF(OR(E66="2A",E66="2B"),B66,VLOOKUP(B66,Phase3!$A$2:$A$29999,1,0)) -> 1154115
A67: 17 | B67: 1170509 | C67: REGNIER Marie-France | D67: V | E67: 4B | F67: 2633 | G67: V24 | H67: 28 | I67: =VLOOKUP(B67,Dupli!$A$1:$J$30000,3,0) -> REGNIER | J67: =VLOOKUP(B67,Dupli!$A$1:$J$30000,4,0) -> Marie-France | K67: V | L67: 4B | M67: 2633 | N67: V24 | O67: FR | P67: =VLOOKUP(B67,Dupli!$A$1:$I$30000,6,0) -> V | Q67: =VLOOKUP(B67,Dupli!$A$1:$I$30000,5,0) -> 4B | R67: =VLOOKUP(B67,Dupli!$A$1:$I$30000,8,0) -> 2671 | S67: =VLOOKUP(B67,Dupli!$A$1:$I$30000,7,0) -> V24 | T67: =VLOOKUP(B67,Dupli!$A$1:$I$30000,9,0) -> FR | W67: erreur | Z67: =IF(OR(E67="3A",E67="3B",E67="4A",E67="4B",E67="4C",E67="4D"),B67,VLOOKUP(B67,Phase2!$A$2:$A$30000,1,0)) -> 1170509 | AA67: =IF(OR(E67="2A",E67="2B"),B67,VLOOKUP(B67,Phase3!$A$2:$A$29999,1,0)) -> 1170509
A68: 18 | B68: 1026261 | C68: LEPOIVRE Jacques | D68: D | E68: 4C | F68: 3381 | G68: V24 | H68: 25 | I68: =VLOOKUP(B68,Dupli!$A$1:$J$30000,3,0) -> LEPOIVRE | J68: =VLOOKUP(B68,Dupli!$A$1:$J$30000,4,0) -> Jacques | K68: D | L68: 4C | M68: 3381 | N68: V24 | O68: FR | P68: =VLOOKUP(B68,Dupli!$A$1:$I$30000,6,0) -> D | Q68: =VLOOKUP(B68,Dupli!$A$1:$I$30000,5,0) -> 4C | R68: =VLOOKUP(B68,Dupli!$A$1:$I$30000,8,0) -> 3419 | S68: =VLOOKUP(B68,Dupli!$A$1:$I$30000,7,0) -> V24 | T68: =VLOOKUP(B68,Dupli!$A$1:$I$30000,9,0) -> FR | W68: erreur | Z68: =IF(OR(E68="3A",E68="3B",E68="4A",E68="4B",E68="4C",E68="4D"),B68,VLOOKUP(B68,Phase2!$A$2:$A$30000,1,0)) -> 1026261 | AA68: =IF(OR(E68="2A",E68="2B"),B68,VLOOKUP(B68,Phase3!$A$2:$A$29999,1,0)) -> 1026261
A69: 19 | B69: 1006929 | C69: GRANDCOIN Marie-Noëlle | D69: S | E69: 4C | F69: 3383 | G69: V21 | H69: 21 | I69: =VLOOKUP(B69,Dupli!$A$1:$J$30000,3,0) -> GRANDCOIN | J69: =VLOOKUP(B69,Dupli!$A$1:$J$30000,4,0) -> Marie-Noëlle | K69: S | L69: 4C | M69: 3383 | N69: V21 | O69: FR | P69: =VLOOKUP(B69,Dupli!$A$1:$I$30000,6,0) -> S | Q69: =VLOOKUP(B69,Dupli!$A$1:$I$30000,5,0) -> 4C | R69: =VLOOKUP(B69,Dupli!$A$1:$I$30000,8,0) -> 3421 | S69: =VLOOKUP(B69,Dupli!$A$1:$I$30000,7,0) -> V21 | T69: =VLOOKUP(B69,Dupli!$A$1:$I$30000,9,0) -> FR | W69: erreur | Z69: =IF(OR(E69="3A",E69="3B",E69="4A",E69="4B",E69="4C",E69="4D"),B69,VLOOKUP(B69,Phase2!$A$2:$A$30000,1,0)) -> 1006929 | AA69: =IF(OR(E69="2A",E69="2B"),B69,VLOOKUP(B69,Phase3!$A$2:$A$29999,1,0)) -> 
A70: 20 | B70: 1005053 | C70: TIMBERT Évelyne | D70: V | E70: 4D | F70: 3730 | G70: V03 | H70: 31 | I70: =VLOOKUP(B70,Dupli!$A$1:$J$30000,3,0) -> TIMBERT | J70: =VLOOKUP(B70,Dupli!$A$1:$J$30000,4,0) -> Évelyne | K70: V | L70: 4D | M70: 3730 | N70: V03 | O70: FR | P70: =VLOOKUP(B70,Dupli!$A$1:$I$30000,6,0) -> V | Q70: =VLOOKUP(B70,Dupli!$A$1:$I$30000,5,0) -> 4D | R70: =VLOOKUP(B70,Dupli!$A$1:$I$30000,8,0) -> 3768 | S70: =VLOOKUP(B70,Dupli!$A$1:$I$30000,7,0) -> V03 | T70: =VLOOKUP(B70,Dupli!$A$1:$I$30000,9,0) -> FR | W70: erreur | Z70: =IF(OR(E70="3A",E70="3B",E70="4A",E70="4B",E70="4C",E70="4D"),B70,VLOOKUP(B70,Phase2!$A$2:$A$30000,1,0)) -> 1005053 | AA70: =IF(OR(E70="2A",E70="2B"),B70,VLOOKUP(B70,Phase3!$A$2:$A$29999,1,0)) -> 1005053
A71: 21 | B71: 1185281 | C71: AULLO Martine | D71: V | E71: 4D | F71: 3780 | G71: V27 | H71: 30 | I71: =VLOOKUP(B71,Dupli!$A$1:$J$30000,3,0) -> AULLO | J71: =VLOOKUP(B71,Dupli!$A$1:$J$30000,4,0) -> Martine | K71: V | L71: 4D | M71: 3780 | N71: V27 | O71: FR | P71: =VLOOKUP(B71,Dupli!$A$1:$I$30000,6,0) -> V | Q71: =VLOOKUP(B71,Dupli!$A$1:$I$30000,5,0) -> 4D | R71: =VLOOKUP(B71,Dupli!$A$1:$I$30000,8,0) -> 3817 | S71: =VLOOKUP(B71,Dupli!$A$1:$I$30000,7,0) -> V27 | T71: =VLOOKUP(B71,Dupli!$A$1:$I$30000,9,0) -> FR | W71: erreur | Z71: =IF(OR(E71="3A",E71="3B",E71="4A",E71="4B",E71="4C",E71="4D"),B71,VLOOKUP(B71,Phase2!$A$2:$A$30000,1,0)) -> 1185281 | AA71: =IF(OR(E71="2A",E71="2B"),B71,VLOOKUP(B71,Phase3!$A$2:$A$29999,1,0)) -> 1185281
A72: 22 | B72: 1003020 | C72: FOURNIER Annie | D72: V | E72: 4D | F72: 3853 | G72: V24 | H72: 34 | I72: =VLOOKUP(B72,Dupli!$A$1:$J$30000,3,0) -> FOURNIER | J72: =VLOOKUP(B72,Dupli!$A$1:$J$30000,4,0) -> Annie | K72: V | L72: 4D | M72: 3853 | N72: V24 | O72: FR | P72: =VLOOKUP(B72,Dupli!$A$1:$I$30000,6,0) -> V | Q72: =VLOOKUP(B72,Dupli!$A$1:$I$30000,5,0) -> 4D | R72: =VLOOKUP(B72,Dupli!$A$1:$I$30000,8,0) -> 3890 | S72: =VLOOKUP(B72,Dupli!$A$1:$I$30000,7,0) -> V24 | T72: =VLOOKUP(B72,Dupli!$A$1:$I$30000,9,0) -> FR | W72: erreur | Z72: =IF(OR(E72="3A",E72="3B",E72="4A",E72="4B",E72="4C",E72="4D"),B72,VLOOKUP(B72,Phase2!$A$2:$A$30000,1,0)) -> 1003020 | AA72: =IF(OR(E72="2A",E72="2B"),B72,VLOOKUP(B72,Phase3!$A$2:$A$29999,1,0)) -> 1003020
A73: 23 | B73: 2667612 | C73: TOUIOUINE Dominique | D73: S | E73: 5A | F73: 4978 | G73: V24 | H73: 33 | I73: =VLOOKUP(B73,Dupli!$A$1:$J$30000,3,0) -> TOUIOUINE | J73: =VLOOKUP(B73,Dupli!$A$1:$J$30000,4,0) -> Dominique | K73: S | L73: 5A | M73: 4978 | N73: V24 | O73: FR | P73: =VLOOKUP(B73,Dupli!$A$1:$I$30000,6,0) -> S | Q73: =VLOOKUP(B73,Dupli!$A$1:$I$30000,5,0) -> 5A | R73: =VLOOKUP(B73,Dupli!$A$1:$I$30000,8,0) -> 5070 | S73: =VLOOKUP(B73,Dupli!$A$1:$I$30000,7,0) -> V24 | T73: =VLOOKUP(B73,Dupli!$A$1:$I$30000,9,0) -> FR | W73: erreur | Z73: =IF(OR(E73="3A",E73="3B",E73="4A",E73="4B",E73="4C",E73="4D"),B73,VLOOKUP(B73,Phase2!$A$2:$A$30000,1,0)) ->  | AA73: =IF(OR(E73="2A",E73="2B"),B73,VLOOKUP(B73,Phase3!$A$2:$A$29999,1,0)) -> 
A74: 24 | B74: 1010836 | C74: PUJOL Muriel | D74: V | E74: 5A | F74: 5195 | G74: V24 | H74: 36 | I74: =VLOOKUP(B74,Dupli!$A$1:$J$30000,3,0) -> PUJOL | J74: =VLOOKUP(B74,Dupli!$A$1:$J$30000,4,0) -> Muriel | K74: V | L74: 5A | M74: 5195 | N74: V24 | O74: FR | P74: =VLOOKUP(B74,Dupli!$A$1:$I$30000,6,0) -> V | Q74: =VLOOKUP(B74,Dupli!$A$1:$I$30000,5,0) -> 5A | R74: =VLOOKUP(B74,Dupli!$A$1:$I$30000,8,0) -> 5287 | S74: =VLOOKUP(B74,Dupli!$A$1:$I$30000,7,0) -> V24 | T74: =VLOOKUP(B74,Dupli!$A$1:$I$30000,9,0) -> FR | W74: erreur | Z74: =IF(OR(E74="3A",E74="3B",E74="4A",E74="4B",E74="4C",E74="4D"),B74,VLOOKUP(B74,Phase2!$A$2:$A$30000,1,0)) -> 1010836 | AA74: =IF(OR(E74="2A",E74="2B"),B74,VLOOKUP(B74,Phase3!$A$2:$A$29999,1,0)) -> 1010836
A75: 25 | B75: 1281015 | C75: RABUT Françoise | D75: D | E75: 5B | F75: 5272 | G75: V24 | H75: 35 | I75: =VLOOKUP(B75,Dupli!$A$1:$J$30000,3,0) -> RABUT | J75: =VLOOKUP(B75,Dupli!$A$1:$J$30000,4,0) -> Françoise | K75: D | L75: 5B | M75: 5272 | N75: V24 | O75: FR | P75: =VLOOKUP(B75,Dupli!$A$1:$I$30000,6,0) -> D | Q75: =VLOOKUP(B75,Dupli!$A$1:$I$30000,5,0) -> 5B | R75: =VLOOKUP(B75,Dupli!$A$1:$I$30000,8,0) -> 5361 | S75: =VLOOKUP(B75,Dupli!$A$1:$I$30000,7,0) -> V24 | T75: =VLOOKUP(B75,Dupli!$A$1:$I$30000,9,0) -> FR | W75: erreur | Z75: =IF(OR(E75="3A",E75="3B",E75="4A",E75="4B",E75="4C",E75="4D"),B75,VLOOKUP(B75,Phase2!$A$2:$A$30000,1,0)) -> 1281015 | AA75: =IF(OR(E75="2A",E75="2B"),B75,VLOOKUP(B75,Phase3!$A$2:$A$29999,1,0)) -> 
A76: 26 | B76: 1147426 | C76: POPELUT Pascale | D76: V | E76: 5B | F76: 5655 | G76: V24 | H76: 1 | I76: =VLOOKUP(B76,Dupli!$A$1:$J$30000,3,0) -> POPELUT | J76: =VLOOKUP(B76,Dupli!$A$1:$J$30000,4,0) -> Pascale | K76: =D76 -> V | L76: 5B | M76: 5655 | N76: V24 | O76: FR | P76: =VLOOKUP(B76,Dupli!$A$1:$I$30000,6,0) -> V | Q76: =VLOOKUP(B76,Dupli!$A$1:$I$30000,5,0) -> 5B | R76: =VLOOKUP(B76,Dupli!$A$1:$I$30000,8,0) -> 5743 | S76: =VLOOKUP(B76,Dupli!$A$1:$I$30000,7,0) -> V24 | T76: =VLOOKUP(B76,Dupli!$A$1:$I$30000,9,0) -> FR | W76: erreur | Z76: =IF(OR(E76="3A",E76="3B",E76="4A",E76="4B",E76="4C",E76="4D"),B76,VLOOKUP(B76,Phase2!$A$2:$A$30000,1,0)) -> 1147426 | AA76: =IF(OR(E76="2A",E76="2B"),B76,VLOOKUP(B76,Phase3!$A$2:$A$29999,1,0)) -> 1147426
A77: 27 | B77: 1008314 | C77: DUCRET Claire | D77: V | E77: 5B | F77: 5805 | G77: V24 | H77: 2 | I77: =VLOOKUP(B77,Dupli!$A$1:$J$30000,3,0) -> DUCRET | J77: =VLOOKUP(B77,Dupli!$A$1:$J$30000,4,0) -> Claire | K77: V | L77: 5B | M77: 5805 | N77: V24 | O77: FR | P77: =VLOOKUP(B77,Dupli!$A$1:$I$30000,6,0) -> V | Q77: =VLOOKUP(B77,Dupli!$A$1:$I$30000,5,0) -> 5B | R77: =VLOOKUP(B77,Dupli!$A$1:$I$30000,8,0) -> 5892 | S77: =VLOOKUP(B77,Dupli!$A$1:$I$30000,7,0) -> V24 | T77: =VLOOKUP(B77,Dupli!$A$1:$I$30000,9,0) -> FR | W77: erreur | Z77: =IF(OR(E77="3A",E77="3B",E77="4A",E77="4B",E77="4C",E77="4D"),B77,VLOOKUP(B77,Phase2!$A$2:$A$30000,1,0)) -> 1008314 | AA77: =IF(OR(E77="2A",E77="2B"),B77,VLOOKUP(B77,Phase3!$A$2:$A$29999,1,0)) -> 
A78: 28 | B78: 1252793 | C78: RIO Jean-Claude | D78: D | E78: 5B | F78: 5998 | G78: V24 | H78: 3 | I78: =VLOOKUP(B78,Dupli!$A$1:$J$30000,3,0) -> RIO | J78: =VLOOKUP(B78,Dupli!$A$1:$J$30000,4,0) -> Jean-Claude | K78: D | L78: 5B | M78: 5998 | N78: V24 | O78: FR | P78: =VLOOKUP(B78,Dupli!$A$1:$I$30000,6,0) -> D | Q78: =VLOOKUP(B78,Dupli!$A$1:$I$30000,5,0) -> 5B | R78: =VLOOKUP(B78,Dupli!$A$1:$I$30000,8,0) -> 6084 | S78: =VLOOKUP(B78,Dupli!$A$1:$I$30000,7,0) -> V24 | T78: =VLOOKUP(B78,Dupli!$A$1:$I$30000,9,0) -> FR | W78: erreur | Z78: =IF(OR(E78="3A",E78="3B",E78="4A",E78="4B",E78="4C",E78="4D"),B78,VLOOKUP(B78,Phase2!$A$2:$A$30000,1,0)) -> 1252793 | AA78: =IF(OR(E78="2A",E78="2B"),B78,VLOOKUP(B78,Phase3!$A$2:$A$29999,1,0)) -> 
A79: 29 | B79: 3330431 | C79: CHIL Dominique | D79: S | E79: 5B | F79: 6101 | G79: V21 | H79: 4 | I79: =VLOOKUP(B79,Dupli!$A$1:$J$30000,3,0) -> CHIL | J79: =VLOOKUP(B79,Dupli!$A$1:$J$30000,4,0) -> Dominique | K79: S | L79: 5B | M79: 6101 | N79: V21 | O79: FR | P79: =VLOOKUP(B79,Dupli!$A$1:$I$30000,6,0) -> S | Q79: =VLOOKUP(B79,Dupli!$A$1:$I$30000,5,0) -> 5B | R79: =VLOOKUP(B79,Dupli!$A$1:$I$30000,8,0) -> 6186 | S79: =VLOOKUP(B79,Dupli!$A$1:$I$30000,7,0) -> V21 | T79: =VLOOKUP(B79,Dupli!$A$1:$I$30000,9,0) -> FR | W79: erreur | Z79: =IF(OR(E79="3A",E79="3B",E79="4A",E79="4B",E79="4C",E79="4D"),B79,VLOOKUP(B79,Phase2!$A$2:$A$30000,1,0)) -> 3330431 | AA79: =IF(OR(E79="2A",E79="2B"),B79,VLOOKUP(B79,Phase3!$A$2:$A$29999,1,0)) -> 
A80: 30 | B80: 1009571 | C80: BAUGÉ Béatrice | D80: V | E80: 5B | F80: 6170 | G80: V24 | H80: 5 | I80: =VLOOKUP(B80,Dupli!$A$1:$J$30000,3,0) -> BAUGÉ | J80: =VLOOKUP(B80,Dupli!$A$1:$J$30000,4,0) -> Béatrice | K80: V | L80: 5B | M80: 6170 | N80: V24 | O80: FR | P80: =VLOOKUP(B80,Dupli!$A$1:$I$30000,6,0) -> V | Q80: =VLOOKUP(B80,Dupli!$A$1:$I$30000,5,0) -> 5B | R80: =VLOOKUP(B80,Dupli!$A$1:$I$30000,8,0) -> 6255 | S80: =VLOOKUP(B80,Dupli!$A$1:$I$30000,7,0) -> V24 | T80: =VLOOKUP(B80,Dupli!$A$1:$I$30000,9,0) -> FR | W80: erreur | Z80: =IF(OR(E80="3A",E80="3B",E80="4A",E80="4B",E80="4C",E80="4D"),B80,VLOOKUP(B80,Phase2!$A$2:$A$30000,1,0)) -> 1009571 | AA80: =IF(OR(E80="2A",E80="2B"),B80,VLOOKUP(B80,Phase3!$A$2:$A$29999,1,0)) -> 
A81: 31 | B81: 1013062 | C81: BELLANGER Christelle | D81: S | E81: 5C | F81: 6536 | G81: V24 | H81: 6 | I81: =VLOOKUP(B81,Dupli!$A$1:$J$30000,3,0) -> BELLANGER | J81: =VLOOKUP(B81,Dupli!$A$1:$J$30000,4,0) -> Christelle | K81: S | L81: 5C | M81: 6536 | N81: V24 | O81: FR | P81: =VLOOKUP(B81,Dupli!$A$1:$I$30000,6,0) -> S | Q81: =VLOOKUP(B81,Dupli!$A$1:$I$30000,5,0) -> 5C | R81: =VLOOKUP(B81,Dupli!$A$1:$I$30000,8,0) -> 6620 | S81: =VLOOKUP(B81,Dupli!$A$1:$I$30000,7,0) -> V24 | T81: =VLOOKUP(B81,Dupli!$A$1:$I$30000,9,0) -> FR | W81: erreur | Z81: =IF(OR(E81="3A",E81="3B",E81="4A",E81="4B",E81="4C",E81="4D"),B81,VLOOKUP(B81,Phase2!$A$2:$A$30000,1,0)) -> 1013062 | AA81: =IF(OR(E81="2A",E81="2B"),B81,VLOOKUP(B81,Phase3!$A$2:$A$29999,1,0)) -> 
A82: 32 | B82: 2664852 | C82: RENAUDIN Christiane | D82: D | E82: 5C | F82: 6547 | G82: V24 | H82: 7 | I82: =VLOOKUP(B82,Dupli!$A$1:$J$30000,3,0) -> RENAUDIN | J82: =VLOOKUP(B82,Dupli!$A$1:$J$30000,4,0) -> Christiane | K82: D | L82: 5C | M82: 6547 | N82: V24 | O82: FR | P82: =VLOOKUP(B82,Dupli!$A$1:$I$30000,6,0) -> D | Q82: =VLOOKUP(B82,Dupli!$A$1:$I$30000,5,0) -> 5C | R82: =VLOOKUP(B82,Dupli!$A$1:$I$30000,8,0) -> 6631 | S82: =VLOOKUP(B82,Dupli!$A$1:$I$30000,7,0) -> V24 | T82: =VLOOKUP(B82,Dupli!$A$1:$I$30000,9,0) -> FR | W82: erreur | Z82: =IF(OR(E82="3A",E82="3B",E82="4A",E82="4B",E82="4C",E82="4D"),B82,VLOOKUP(B82,Phase2!$A$2:$A$30000,1,0)) ->  | AA82: =IF(OR(E82="2A",E82="2B"),B82,VLOOKUP(B82,Phase3!$A$2:$A$29999,1,0)) -> 
A83: 33 | B83: 1222504 | C83: RIO Hélène | D83: V | E83: 5C | F83: 6578 | G83: V24 | H83: 7 | I83: =VLOOKUP(B83,Dupli!$A$1:$J$30000,3,0) -> RIO | J83: =VLOOKUP(B83,Dupli!$A$1:$J$30000,4,0) -> Hélène | K83: V | L83: 5C | M83: 6578 | N83: V24 | O83: FR | P83: =VLOOKUP(B83,Dupli!$A$1:$I$30000,6,0) -> V | Q83: =VLOOKUP(B83,Dupli!$A$1:$I$30000,5,0) -> 5C | R83: =VLOOKUP(B83,Dupli!$A$1:$I$30000,8,0) -> 6662 | S83: =VLOOKUP(B83,Dupli!$A$1:$I$30000,7,0) -> V24 | T83: =VLOOKUP(B83,Dupli!$A$1:$I$30000,9,0) -> FR | W83: erreur | Z83: =IF(OR(E83="3A",E83="3B",E83="4A",E83="4B",E83="4C",E83="4D"),B83,VLOOKUP(B83,Phase2!$A$2:$A$30000,1,0)) -> 1222504 | AA83: =IF(OR(E83="2A",E83="2B"),B83,VLOOKUP(B83,Phase3!$A$2:$A$29999,1,0)) -> 
A84: 34 | B84: 1134803 | C84: WELC Christiane | D84: D | E84: 5C | F84: 6908 | G84: V24 | H84: 9 | I84: =VLOOKUP(B84,Dupli!$A$1:$J$30000,3,0) -> WELC | J84: =VLOOKUP(B84,Dupli!$A$1:$J$30000,4,0) -> Christiane | K84: D | L84: 5C | M84: 6908 | N84: V24 | O84: FR | P84: =VLOOKUP(B84,Dupli!$A$1:$I$30000,6,0) -> D | Q84: =VLOOKUP(B84,Dupli!$A$1:$I$30000,5,0) -> 5C | R84: =VLOOKUP(B84,Dupli!$A$1:$I$30000,8,0) -> 6992 | S84: =VLOOKUP(B84,Dupli!$A$1:$I$30000,7,0) -> V24 | T84: =VLOOKUP(B84,Dupli!$A$1:$I$30000,9,0) -> FR | W84: erreur | Z84: =IF(OR(E84="3A",E84="3B",E84="4A",E84="4B",E84="4C",E84="4D"),B84,VLOOKUP(B84,Phase2!$A$2:$A$30000,1,0)) ->  | AA84: =IF(OR(E84="2A",E84="2B"),B84,VLOOKUP(B84,Phase3!$A$2:$A$29999,1,0)) -> 
A85: 35 | B85: 1005413 | C85: LAVOT Annie | D85: D | E85: 5C | F85: 6947 | G85: V37 | H85: 10 | I85: =VLOOKUP(B85,Dupli!$A$1:$J$30000,3,0) -> LAVOT | J85: =VLOOKUP(B85,Dupli!$A$1:$J$30000,4,0) -> Annie | K85: D | L85: 5C | M85: 6947 | N85: V37 | O85: FR | P85: =VLOOKUP(B85,Dupli!$A$1:$I$30000,6,0) -> D | Q85: =VLOOKUP(B85,Dupli!$A$1:$I$30000,5,0) -> 5C | R85: =VLOOKUP(B85,Dupli!$A$1:$I$30000,8,0) -> 7031 | S85: =VLOOKUP(B85,Dupli!$A$1:$I$30000,7,0) -> V37 | T85: =VLOOKUP(B85,Dupli!$A$1:$I$30000,9,0) -> FR | W85: erreur | Z85: =IF(OR(E85="3A",E85="3B",E85="4A",E85="4B",E85="4C",E85="4D"),B85,VLOOKUP(B85,Phase2!$A$2:$A$30000,1,0)) ->  | AA85: =IF(OR(E85="2A",E85="2B"),B85,VLOOKUP(B85,Phase3!$A$2:$A$29999,1,0)) -> 
A86: 36 | B86: 1009580 | C86: MODOLO Michèle | D86: S | E86: 5C | F86: 7067 | G86: V24 | H86: 11 | I86: =VLOOKUP(B86,Dupli!$A$1:$J$30000,3,0) -> MODOLO | J86: =VLOOKUP(B86,Dupli!$A$1:$J$30000,4,0) -> Michèle | K86: S | L86: 5C | M86: 7067 | N86: V24 | O86: FR | P86: =VLOOKUP(B86,Dupli!$A$1:$I$30000,6,0) -> S | Q86: =VLOOKUP(B86,Dupli!$A$1:$I$30000,5,0) -> 5C | R86: =VLOOKUP(B86,Dupli!$A$1:$I$30000,8,0) -> 7151 | S86: =VLOOKUP(B86,Dupli!$A$1:$I$30000,7,0) -> V24 | T86: =VLOOKUP(B86,Dupli!$A$1:$I$30000,9,0) -> FR | W86: erreur | Z86: =IF(OR(E86="3A",E86="3B",E86="4A",E86="4B",E86="4C",E86="4D"),B86,VLOOKUP(B86,Phase2!$A$2:$A$30000,1,0)) ->  | AA86: =IF(OR(E86="2A",E86="2B"),B86,VLOOKUP(B86,Phase3!$A$2:$A$29999,1,0)) -> 
A87: 37 | B87: 1007153 | C87: HARTMANN Marie-Christine | D87: S | E87: 5D | F87: 8233 | G87: V38 | H87: 12 | I87: =VLOOKUP(B87,Dupli!$A$1:$J$30000,3,0) -> HARTMANN | J87: =VLOOKUP(B87,Dupli!$A$1:$J$30000,4,0) -> Marie-Christine | K87: S | L87: 5D | M87: 8233 | N87: V38 | O87: FR | P87: =VLOOKUP(B87,Dupli!$A$1:$I$30000,6,0) -> S | Q87: =VLOOKUP(B87,Dupli!$A$1:$I$30000,5,0) -> 5D | R87: =VLOOKUP(B87,Dupli!$A$1:$I$30000,8,0) -> 8283 | S87: =VLOOKUP(B87,Dupli!$A$1:$I$30000,7,0) -> V38 | T87: =VLOOKUP(B87,Dupli!$A$1:$I$30000,9,0) -> FR | W87: erreur | Z87: =IF(OR(E87="3A",E87="3B",E87="4A",E87="4B",E87="4C",E87="4D"),B87,VLOOKUP(B87,Phase2!$A$2:$A$30000,1,0)) -> 1007153 | AA87: =IF(OR(E87="2A",E87="2B"),B87,VLOOKUP(B87,Phase3!$A$2:$A$29999,1,0)) -> 
A88: 38 | B88: 3202734 | C88: MERLIN Françoise | D88: V | E88: 6A | F88: 8382 | G88: V24 | H88: 13 | I88: =VLOOKUP(B88,Dupli!$A$1:$J$30000,3,0) -> MERLIN | J88: =VLOOKUP(B88,Dupli!$A$1:$J$30000,4,0) -> Françoise | K88: V | L88: 6A | M88: 8382 | N88: V24 | O88: FR | P88: =VLOOKUP(B88,Dupli!$A$1:$I$30000,6,0) -> V | Q88: =VLOOKUP(B88,Dupli!$A$1:$I$30000,5,0) -> 6A | R88: =VLOOKUP(B88,Dupli!$A$1:$I$30000,8,0) -> 8664 | S88: =VLOOKUP(B88,Dupli!$A$1:$I$30000,7,0) -> V24 | T88: =VLOOKUP(B88,Dupli!$A$1:$I$30000,9,0) -> FR | W88: erreur | Z88: =IF(OR(E88="3A",E88="3B",E88="4A",E88="4B",E88="4C",E88="4D"),B88,VLOOKUP(B88,Phase2!$A$2:$A$30000,1,0)) ->  | AA88: =IF(OR(E88="2A",E88="2B"),B88,VLOOKUP(B88,Phase3!$A$2:$A$29999,1,0)) -> 
A89: 39 | B89: 1010826 | C89: MICHEL Monique | D89: D | E89: 6A | F89: 8880 | G89: V24 | H89: 14 | I89: =VLOOKUP(B89,Dupli!$A$1:$J$30000,3,0) -> MICHEL | J89: =VLOOKUP(B89,Dupli!$A$1:$J$30000,4,0) -> Monique | K89: =D89 -> D | L89: 6A | M89: 8880 | N89: V24 | O89: FR | P89: =VLOOKUP(B89,Dupli!$A$1:$I$30000,6,0) -> D | Q89: =VLOOKUP(B89,Dupli!$A$1:$I$30000,5,0) -> 6A | R89: =VLOOKUP(B89,Dupli!$A$1:$I$30000,8,0) -> 9162 | S89: =VLOOKUP(B89,Dupli!$A$1:$I$30000,7,0) -> V24 | T89: =VLOOKUP(B89,Dupli!$A$1:$I$30000,9,0) -> FR | W89: erreur | Z89: =IF(OR(E89="3A",E89="3B",E89="4A",E89="4B",E89="4C",E89="4D"),B89,VLOOKUP(B89,Phase2!$A$2:$A$30000,1,0)) -> 1010826 | AA89: =IF(OR(E89="2A",E89="2B"),B89,VLOOKUP(B89,Phase3!$A$2:$A$29999,1,0)) -> 
A90: 40 | B90: 1016968 | C90: PAUMIER Bernadette | D90: S | E90: 7 | F90: 15044 | G90: V24 | H90: 15 | I90: =VLOOKUP(B90,Dupli!$A$1:$J$30000,3,0) -> PAUMIER | J90: =VLOOKUP(B90,Dupli!$A$1:$J$30000,4,0) -> Bernadette | K90: S | L90: 7 | M90: 15044 | N90: V24 | O90: FR | P90: =VLOOKUP(B90,Dupli!$A$1:$I$30000,6,0) -> S | Q90: =VLOOKUP(B90,Dupli!$A$1:$I$30000,5,0) -> 7 | R90: =VLOOKUP(B90,Dupli!$A$1:$I$30000,8,0) -> 15980 | S90: =VLOOKUP(B90,Dupli!$A$1:$I$30000,7,0) -> V24 | T90: =VLOOKUP(B90,Dupli!$A$1:$I$30000,9,0) -> FR | V90: erreur | W90: erreur | Z90: =IF(OR(E90="3A",E90="3B",E90="4A",E90="4B",E90="4C",E90="4D"),B90,VLOOKUP(B90,Phase2!$A$2:$A$30000,1,0)) ->  | AA90: =IF(OR(E90="2A",E90="2B"),B90,VLOOKUP(B90,Phase3!$A$2:$A$29999,1,0)) -> 
A91: A01 | B91: 1151725 | C91: KESSAS Luce | D91: D | E91: 5A | F91: 5094 | G91: V24 | H91: 16 | I91: =VLOOKUP(B91,Dupli!$A$1:$J$30000,3,0) -> KESSAS | J91: =VLOOKUP(B91,Dupli!$A$1:$J$30000,4,0) -> Luce | K91: D | L91: 5A | M91: 5094 | N91: V24 | O91: FR | P91: =VLOOKUP(B91,Dupli!$A$1:$I$30000,6,0) -> D | Q91: =VLOOKUP(B91,Dupli!$A$1:$I$30000,5,0) -> 5A | R91: =VLOOKUP(B91,Dupli!$A$1:$I$30000,8,0) -> 5186 | S91: =VLOOKUP(B91,Dupli!$A$1:$I$30000,7,0) -> V24 | T91: =VLOOKUP(B91,Dupli!$A$1:$I$30000,9,0) -> FR | W91: erreur | Z91: =IF(OR(E91="3A",E91="3B",E91="4A",E91="4B",E91="4C",E91="4D"),B91,VLOOKUP(B91,Phase2!$A$2:$A$30000,1,0)) ->  | AA91: =IF(OR(E91="2A",E91="2B"),B91,VLOOKUP(B91,Phase3!$A$2:$A$29999,1,0)) -> 
A92: A02 | B92: 1066164 | C92: MOUTON Claudine | D92: D | E92: 5B | F92: 5367 | G92: V24 | H92: 17 | I92: =VLOOKUP(B92,Dupli!$A$1:$J$30000,3,0) -> MOUTON | J92: =VLOOKUP(B92,Dupli!$A$1:$J$30000,4,0) -> Claudine | K92: D | L92: 5B | M92: 5367 | N92: V24 | O92: FR | P92: =VLOOKUP(B92,Dupli!$A$1:$I$30000,6,0) -> D | Q92: =VLOOKUP(B92,Dupli!$A$1:$I$30000,5,0) -> 5B | R92: =VLOOKUP(B92,Dupli!$A$1:$I$30000,8,0) -> 5456 | S92: =VLOOKUP(B92,Dupli!$A$1:$I$30000,7,0) -> V24 | T92: =VLOOKUP(B92,Dupli!$A$1:$I$30000,9,0) -> FR | W92: erreur | Z92: =IF(OR(E92="3A",E92="3B",E92="4A",E92="4B",E92="4C",E92="4D"),B92,VLOOKUP(B92,Phase2!$A$2:$A$30000,1,0)) -> 1066164 | AA92: =IF(OR(E92="2A",E92="2B"),B92,VLOOKUP(B92,Phase3!$A$2:$A$29999,1,0)) -> 
A93: A03 | B93: 1004134 | C93: MEBARKI Martine | D93: V | E93: 5D | F93: 7817 | G93: V21 | H93: 18 | I93: =VLOOKUP(B93,Dupli!$A$1:$J$30000,3,0) -> MEBARKI | J93: =VLOOKUP(B93,Dupli!$A$1:$J$30000,4,0) -> Martine | K93: V | L93: 5D | M93: 7817 | N93: V21 | O93: FR | P93: =VLOOKUP(B93,Dupli!$A$1:$I$30000,6,0) -> V | Q93: =VLOOKUP(B93,Dupli!$A$1:$I$30000,5,0) -> 5D | R93: =VLOOKUP(B93,Dupli!$A$1:$I$30000,8,0) -> 7899 | S93: =VLOOKUP(B93,Dupli!$A$1:$I$30000,7,0) -> V21 | T93: =VLOOKUP(B93,Dupli!$A$1:$I$30000,9,0) -> FR | W93: erreur | Z93: =IF(OR(E93="3A",E93="3B",E93="4A",E93="4B",E93="4C",E93="4D"),B93,VLOOKUP(B93,Phase2!$A$2:$A$30000,1,0)) -> 1004134 | AA93: =IF(OR(E93="2A",E93="2B"),B93,VLOOKUP(B93,Phase3!$A$2:$A$29999,1,0)) -> 
A94: 1 | B94: 1520083 | C94: PILLARD Jean-Michel | D94: V | E94: 2B | F94: 635 | G94: V24 | H94: 19 | I94: =VLOOKUP(B94,Dupli!$A$1:$J$30000,3,0) -> PILLARD | J94: =VLOOKUP(B94,Dupli!$A$1:$J$30000,4,0) -> Jean-Michel | K94: V | L94: 2B | M94: 635 | N94: V24 | O94: FR | P94: =VLOOKUP(B94,Dupli!$A$1:$I$30000,6,0) -> V | Q94: =VLOOKUP(B94,Dupli!$A$1:$I$30000,5,0) -> 2B | R94: =VLOOKUP(B94,Dupli!$A$1:$I$30000,8,0) -> 640 | S94: =VLOOKUP(B94,Dupli!$A$1:$I$30000,7,0) -> V24 | T94: =VLOOKUP(B94,Dupli!$A$1:$I$30000,9,0) -> FR | W94: erreur | Z94: =IF(OR(E94="3A",E94="3B",E94="4A",E94="4B",E94="4C",E94="4D"),B94,VLOOKUP(B94,Phase2!$A$2:$A$30000,1,0)) ->  | AA94: =IF(OR(E94="2A",E94="2B"),B94,VLOOKUP(B94,Phase3!$A$2:$A$29999,1,0)) -> 1520083
A95: 2 | B95: 1770991 | C95: NOEL Jean-Pierre | D95: D | E95: 3A | F95: 965 | G95: V24 | H95: 20 | I95: =VLOOKUP(B95,Dupli!$A$1:$J$30000,3,0) -> NOEL | J95: =VLOOKUP(B95,Dupli!$A$1:$J$30000,4,0) -> Jean-Pierre | K95: D | L95: 3A | M95: 965 | N95: V24 | O95: FR | P95: =VLOOKUP(B95,Dupli!$A$1:$I$30000,6,0) -> D | Q95: =VLOOKUP(B95,Dupli!$A$1:$I$30000,5,0) -> 3A | R95: =VLOOKUP(B95,Dupli!$A$1:$I$30000,8,0) -> 979 | S95: =VLOOKUP(B95,Dupli!$A$1:$I$30000,7,0) -> V24 | T95: =VLOOKUP(B95,Dupli!$A$1:$I$30000,9,0) -> FR | W95: erreur | Z95: =IF(OR(E95="3A",E95="3B",E95="4A",E95="4B",E95="4C",E95="4D"),B95,VLOOKUP(B95,Phase2!$A$2:$A$30000,1,0)) -> 1770991 | AA95: =IF(OR(E95="2A",E95="2B"),B95,VLOOKUP(B95,Phase3!$A$2:$A$29999,1,0)) -> 1770991
A96: 3 | B96: 2001045 | C96: SACHS Arlette | D96: V | E96: 3B | F96: 1543 | G96: V24 | H96: 21 | I96: =VLOOKUP(B96,Dupli!$A$1:$J$30000,3,0) -> SACHS | J96: =VLOOKUP(B96,Dupli!$A$1:$J$30000,4,0) -> Arlette | K96: V | L96: 3B | M96: 1543 | N96: V24 | O96: FR | P96: =VLOOKUP(B96,Dupli!$A$1:$I$30000,6,0) -> V | Q96: =VLOOKUP(B96,Dupli!$A$1:$I$30000,5,0) -> 3B | R96: =VLOOKUP(B96,Dupli!$A$1:$I$30000,8,0) -> 1556 | S96: =VLOOKUP(B96,Dupli!$A$1:$I$30000,7,0) -> V24 | T96: =VLOOKUP(B96,Dupli!$A$1:$I$30000,9,0) -> FR | W96: erreur | Z96: =IF(OR(E96="3A",E96="3B",E96="4A",E96="4B",E96="4C",E96="4D"),B96,VLOOKUP(B96,Phase2!$A$2:$A$30000,1,0)) -> 2001045 | AA96: =IF(OR(E96="2A",E96="2B"),B96,VLOOKUP(B96,Phase3!$A$2:$A$29999,1,0)) -> 2001045
A97: 4 | B97: 1771018 | C97: GUILCHER Cathy | D97: V | E97: 4A | F97: 2039 | G97: V24 | H97: 21 | I97: =VLOOKUP(B97,Dupli!$A$1:$J$30000,3,0) -> GUILCHER | J97: =VLOOKUP(B97,Dupli!$A$1:$J$30000,4,0) -> Cathy | K97: V | L97: 4A | M97: 2039 | N97: V24 | O97: FR | P97: =VLOOKUP(B97,Dupli!$A$1:$I$30000,6,0) -> V | Q97: =VLOOKUP(B97,Dupli!$A$1:$I$30000,5,0) -> 4A | R97: =VLOOKUP(B97,Dupli!$A$1:$I$30000,8,0) -> 2079 | S97: =VLOOKUP(B97,Dupli!$A$1:$I$30000,7,0) -> V24 | T97: =VLOOKUP(B97,Dupli!$A$1:$I$30000,9,0) -> FR | W97: erreur | Z97: =IF(OR(E97="3A",E97="3B",E97="4A",E97="4B",E97="4C",E97="4D"),B97,VLOOKUP(B97,Phase2!$A$2:$A$30000,1,0)) -> 1771018 | AA97: =IF(OR(E97="2A",E97="2B"),B97,VLOOKUP(B97,Phase3!$A$2:$A$29999,1,0)) -> 1771018
A98: 5 | B98: 1105197 | C98: FOURDRAIN Chantal | D98: V | E98: 4A | F98: 2169 | G98: V37 | H98: 23 | I98: =VLOOKUP(B98,Dupli!$A$1:$J$30000,3,0) -> FOURDRAIN | J98: =VLOOKUP(B98,Dupli!$A$1:$J$30000,4,0) -> Chantal | K98: V | L98: 4A | M98: 2169 | N98: V37 | O98: FR | P98: =VLOOKUP(B98,Dupli!$A$1:$I$30000,6,0) -> V | Q98: =VLOOKUP(B98,Dupli!$A$1:$I$30000,5,0) -> 4A | R98: =VLOOKUP(B98,Dupli!$A$1:$I$30000,8,0) -> 2209 | S98: =VLOOKUP(B98,Dupli!$A$1:$I$30000,7,0) -> V37 | T98: =VLOOKUP(B98,Dupli!$A$1:$I$30000,9,0) -> FR | W98: erreur | Z98: =IF(OR(E98="3A",E98="3B",E98="4A",E98="4B",E98="4C",E98="4D"),B98,VLOOKUP(B98,Phase2!$A$2:$A$30000,1,0)) -> 1105197 | AA98: =IF(OR(E98="2A",E98="2B"),B98,VLOOKUP(B98,Phase3!$A$2:$A$29999,1,0)) -> 1105197
A99: 6 | B99: 2667645 | C99: DELATTRE Geneviève | D99: D | E99: 4B | F99: 2383 | G99: V37 | H99: 24 | I99: =VLOOKUP(B99,Dupli!$A$1:$J$30000,3,0) -> DELATTRE | J99: =VLOOKUP(B99,Dupli!$A$1:$J$30000,4,0) -> Geneviève | K99: D | L99: 4B | M99: 2383 | N99: V37 | O99: FR | P99: =VLOOKUP(B99,Dupli!$A$1:$I$30000,6,0) -> D | Q99: =VLOOKUP(B99,Dupli!$A$1:$I$30000,5,0) -> 4B | R99: =VLOOKUP(B99,Dupli!$A$1:$I$30000,8,0) -> 2422 | S99: =VLOOKUP(B99,Dupli!$A$1:$I$30000,7,0) -> V37 | T99: =VLOOKUP(B99,Dupli!$A$1:$I$30000,9,0) -> FR | W99: erreur | Z99: =IF(OR(E99="3A",E99="3B",E99="4A",E99="4B",E99="4C",E99="4D"),B99,VLOOKUP(B99,Phase2!$A$2:$A$30000,1,0)) -> 2667645 | AA99: =IF(OR(E99="2A",E99="2B"),B99,VLOOKUP(B99,Phase3!$A$2:$A$29999,1,0)) -> 2667645
A100: 7 | B100: 1004972 | C100: BOUYAUX Valérie | D100: D | E100: 4B | F100: 2408 | G100: V24 | H100: 25 | I100: =VLOOKUP(B100,Dupli!$A$1:$J$30000,3,0) -> BOUYAUX | J100: =VLOOKUP(B100,Dupli!$A$1:$J$30000,4,0) -> Valérie | K100: D | L100: 4B | M100: 2408 | N100: V24 | O100: FR | P100: =VLOOKUP(B100,Dupli!$A$1:$I$30000,6,0) -> D | Q100: =VLOOKUP(B100,Dupli!$A$1:$I$30000,5,0) -> 4B | R100: =VLOOKUP(B100,Dupli!$A$1:$I$30000,8,0) -> 2447 | S100: =VLOOKUP(B100,Dupli!$A$1:$I$30000,7,0) -> V24 | T100: =VLOOKUP(B100,Dupli!$A$1:$I$30000,9,0) -> FR | W100: erreur | Z100: =IF(OR(E100="3A",E100="3B",E100="4A",E100="4B",E100="4C",E100="4D"),B100,VLOOKUP(B100,Phase2!$A$2:$A$30000,1,0)) -> 1004972 | AA100: =IF(OR(E100="2A",E100="2B"),B100,VLOOKUP(B100,Phase3!$A$2:$A$29999,1,0)) -> 1004972
A101: 8 | B101: 1170509 | C101: REGNIER Marie-France | D101: V | E101: 4B | F101: 2633 | G101: V24 | H101: 26 | I101: =VLOOKUP(B101,Dupli!$A$1:$J$30000,3,0) -> REGNIER | J101: =VLOOKUP(B101,Dupli!$A$1:$J$30000,4,0) -> Marie-France | K101: V | L101: 4B | M101: 2633 | N101: V24 | O101: FR | P101: =VLOOKUP(B101,Dupli!$A$1:$I$30000,6,0) -> V | Q101: =VLOOKUP(B101,Dupli!$A$1:$I$30000,5,0) -> 4B | R101: =VLOOKUP(B101,Dupli!$A$1:$I$30000,8,0) -> 2671 | S101: =VLOOKUP(B101,Dupli!$A$1:$I$30000,7,0) -> V24 | T101: =VLOOKUP(B101,Dupli!$A$1:$I$30000,9,0) -> FR | W101: erreur | Z101: =IF(OR(E101="3A",E101="3B",E101="4A",E101="4B",E101="4C",E101="4D"),B101,VLOOKUP(B101,Phase2!$A$2:$A$30000,1,0)) -> 1170509 | AA101: =IF(OR(E101="2A",E101="2B"),B101,VLOOKUP(B101,Phase3!$A$2:$A$29999,1,0)) -> 1170509
A102: 9 | B102: 1026261 | C102: LEPOIVRE Jacques | D102: D | E102: 4C | F102: 3381 | G102: V24 | H102: 26 | I102: =VLOOKUP(B102,Dupli!$A$1:$J$30000,3,0) -> LEPOIVRE | J102: =VLOOKUP(B102,Dupli!$A$1:$J$30000,4,0) -> Jacques | K102: D | L102: 4C | M102: 3381 | N102: V24 | O102: FR | P102: =VLOOKUP(B102,Dupli!$A$1:$I$30000,6,0) -> D | Q102: =VLOOKUP(B102,Dupli!$A$1:$I$30000,5,0) -> 4C | R102: =VLOOKUP(B102,Dupli!$A$1:$I$30000,8,0) -> 3419 | S102: =VLOOKUP(B102,Dupli!$A$1:$I$30000,7,0) -> V24 | T102: =VLOOKUP(B102,Dupli!$A$1:$I$30000,9,0) -> FR | W102: erreur | Z102: =IF(OR(E102="3A",E102="3B",E102="4A",E102="4B",E102="4C",E102="4D"),B102,VLOOKUP(B102,Phase2!$A$2:$A$30000,1,0)) -> 1026261 | AA102: =IF(OR(E102="2A",E102="2B"),B102,VLOOKUP(B102,Phase3!$A$2:$A$29999,1,0)) -> 1026261
A103: 10 | B103: 1005053 | C103: TIMBERT Évelyne | D103: V | E103: 4D | F103: 3730 | G103: V03 | H103: 28 | I103: =VLOOKUP(B103,Dupli!$A$1:$J$30000,3,0) -> TIMBERT | J103: =VLOOKUP(B103,Dupli!$A$1:$J$30000,4,0) -> Évelyne | K103: V | L103: 4D | M103: 3730 | N103: V03 | O103: FR | P103: =VLOOKUP(B103,Dupli!$A$1:$I$30000,6,0) -> V | Q103: =VLOOKUP(B103,Dupli!$A$1:$I$30000,5,0) -> 4D | R103: =VLOOKUP(B103,Dupli!$A$1:$I$30000,8,0) -> 3768 | S103: =VLOOKUP(B103,Dupli!$A$1:$I$30000,7,0) -> V03 | T103: =VLOOKUP(B103,Dupli!$A$1:$I$30000,9,0) -> FR | W103: erreur | Z103: =IF(OR(E103="3A",E103="3B",E103="4A",E103="4B",E103="4C",E103="4D"),B103,VLOOKUP(B103,Phase2!$A$2:$A$30000,1,0)) -> 1005053 | AA103: =IF(OR(E103="2A",E103="2B"),B103,VLOOKUP(B103,Phase3!$A$2:$A$29999,1,0)) -> 1005053
A104: 11 | B104: 1003020 | C104: FOURNIER Annie | D104: V | E104: 4D | F104: 3853 | G104: V24 | H104: 29 | I104: =VLOOKUP(B104,Dupli!$A$1:$J$30000,3,0) -> FOURNIER | J104: =VLOOKUP(B104,Dupli!$A$1:$J$30000,4,0) -> Annie | K104: V | L104: 4D | M104: 3853 | N104: V24 | O104: FR | P104: =VLOOKUP(B104,Dupli!$A$1:$I$30000,6,0) -> V | Q104: =VLOOKUP(B104,Dupli!$A$1:$I$30000,5,0) -> 4D | R104: =VLOOKUP(B104,Dupli!$A$1:$I$30000,8,0) -> 3890 | S104: =VLOOKUP(B104,Dupli!$A$1:$I$30000,7,0) -> V24 | T104: =VLOOKUP(B104,Dupli!$A$1:$I$30000,9,0) -> FR | W104: erreur | Z104: =IF(OR(E104="3A",E104="3B",E104="4A",E104="4B",E104="4C",E104="4D"),B104,VLOOKUP(B104,Phase2!$A$2:$A$30000,1,0)) -> 1003020 | AA104: =IF(OR(E104="2A",E104="2B"),B104,VLOOKUP(B104,Phase3!$A$2:$A$29999,1,0)) -> 1003020
A105: 12 | B105: 1004200 | C105: REVEL Rosine | D105: V | E105: 4D | F105: 4224 | G105: V19 | H105: 30 | I105: =VLOOKUP(B105,Dupli!$A$1:$J$30000,3,0) -> REVEL | J105: =VLOOKUP(B105,Dupli!$A$1:$J$30000,4,0) -> Rosine | K105: =D105 -> V | L105: 4D | M105: 4224 | N105: V19 | O105: FR | P105: =VLOOKUP(B105,Dupli!$A$1:$I$30000,6,0) -> V | Q105: =VLOOKUP(B105,Dupli!$A$1:$I$30000,5,0) -> 4D | R105: =VLOOKUP(B105,Dupli!$A$1:$I$30000,8,0) -> 4260 | S105: =VLOOKUP(B105,Dupli!$A$1:$I$30000,7,0) -> V19 | T105: =VLOOKUP(B105,Dupli!$A$1:$I$30000,9,0) -> FR | W105: erreur | Z105: =IF(OR(E105="3A",E105="3B",E105="4A",E105="4B",E105="4C",E105="4D"),B105,VLOOKUP(B105,Phase2!$A$2:$A$30000,1,0)) -> 1004200 | AA105: =IF(OR(E105="2A",E105="2B"),B105,VLOOKUP(B105,Phase3!$A$2:$A$29999,1,0)) -> 1004200
A106: 13 | B106: 1281015 | C106: RABUT Françoise | D106: D | E106: 5B | F106: 5272 | G106: V24 | H106: 31 | I106: =VLOOKUP(B106,Dupli!$A$1:$J$30000,3,0) -> RABUT | J106: =VLOOKUP(B106,Dupli!$A$1:$J$30000,4,0) -> Françoise | K106: D | L106: 5B | M106: 5272 | N106: V24 | O106: FR | P106: =VLOOKUP(B106,Dupli!$A$1:$I$30000,6,0) -> D | Q106: =VLOOKUP(B106,Dupli!$A$1:$I$30000,5,0) -> 5B | R106: =VLOOKUP(B106,Dupli!$A$1:$I$30000,8,0) -> 5361 | S106: =VLOOKUP(B106,Dupli!$A$1:$I$30000,7,0) -> V24 | T106: =VLOOKUP(B106,Dupli!$A$1:$I$30000,9,0) -> FR | W106: erreur | Z106: =IF(OR(E106="3A",E106="3B",E106="4A",E106="4B",E106="4C",E106="4D"),B106,VLOOKUP(B106,Phase2!$A$2:$A$30000,1,0)) -> 1281015 | AA106: =IF(OR(E106="2A",E106="2B"),B106,VLOOKUP(B106,Phase3!$A$2:$A$29999,1,0)) -> 
A107: 14 | B107: 1147426 | C107: POPELUT Pascale | D107: V | E107: 5B | F107: 5655 | G107: V24 | H107: 32 | I107: =VLOOKUP(B107,Dupli!$A$1:$J$30000,3,0) -> POPELUT | J107: =VLOOKUP(B107,Dupli!$A$1:$J$30000,4,0) -> Pascale | K107: V | L107: 5B | M107: 5655 | N107: V24 | O107: FR | P107: =VLOOKUP(B107,Dupli!$A$1:$I$30000,6,0) -> V | Q107: =VLOOKUP(B107,Dupli!$A$1:$I$30000,5,0) -> 5B | R107: =VLOOKUP(B107,Dupli!$A$1:$I$30000,8,0) -> 5743 | S107: =VLOOKUP(B107,Dupli!$A$1:$I$30000,7,0) -> V24 | T107: =VLOOKUP(B107,Dupli!$A$1:$I$30000,9,0) -> FR | W107: erreur | Z107: =IF(OR(E107="3A",E107="3B",E107="4A",E107="4B",E107="4C",E107="4D"),B107,VLOOKUP(B107,Phase2!$A$2:$A$30000,1,0)) -> 1147426 | AA107: =IF(OR(E107="2A",E107="2B"),B107,VLOOKUP(B107,Phase3!$A$2:$A$29999,1,0)) -> 1147426
A108: 15 | B108: 1036062 | C108: HOUZIEL Michèle | D108: D | E108: 5B | F108: 5707 | G108: V05 | H108: 33 | I108: =VLOOKUP(B108,Dupli!$A$1:$J$30000,3,0) -> HOUZIEL | J108: =VLOOKUP(B108,Dupli!$A$1:$J$30000,4,0) -> Michèle | K108: D | L108: 5B | M108: 5707 | N108: V05 | O108: FR | P108: =VLOOKUP(B108,Dupli!$A$1:$I$30000,6,0) -> D | Q108: =VLOOKUP(B108,Dupli!$A$1:$I$30000,5,0) -> 5B | R108: =VLOOKUP(B108,Dupli!$A$1:$I$30000,8,0) -> 5795 | S108: =VLOOKUP(B108,Dupli!$A$1:$I$30000,7,0) -> V05 | T108: =VLOOKUP(B108,Dupli!$A$1:$I$30000,9,0) -> FR | W108: erreur | Z108: =IF(OR(E108="3A",E108="3B",E108="4A",E108="4B",E108="4C",E108="4D"),B108,VLOOKUP(B108,Phase2!$A$2:$A$30000,1,0)) -> 1036062 | AA108: =IF(OR(E108="2A",E108="2B"),B108,VLOOKUP(B108,Phase3!$A$2:$A$29999,1,0)) -> 
A109: 16 | B109: 1008314 | C109: DUCRET Claire | D109: V | E109: 5B | F109: 5805 | G109: V24 | H109: 34 | I109: =VLOOKUP(B109,Dupli!$A$1:$J$30000,3,0) -> DUCRET | J109: =VLOOKUP(B109,Dupli!$A$1:$J$30000,4,0) -> Claire | K109: V | L109: 5B | M109: 5805 | N109: V24 | O109: FR | P109: =VLOOKUP(B109,Dupli!$A$1:$I$30000,6,0) -> V | Q109: =VLOOKUP(B109,Dupli!$A$1:$I$30000,5,0) -> 5B | R109: =VLOOKUP(B109,Dupli!$A$1:$I$30000,8,0) -> 5892 | S109: =VLOOKUP(B109,Dupli!$A$1:$I$30000,7,0) -> V24 | T109: =VLOOKUP(B109,Dupli!$A$1:$I$30000,9,0) -> FR | W109: erreur | Z109: =IF(OR(E109="3A",E109="3B",E109="4A",E109="4B",E109="4C",E109="4D"),B109,VLOOKUP(B109,Phase2!$A$2:$A$30000,1,0)) -> 1008314 | AA109: =IF(OR(E109="2A",E109="2B"),B109,VLOOKUP(B109,Phase3!$A$2:$A$29999,1,0)) -> 
A110: 17 | B110: 1252793 | C110: RIO Jean-Claude | D110: D | E110: 5B | F110: 5998 | G110: V24 | H110: 35 | I110: =VLOOKUP(B110,Dupli!$A$1:$J$30000,3,0) -> RIO | J110: =VLOOKUP(B110,Dupli!$A$1:$J$30000,4,0) -> Jean-Claude | K110: D | L110: 5B | M110: 5998 | N110: V24 | O110: FR | P110: =VLOOKUP(B110,Dupli!$A$1:$I$30000,6,0) -> D | Q110: =VLOOKUP(B110,Dupli!$A$1:$I$30000,5,0) -> 5B | R110: =VLOOKUP(B110,Dupli!$A$1:$I$30000,8,0) -> 6084 | S110: =VLOOKUP(B110,Dupli!$A$1:$I$30000,7,0) -> V24 | T110: =VLOOKUP(B110,Dupli!$A$1:$I$30000,9,0) -> FR | W110: erreur | Z110: =IF(OR(E110="3A",E110="3B",E110="4A",E110="4B",E110="4C",E110="4D"),B110,VLOOKUP(B110,Phase2!$A$2:$A$30000,1,0)) -> 1252793 | AA110: =IF(OR(E110="2A",E110="2B"),B110,VLOOKUP(B110,Phase3!$A$2:$A$29999,1,0)) -> 
A111: 18 | B111: 2664852 | C111: RENAUDIN Christiane | D111: D | E111: 5C | F111: 6547 | G111: V24 | H111: 36 | I111: =VLOOKUP(B111,Dupli!$A$1:$J$30000,3,0) -> RENAUDIN | J111: =VLOOKUP(B111,Dupli!$A$1:$J$30000,4,0) -> Christiane | K111: D | L111: 5C | M111: 6547 | N111: V24 | O111: FR | P111: =VLOOKUP(B111,Dupli!$A$1:$I$30000,6,0) -> D | Q111: =VLOOKUP(B111,Dupli!$A$1:$I$30000,5,0) -> 5C | R111: =VLOOKUP(B111,Dupli!$A$1:$I$30000,8,0) -> 6631 | S111: =VLOOKUP(B111,Dupli!$A$1:$I$30000,7,0) -> V24 | T111: =VLOOKUP(B111,Dupli!$A$1:$I$30000,9,0) -> FR | W111: erreur | Z111: =IF(OR(E111="3A",E111="3B",E111="4A",E111="4B",E111="4C",E111="4D"),B111,VLOOKUP(B111,Phase2!$A$2:$A$30000,1,0)) ->  | AA111: =IF(OR(E111="2A",E111="2B"),B111,VLOOKUP(B111,Phase3!$A$2:$A$29999,1,0)) -> 
A112: 19 | B112: 1222504 | C112: RIO Hélène | D112: V | E112: 5C | F112: 6578 | G112: V24 | H112: 36 | I112: =VLOOKUP(B112,Dupli!$A$1:$J$30000,3,0) -> RIO | J112: =VLOOKUP(B112,Dupli!$A$1:$J$30000,4,0) -> Hélène | K112: V | L112: 5C | M112: 6578 | N112: V24 | O112: FR | P112: =VLOOKUP(B112,Dupli!$A$1:$I$30000,6,0) -> V | Q112: =VLOOKUP(B112,Dupli!$A$1:$I$30000,5,0) -> 5C | R112: =VLOOKUP(B112,Dupli!$A$1:$I$30000,8,0) -> 6662 | S112: =VLOOKUP(B112,Dupli!$A$1:$I$30000,7,0) -> V24 | T112: =VLOOKUP(B112,Dupli!$A$1:$I$30000,9,0) -> FR | W112: erreur | Z112: =IF(OR(E112="3A",E112="3B",E112="4A",E112="4B",E112="4C",E112="4D"),B112,VLOOKUP(B112,Phase2!$A$2:$A$30000,1,0)) -> 1222504 | AA112: =IF(OR(E112="2A",E112="2B"),B112,VLOOKUP(B112,Phase3!$A$2:$A$29999,1,0)) -> 
A113: 20 | B113: 1194335 | C113: ROLLAND Catherine | D113: V | E113: 5C | F113: 6804 | G113: V24 | H113: 38 | I113: =VLOOKUP(B113,Dupli!$A$1:$J$30000,3,0) -> ROLLAND | J113: =VLOOKUP(B113,Dupli!$A$1:$J$30000,4,0) -> Catherine | K113: V | L113: 5C | M113: 6804 | N113: V24 | O113: FR | P113: =VLOOKUP(B113,Dupli!$A$1:$I$30000,6,0) -> V | Q113: =VLOOKUP(B113,Dupli!$A$1:$I$30000,5,0) -> 5C | R113: =VLOOKUP(B113,Dupli!$A$1:$I$30000,8,0) -> 6888 | S113: =VLOOKUP(B113,Dupli!$A$1:$I$30000,7,0) -> V24 | T113: =VLOOKUP(B113,Dupli!$A$1:$I$30000,9,0) -> FR | W113: erreur | Z113: =IF(OR(E113="3A",E113="3B",E113="4A",E113="4B",E113="4C",E113="4D"),B113,VLOOKUP(B113,Phase2!$A$2:$A$30000,1,0)) -> 1194335 | AA113: =IF(OR(E113="2A",E113="2B"),B113,VLOOKUP(B113,Phase3!$A$2:$A$29999,1,0)) -> 
A114: 21 | B114: 1134803 | C114: WELC Christiane | D114: D | E114: 5C | F114: 6908 | G114: V24 | H114: 39 | I114: =VLOOKUP(B114,Dupli!$A$1:$J$30000,3,0) -> WELC | J114: =VLOOKUP(B114,Dupli!$A$1:$J$30000,4,0) -> Christiane | K114: D | L114: 5C | M114: 6908 | N114: V24 | O114: FR | P114: =VLOOKUP(B114,Dupli!$A$1:$I$30000,6,0) -> D | Q114: =VLOOKUP(B114,Dupli!$A$1:$I$30000,5,0) -> 5C | R114: =VLOOKUP(B114,Dupli!$A$1:$I$30000,8,0) -> 6992 | S114: =VLOOKUP(B114,Dupli!$A$1:$I$30000,7,0) -> V24 | T114: =VLOOKUP(B114,Dupli!$A$1:$I$30000,9,0) -> FR | W114: erreur | Z114: =IF(OR(E114="3A",E114="3B",E114="4A",E114="4B",E114="4C",E114="4D"),B114,VLOOKUP(B114,Phase2!$A$2:$A$30000,1,0)) ->  | AA114: =IF(OR(E114="2A",E114="2B"),B114,VLOOKUP(B114,Phase3!$A$2:$A$29999,1,0)) -> 
A115: 22 | B115: 1005413 | C115: LAVOT Annie | D115: D | E115: 5C | F115: 6947 | G115: V37 | H115: 40 | I115: =VLOOKUP(B115,Dupli!$A$1:$J$30000,3,0) -> LAVOT | J115: =VLOOKUP(B115,Dupli!$A$1:$J$30000,4,0) -> Annie | K115: D | L115: 5C | M115: 6947 | N115: V37 | O115: FR | P115: =VLOOKUP(B115,Dupli!$A$1:$I$30000,6,0) -> D | Q115: =VLOOKUP(B115,Dupli!$A$1:$I$30000,5,0) -> 5C | R115: =VLOOKUP(B115,Dupli!$A$1:$I$30000,8,0) -> 7031 | S115: =VLOOKUP(B115,Dupli!$A$1:$I$30000,7,0) -> V37 | T115: =VLOOKUP(B115,Dupli!$A$1:$I$30000,9,0) -> FR | W115: erreur | Z115: =IF(OR(E115="3A",E115="3B",E115="4A",E115="4B",E115="4C",E115="4D"),B115,VLOOKUP(B115,Phase2!$A$2:$A$30000,1,0)) ->  | AA115: =IF(OR(E115="2A",E115="2B"),B115,VLOOKUP(B115,Phase3!$A$2:$A$29999,1,0)) -> 
A116: 23 | B116: 1008353 | C116: TURBIARZ Françoise | D116: V | E116: 5D | F116: 7580 | G116: V24 | H116: 40 | I116: =VLOOKUP(B116,Dupli!$A$1:$J$30000,3,0) -> TURBIARZ | J116: =VLOOKUP(B116,Dupli!$A$1:$J$30000,4,0) -> Françoise | K116: V | L116: 5D | M116: 7580 | N116: V24 | O116: FR | P116: =VLOOKUP(B116,Dupli!$A$1:$I$30000,6,0) -> V | Q116: =VLOOKUP(B116,Dupli!$A$1:$I$30000,5,0) -> 5D | R116: =VLOOKUP(B116,Dupli!$A$1:$I$30000,8,0) -> 7663 | S116: =VLOOKUP(B116,Dupli!$A$1:$I$30000,7,0) -> V24 | T116: =VLOOKUP(B116,Dupli!$A$1:$I$30000,9,0) -> FR | W116: erreur | Z116: =IF(OR(E116="3A",E116="3B",E116="4A",E116="4B",E116="4C",E116="4D"),B116,VLOOKUP(B116,Phase2!$A$2:$A$30000,1,0)) ->  | AA116: =IF(OR(E116="2A",E116="2B"),B116,VLOOKUP(B116,Phase3!$A$2:$A$29999,1,0)) -> 
A117: 24 | B117: 1168507 | C117: CHARPENTREAU Danièle | D117: V | E117: 5D | F117: 7895 | G117: V24 | H117: 42 | I117: =VLOOKUP(B117,Dupli!$A$1:$J$30000,3,0) -> CHARPENTREAU | J117: =VLOOKUP(B117,Dupli!$A$1:$J$30000,4,0) -> Danièle | K117: V | L117: 5D | M117: 7895 | N117: V24 | O117: FR | P117: =VLOOKUP(B117,Dupli!$A$1:$I$30000,6,0) -> V | Q117: =VLOOKUP(B117,Dupli!$A$1:$I$30000,5,0) -> 5D | R117: =VLOOKUP(B117,Dupli!$A$1:$I$30000,8,0) -> 7977 | S117: =VLOOKUP(B117,Dupli!$A$1:$I$30000,7,0) -> V24 | T117: =VLOOKUP(B117,Dupli!$A$1:$I$30000,9,0) -> FR | W117: erreur | Z117: =IF(OR(E117="3A",E117="3B",E117="4A",E117="4B",E117="4C",E117="4D"),B117,VLOOKUP(B117,Phase2!$A$2:$A$30000,1,0)) ->  | AA117: =IF(OR(E117="2A",E117="2B"),B117,VLOOKUP(B117,Phase3!$A$2:$A$29999,1,0)) -> 
A118: 25 | B118: 1008780 | C118: ZERINI Marie-Gilberte | D118: V | E118: 6B | F118: 10467 | G118: V21 | H118: 4 | I118: =VLOOKUP(B118,Dupli!$A$1:$J$30000,3,0) -> ZERINI | J118: =VLOOKUP(B118,Dupli!$A$1:$J$30000,4,0) -> Marie-Gilberte | K118: V | L118: 6B | M118: 10467 | N118: V21 | O118: FR | P118: =VLOOKUP(B118,Dupli!$A$1:$I$30000,6,0) -> V | Q118: =VLOOKUP(B118,Dupli!$A$1:$I$30000,5,0) -> 6B | R118: =VLOOKUP(B118,Dupli!$A$1:$I$30000,8,0) -> 10749 | S118: =VLOOKUP(B118,Dupli!$A$1:$I$30000,7,0) -> V21 | T118: =VLOOKUP(B118,Dupli!$A$1:$I$30000,9,0) -> FR | W118: erreur | Z118: =IF(OR(E118="3A",E118="3B",E118="4A",E118="4B",E118="4C",E118="4D"),B118,VLOOKUP(B118,Phase2!$A$2:$A$30000,1,0)) ->  | AA118: =IF(OR(E118="2A",E118="2B"),B118,VLOOKUP(B118,Phase3!$A$2:$A$29999,1,0)) -> 
A119: 16 | B119: 1016414 | C119: BAIL Dominique | D119: V | E119: 4D | F119: 3865 | G119: V33 | H119: 2 | I119: =VLOOKUP(B119,Dupli!$A$1:$J$30000,3,0) -> BAIL | J119: =VLOOKUP(B119,Dupli!$A$1:$J$30000,4,0) -> Dominique | K119: V | L119: 4D | M119: 3865 | N119: V33 | O119: FR | P119: =VLOOKUP(B119,Dupli!$A$1:$I$30000,6,0) -> V | Q119: =VLOOKUP(B119,Dupli!$A$1:$I$30000,5,0) -> 4D | R119: =VLOOKUP(B119,Dupli!$A$1:$I$30000,8,0) -> 3902 | S119: =VLOOKUP(B119,Dupli!$A$1:$I$30000,7,0) -> V33 | T119: =VLOOKUP(B119,Dupli!$A$1:$I$30000,9,0) -> FR | W119: erreur | Z119: =IF(OR(E119="3A",E119="3B",E119="4A",E119="4B",E119="4C",E119="4D"),B119,VLOOKUP(B119,Phase2!$A$2:$A$30000,1,0)) -> 1016414 | AA119: =IF(OR(E119="2A",E119="2B"),B119,VLOOKUP(B119,Phase3!$A$2:$A$29999,1,0)) -> 1016414
A120: 7 | B120: 1092028 | C120: CAMUS Gioconde | D120: D | E120: 4A | F120: 1763 | G120: V33 | H120: 3 | I120: =VLOOKUP(B120,Dupli!$A$1:$J$30000,3,0) -> CAMUS | J120: =VLOOKUP(B120,Dupli!$A$1:$J$30000,4,0) -> Gioconde | K120: D | L120: 4A | M120: 1763 | N120: V33 | O120: FR | P120: =VLOOKUP(B120,Dupli!$A$1:$I$30000,6,0) -> D | Q120: =VLOOKUP(B120,Dupli!$A$1:$I$30000,5,0) -> 4A | R120: =VLOOKUP(B120,Dupli!$A$1:$I$30000,8,0) -> 1806 | S120: =VLOOKUP(B120,Dupli!$A$1:$I$30000,7,0) -> V33 | T120: =VLOOKUP(B120,Dupli!$A$1:$I$30000,9,0) -> FR | W120: erreur | Z120: =IF(OR(E120="3A",E120="3B",E120="4A",E120="4B",E120="4C",E120="4D"),B120,VLOOKUP(B120,Phase2!$A$2:$A$30000,1,0)) -> 1092028 | AA120: =IF(OR(E120="2A",E120="2B"),B120,VLOOKUP(B120,Phase3!$A$2:$A$29999,1,0)) -> 1092028
A121: A01 | B121: 2323865 | C121: LEFEVRE Maryse | D121: R | E121: 4A | F121: 1751 | G121: V33 | H121: 10 | I121: =VLOOKUP(B121,Dupli!$A$1:$J$30000,3,0) -> LEFEVRE | J121: =VLOOKUP(B121,Dupli!$A$1:$J$30000,4,0) -> Maryse | K121: =D121 -> R | L121: 4A | M121: 1751 | N121: V33 | O121: FR | P121: =VLOOKUP(B121,Dupli!$A$1:$I$30000,6,0) -> R | Q121: =VLOOKUP(B121,Dupli!$A$1:$I$30000,5,0) -> 4A | R121: =VLOOKUP(B121,Dupli!$A$1:$I$30000,8,0) -> 1794 | S121: =VLOOKUP(B121,Dupli!$A$1:$I$30000,7,0) -> V33 | T121: =VLOOKUP(B121,Dupli!$A$1:$I$30000,9,0) -> FR | W121: erreur | Z121: =IF(OR(E121="3A",E121="3B",E121="4A",E121="4B",E121="4C",E121="4D"),B121,VLOOKUP(B121,Phase2!$A$2:$A$30000,1,0)) -> 2323865 | AA121: =IF(OR(E121="2A",E121="2B"),B121,VLOOKUP(B121,Phase3!$A$2:$A$29999,1,0)) -> 2323865
A122: 6 | B122: 2667212 | C122: MATHIEN Patrick | D122: V | E122: 4A | F122: 1726 | G122: V33 | H122: 5 | I122: =VLOOKUP(B122,Dupli!$A$1:$J$30000,3,0) -> MATHIEN | J122: =VLOOKUP(B122,Dupli!$A$1:$J$30000,4,0) -> Patrick | K122: V | L122: 4A | M122: 1726 | N122: V33 | O122: FR | P122: =VLOOKUP(B122,Dupli!$A$1:$I$30000,6,0) -> V | Q122: =VLOOKUP(B122,Dupli!$A$1:$I$30000,5,0) -> 4A | R122: =VLOOKUP(B122,Dupli!$A$1:$I$30000,8,0) -> 1769 | S122: =VLOOKUP(B122,Dupli!$A$1:$I$30000,7,0) -> V33 | T122: =VLOOKUP(B122,Dupli!$A$1:$I$30000,9,0) -> FR | W122: erreur | Z122: =IF(OR(E122="3A",E122="3B",E122="4A",E122="4B",E122="4C",E122="4D"),B122,VLOOKUP(B122,Phase2!$A$2:$A$30000,1,0)) -> 2667212 | AA122: =IF(OR(E122="2A",E122="2B"),B122,VLOOKUP(B122,Phase3!$A$2:$A$29999,1,0)) -> 2667212
A123: 23 | B123: 1016698 | C123: BOUCHARD Cécile | D123: S | E123: 7 | F123: 14805 | G123: H09 | H123: 6 | I123: =VLOOKUP(B123,Dupli!$A$1:$J$30000,3,0) -> BOUCHARD | J123: =VLOOKUP(B123,Dupli!$A$1:$J$30000,4,0) -> Cécile | K123: S | L123: 7 | M123: 14805 | N123: H09 | O123: FR | P123: =VLOOKUP(B123,Dupli!$A$1:$I$30000,6,0) -> S | Q123: =VLOOKUP(B123,Dupli!$A$1:$I$30000,5,0) -> 7 | R123: =VLOOKUP(B123,Dupli!$A$1:$I$30000,8,0) -> 15677 | S123: =VLOOKUP(B123,Dupli!$A$1:$I$30000,7,0) -> H09 | T123: =VLOOKUP(B123,Dupli!$A$1:$I$30000,9,0) -> FR | W123: erreur | Z123: =IF(OR(E123="3A",E123="3B",E123="4A",E123="4B",E123="4C",E123="4D"),B123,VLOOKUP(B123,Phase2!$A$2:$A$30000,1,0)) -> 1016698 | AA123: =IF(OR(E123="2A",E123="2B"),B123,VLOOKUP(B123,Phase3!$A$2:$A$29999,1,0)) -> 1016698
A124: 15 | B124: 1013325 | C124: FERDINAND Willy | D124: S | E124: 4C | F124: 3458 | G124: V09 | H124: 14 | I124: =VLOOKUP(B124,Dupli!$A$1:$J$30000,3,0) -> FERDINAND | J124: =VLOOKUP(B124,Dupli!$A$1:$J$30000,4,0) -> Willy | K124: S | L124: 4C | M124: 3458 | N124: V09 | O124: FR | P124: =VLOOKUP(B124,Dupli!$A$1:$I$30000,6,0) -> S | Q124: =VLOOKUP(B124,Dupli!$A$1:$I$30000,5,0) -> 4C | R124: =VLOOKUP(B124,Dupli!$A$1:$I$30000,8,0) -> 3496 | S124: =VLOOKUP(B124,Dupli!$A$1:$I$30000,7,0) -> V09 | T124: =VLOOKUP(B124,Dupli!$A$1:$I$30000,9,0) -> FR | W124: erreur | Z124: =IF(OR(E124="3A",E124="3B",E124="4A",E124="4B",E124="4C",E124="4D"),B124,VLOOKUP(B124,Phase2!$A$2:$A$30000,1,0)) -> 1013325 | AA124: =IF(OR(E124="2A",E124="2B"),B124,VLOOKUP(B124,Phase3!$A$2:$A$29999,1,0)) -> 1013325
A125: 8 | B125: 2627313 | C125: RAMEL Josiane | D125: D | E125: 4A | F125: 2011 | G125: V29 | H125: 12 | I125: =VLOOKUP(B125,Dupli!$A$1:$J$30000,3,0) -> RAMEL | J125: =VLOOKUP(B125,Dupli!$A$1:$J$30000,4,0) -> Josiane | K125: D | L125: 4A | M125: 2011 | N125: V29 | O125: FR | P125: =VLOOKUP(B125,Dupli!$A$1:$I$30000,6,0) -> D | Q125: =VLOOKUP(B125,Dupli!$A$1:$I$30000,5,0) -> 4A | R125: =VLOOKUP(B125,Dupli!$A$1:$I$30000,8,0) -> 2051 | S125: =VLOOKUP(B125,Dupli!$A$1:$I$30000,7,0) -> V29 | T125: =VLOOKUP(B125,Dupli!$A$1:$I$30000,9,0) -> FR | W125: erreur | Z125: =IF(OR(E125="3A",E125="3B",E125="4A",E125="4B",E125="4C",E125="4D"),B125,VLOOKUP(B125,Phase2!$A$2:$A$30000,1,0)) -> 2627313 | AA125: =IF(OR(E125="2A",E125="2B"),B125,VLOOKUP(B125,Phase3!$A$2:$A$29999,1,0)) -> 2627313
A126: 5 | B126: 2076488 | C126: GUIGUI Eliette | D126: D | E126: 3B | F126: 1517 | G126: V33 | H126: 18 | I126: =VLOOKUP(B126,Dupli!$A$1:$J$30000,3,0) -> GUIGUI | J126: =VLOOKUP(B126,Dupli!$A$1:$J$30000,4,0) -> Eliette | K126: D | L126: 3B | M126: 1517 | N126: V33 | O126: FR | P126: =VLOOKUP(B126,Dupli!$A$1:$I$30000,6,0) -> D | Q126: =VLOOKUP(B126,Dupli!$A$1:$I$30000,5,0) -> 3B | R126: =VLOOKUP(B126,Dupli!$A$1:$I$30000,8,0) -> 1530 | S126: =VLOOKUP(B126,Dupli!$A$1:$I$30000,7,0) -> V33 | T126: =VLOOKUP(B126,Dupli!$A$1:$I$30000,9,0) -> FR | W126: erreur | Z126: =IF(OR(E126="3A",E126="3B",E126="4A",E126="4B",E126="4C",E126="4D"),B126,VLOOKUP(B126,Phase2!$A$2:$A$30000,1,0)) -> 2076488 | AA126: =IF(OR(E126="2A",E126="2B"),B126,VLOOKUP(B126,Phase3!$A$2:$A$29999,1,0)) -> 2076488
A127: 2 | B127: 2323944 | C127: BRIGANDAT Martine | D127: V | E127: 3B | F127: 1191 | G127: V29 | H127: 1 | I127: =VLOOKUP(B127,Dupli!$A$1:$J$30000,3,0) -> BRIGANDAT | J127: =VLOOKUP(B127,Dupli!$A$1:$J$30000,4,0) -> Martine | K127: V | L127: 3B | M127: 1191 | N127: V29 | O127: FR | P127: =VLOOKUP(B127,Dupli!$A$1:$I$30000,6,0) -> V | Q127: =VLOOKUP(B127,Dupli!$A$1:$I$30000,5,0) -> 3B | R127: =VLOOKUP(B127,Dupli!$A$1:$I$30000,8,0) -> 1204 | S127: =VLOOKUP(B127,Dupli!$A$1:$I$30000,7,0) -> V29 | T127: =VLOOKUP(B127,Dupli!$A$1:$I$30000,9,0) -> FR | W127: erreur | Z127: =IF(OR(E127="3A",E127="3B",E127="4A",E127="4B",E127="4C",E127="4D"),B127,VLOOKUP(B127,Phase2!$A$2:$A$30000,1,0)) -> 2323944 | AA127: =IF(OR(E127="2A",E127="2B"),B127,VLOOKUP(B127,Phase3!$A$2:$A$29999,1,0)) -> 2323944
A128: 11 | B128: 1003729 | C128: PAUCHARD Jean-Louis | D128: S | E128: 4C | F128: 3142 | G128: V33 | H128: 9 | I128: =VLOOKUP(B128,Dupli!$A$1:$J$30000,3,0) -> PAUCHARD | J128: =VLOOKUP(B128,Dupli!$A$1:$J$30000,4,0) -> Jean-Louis | K128: S | L128: 4C | M128: 3142 | N128: V33 | O128: FR | P128: =VLOOKUP(B128,Dupli!$A$1:$I$30000,6,0) -> S | Q128: =VLOOKUP(B128,Dupli!$A$1:$I$30000,5,0) -> 4C | R128: =VLOOKUP(B128,Dupli!$A$1:$I$30000,8,0) -> 3180 | S128: =VLOOKUP(B128,Dupli!$A$1:$I$30000,7,0) -> V33 | T128: =VLOOKUP(B128,Dupli!$A$1:$I$30000,9,0) -> FR | U128: =IF(K128=P128,"","erreur") ->  | V128: =IF(L128=Q128,"","erreur") ->  | W128: =IF(M128=R128,"","erreur") -> erreur | X128: =IF(N128=S128,"","erreur") ->  | Y128: =IF(O128=T128,"","erreur") ->  | Z128: =IF(OR(E128="3A",E128="3B",E128="4A",E128="4B",E128="4C",E128="4D"),B128,VLOOKUP(B128,Phase2!$A$2:$A$30000,1,0)) -> 1003729 | AA128: =IF(OR(E128="2A",E128="2B"),B128,VLOOKUP(B128,Phase3!$A$2:$A$29999,1,0)) -> 1003729
A129: 4 | B129: 1118507 | C129: DI MASCIO Lavinia | D129: D | E129: 3B | F129: 1374 | G129: V29 | H129: 7 | I129: =VLOOKUP(B129,Dupli!$A$1:$J$30000,3,0) -> DI MASCIO | J129: =VLOOKUP(B129,Dupli!$A$1:$J$30000,4,0) -> Lavinia | K129: D | L129: 3B | M129: 1374 | N129: V29 | O129: FR | P129: =VLOOKUP(B129,Dupli!$A$1:$I$30000,6,0) -> D | Q129: =VLOOKUP(B129,Dupli!$A$1:$I$30000,5,0) -> 3B | R129: =VLOOKUP(B129,Dupli!$A$1:$I$30000,8,0) -> 1387 | S129: =VLOOKUP(B129,Dupli!$A$1:$I$30000,7,0) -> V29 | T129: =VLOOKUP(B129,Dupli!$A$1:$I$30000,9,0) -> FR | W129: erreur | Z129: =IF(OR(E129="3A",E129="3B",E129="4A",E129="4B",E129="4C",E129="4D"),B129,VLOOKUP(B129,Phase2!$A$2:$A$30000,1,0)) -> 1118507 | AA129: =IF(OR(E129="2A",E129="2B"),B129,VLOOKUP(B129,Phase3!$A$2:$A$29999,1,0)) -> 1118507
A130: 12 | B130: 1012027 | C130: LEPRINCE François | D130: S | E130: 4C | F130: 3176 | G130: V29 | H130: 8 | I130: =VLOOKUP(B130,Dupli!$A$1:$J$30000,3,0) -> LEPRINCE | J130: =VLOOKUP(B130,Dupli!$A$1:$J$30000,4,0) -> François | K130: S | L130: 4C | M130: 3176 | N130: V29 | O130: FR | P130: =VLOOKUP(B130,Dupli!$A$1:$I$30000,6,0) -> S | Q130: =VLOOKUP(B130,Dupli!$A$1:$I$30000,5,0) -> 4C | R130: =VLOOKUP(B130,Dupli!$A$1:$I$30000,8,0) -> 3214 | S130: =VLOOKUP(B130,Dupli!$A$1:$I$30000,7,0) -> V29 | T130: =VLOOKUP(B130,Dupli!$A$1:$I$30000,9,0) -> FR | W130: erreur | Z130: =IF(OR(E130="3A",E130="3B",E130="4A",E130="4B",E130="4C",E130="4D"),B130,VLOOKUP(B130,Phase2!$A$2:$A$30000,1,0)) -> 1012027 | AA130: =IF(OR(E130="2A",E130="2B"),B130,VLOOKUP(B130,Phase3!$A$2:$A$29999,1,0)) -> 1012027
A131: 13 | B131: 1690885 | C131: CHARON Jacques | D131: D | E131: 4C | F131: 3216 | G131: V33 | H131: 22 | I131: =VLOOKUP(B131,Dupli!$A$1:$J$30000,3,0) -> CHARON | J131: =VLOOKUP(B131,Dupli!$A$1:$J$30000,4,0) -> Jacques | K131: D | L131: 4C | M131: 3216 | N131: V33 | O131: FR | P131: =VLOOKUP(B131,Dupli!$A$1:$I$30000,6,0) -> D | Q131: =VLOOKUP(B131,Dupli!$A$1:$I$30000,5,0) -> 4C | R131: =VLOOKUP(B131,Dupli!$A$1:$I$30000,8,0) -> 3254 | S131: =VLOOKUP(B131,Dupli!$A$1:$I$30000,7,0) -> V33 | T131: =VLOOKUP(B131,Dupli!$A$1:$I$30000,9,0) -> FR | W131: erreur | Z131: =IF(OR(E131="3A",E131="3B",E131="4A",E131="4B",E131="4C",E131="4D"),B131,VLOOKUP(B131,Phase2!$A$2:$A$30000,1,0)) -> 1690885 | AA131: =IF(OR(E131="2A",E131="2B"),B131,VLOOKUP(B131,Phase3!$A$2:$A$29999,1,0)) -> 1690885
A132: 1 | B132: 2313179 | C132: BONILLI Bénédicte | D132: V | E132: 3A | F132: 1063 | G132: V33 | H132: 21 | I132: =VLOOKUP(B132,Dupli!$A$1:$J$30000,3,0) -> BONILLI | J132: =VLOOKUP(B132,Dupli!$A$1:$J$30000,4,0) -> Bénédicte | K132: V | L132: 3A | M132: 1063 | N132: V33 | O132: FR | P132: =VLOOKUP(B132,Dupli!$A$1:$I$30000,6,0) -> V | Q132: =VLOOKUP(B132,Dupli!$A$1:$I$30000,5,0) -> 3A | R132: =VLOOKUP(B132,Dupli!$A$1:$I$30000,8,0) -> 1077 | S132: =VLOOKUP(B132,Dupli!$A$1:$I$30000,7,0) -> V33 | T132: =VLOOKUP(B132,Dupli!$A$1:$I$30000,9,0) -> FR | W132: erreur | Z132: =IF(OR(E132="3A",E132="3B",E132="4A",E132="4B",E132="4C",E132="4D"),B132,VLOOKUP(B132,Phase2!$A$2:$A$30000,1,0)) -> 2313179 | AA132: =IF(OR(E132="2A",E132="2B"),B132,VLOOKUP(B132,Phase3!$A$2:$A$29999,1,0)) -> 2313179
A133: 10 | B133: 3330633 | C133: DELUGIAN Christiane | D133: V | E133: 4C | F133: 2968 | G133: V33 | H133: 16 | I133: =VLOOKUP(B133,Dupli!$A$1:$J$30000,3,0) -> DELUGIAN | J133: =VLOOKUP(B133,Dupli!$A$1:$J$30000,4,0) -> Christiane | K133: V | L133: 4C | M133: 2968 | N133: V33 | O133: FR | P133: =VLOOKUP(B133,Dupli!$A$1:$I$30000,6,0) -> V | Q133: =VLOOKUP(B133,Dupli!$A$1:$I$30000,5,0) -> 4C | R133: =VLOOKUP(B133,Dupli!$A$1:$I$30000,8,0) -> 3006 | S133: =VLOOKUP(B133,Dupli!$A$1:$I$30000,7,0) -> V33 | T133: =VLOOKUP(B133,Dupli!$A$1:$I$30000,9,0) -> FR | W133: erreur | Z133: =IF(OR(E133="3A",E133="3B",E133="4A",E133="4B",E133="4C",E133="4D"),B133,VLOOKUP(B133,Phase2!$A$2:$A$30000,1,0)) -> 3330633 | AA133: =IF(OR(E133="2A",E133="2B"),B133,VLOOKUP(B133,Phase3!$A$2:$A$29999,1,0)) -> 3330633
A134: 18 | B134: 1185806 | C134: POCHARD Margaret | D134: D | E134: 5B | F134: 5879 | G134: V33 | H134: 15 | I134: =VLOOKUP(B134,Dupli!$A$1:$J$30000,3,0) -> POCHARD | J134: =VLOOKUP(B134,Dupli!$A$1:$J$30000,4,0) -> Margaret | K134: D | L134: 5B | M134: 5879 | N134: V33 | O134: FR | P134: =VLOOKUP(B134,Dupli!$A$1:$I$30000,6,0) -> D | Q134: =VLOOKUP(B134,Dupli!$A$1:$I$30000,5,0) -> 5B | R134: =VLOOKUP(B134,Dupli!$A$1:$I$30000,8,0) -> 5966 | S134: =VLOOKUP(B134,Dupli!$A$1:$I$30000,7,0) -> V33 | T134: =VLOOKUP(B134,Dupli!$A$1:$I$30000,9,0) -> FR | W134: erreur | Z134: =IF(OR(E134="3A",E134="3B",E134="4A",E134="4B",E134="4C",E134="4D"),B134,VLOOKUP(B134,Phase2!$A$2:$A$30000,1,0)) -> 1185806 | AA134: =IF(OR(E134="2A",E134="2B"),B134,VLOOKUP(B134,Phase3!$A$2:$A$29999,1,0)) -> 1185806
A135: 9 | B135: 3330622 | C135: DELUGIAN Gérard | D135: V | E135: 4A | F135: 2141 | G135: V33 | H135: 11 | I135: =VLOOKUP(B135,Dupli!$A$1:$J$30000,3,0) -> DELUGIAN | J135: =VLOOKUP(B135,Dupli!$A$1:$J$30000,4,0) -> Gérard | K135: V | L135: 4A | M135: 2141 | N135: V33 | O135: FR | P135: =VLOOKUP(B135,Dupli!$A$1:$I$30000,6,0) -> V | Q135: =VLOOKUP(B135,Dupli!$A$1:$I$30000,5,0) -> 4A | R135: =VLOOKUP(B135,Dupli!$A$1:$I$30000,8,0) -> 2181 | S135: =VLOOKUP(B135,Dupli!$A$1:$I$30000,7,0) -> V33 | T135: =VLOOKUP(B135,Dupli!$A$1:$I$30000,9,0) -> FR | W135: erreur | Z135: =IF(OR(E135="3A",E135="3B",E135="4A",E135="4B",E135="4C",E135="4D"),B135,VLOOKUP(B135,Phase2!$A$2:$A$30000,1,0)) -> 3330622 | AA135: =IF(OR(E135="2A",E135="2B"),B135,VLOOKUP(B135,Phase3!$A$2:$A$29999,1,0)) -> 3330622
A136: 14 | B136: 1037198 | C136: BAAN Annie | D136: D | E136: 4C | F136: 3345 | G136: V09 | H136: 13 | I136: =VLOOKUP(B136,Dupli!$A$1:$J$30000,3,0) -> BAAN | J136: =VLOOKUP(B136,Dupli!$A$1:$J$30000,4,0) -> Annie | K136: D | L136: 4C | M136: 3345 | N136: V09 | O136: FR | P136: =VLOOKUP(B136,Dupli!$A$1:$I$30000,6,0) -> D | Q136: =VLOOKUP(B136,Dupli!$A$1:$I$30000,5,0) -> 4C | R136: =VLOOKUP(B136,Dupli!$A$1:$I$30000,8,0) -> 3383 | S136: =VLOOKUP(B136,Dupli!$A$1:$I$30000,7,0) -> V09 | T136: =VLOOKUP(B136,Dupli!$A$1:$I$30000,9,0) -> FR | W136: erreur | Z136: =IF(OR(E136="3A",E136="3B",E136="4A",E136="4B",E136="4C",E136="4D"),B136,VLOOKUP(B136,Phase2!$A$2:$A$30000,1,0)) -> 1037198 | AA136: =IF(OR(E136="2A",E136="2B"),B136,VLOOKUP(B136,Phase3!$A$2:$A$29999,1,0)) -> 1037198
A137: 17 | B137: 1253803 | C137: DELANGUE Josette | D137: V | E137: 4D | F137: 4209 | G137: V33 | H137: 23 | I137: =VLOOKUP(B137,Dupli!$A$1:$J$30000,3,0) -> DELANGUE | J137: =VLOOKUP(B137,Dupli!$A$1:$J$30000,4,0) -> Josette | K137: V | L137: 4D | M137: 4209 | N137: V33 | O137: FR | P137: =VLOOKUP(B137,Dupli!$A$1:$I$30000,6,0) -> V | Q137: =VLOOKUP(B137,Dupli!$A$1:$I$30000,5,0) -> 4D | R137: =VLOOKUP(B137,Dupli!$A$1:$I$30000,8,0) -> 4245 | S137: =VLOOKUP(B137,Dupli!$A$1:$I$30000,7,0) -> V33 | T137: =VLOOKUP(B137,Dupli!$A$1:$I$30000,9,0) -> FR | W137: erreur | Z137: =IF(OR(E137="3A",E137="3B",E137="4A",E137="4B",E137="4C",E137="4D"),B137,VLOOKUP(B137,Phase2!$A$2:$A$30000,1,0)) -> 1253803 | AA137: =IF(OR(E137="2A",E137="2B"),B137,VLOOKUP(B137,Phase3!$A$2:$A$29999,1,0)) -> 1253803
A138: 19 | B138: 1004167 | C138: SEVESTRE Maryse | D138: V | E138: 5C | F138: 6681 | G138: V09 | H138: 17 | I138: =VLOOKUP(B138,Dupli!$A$1:$J$30000,3,0) -> SEVESTRE | J138: =VLOOKUP(B138,Dupli!$A$1:$J$30000,4,0) -> Maryse | K138: V | L138: 5C | M138: 6681 | N138: V09 | O138: FR | P138: =VLOOKUP(B138,Dupli!$A$1:$I$30000,6,0) -> V | Q138: =VLOOKUP(B138,Dupli!$A$1:$I$30000,5,0) -> 5C | R138: =VLOOKUP(B138,Dupli!$A$1:$I$30000,8,0) -> 6765 | S138: =VLOOKUP(B138,Dupli!$A$1:$I$30000,7,0) -> V09 | T138: =VLOOKUP(B138,Dupli!$A$1:$I$30000,9,0) -> FR | W138: erreur | Z138: =IF(OR(E138="3A",E138="3B",E138="4A",E138="4B",E138="4C",E138="4D"),B138,VLOOKUP(B138,Phase2!$A$2:$A$30000,1,0)) -> 1004167 | AA138: =IF(OR(E138="2A",E138="2B"),B138,VLOOKUP(B138,Phase3!$A$2:$A$29999,1,0)) -> 
A139: 21 | B139: 1300937 | C139: CHEVALLIER Odette | D139: D | E139: 6A | F139: 8349 | G139: V33 | H139: 20 | I139: =VLOOKUP(B139,Dupli!$A$1:$J$30000,3,0) -> CHEVALLIER | J139: =VLOOKUP(B139,Dupli!$A$1:$J$30000,4,0) -> Odette | K139: D | L139: 6A | M139: 8349 | N139: V33 | O139: FR | P139: =VLOOKUP(B139,Dupli!$A$1:$I$30000,6,0) -> D | Q139: =VLOOKUP(B139,Dupli!$A$1:$I$30000,5,0) -> 6A | R139: =VLOOKUP(B139,Dupli!$A$1:$I$30000,8,0) -> 8631 | S139: =VLOOKUP(B139,Dupli!$A$1:$I$30000,7,0) -> V33 | T139: =VLOOKUP(B139,Dupli!$A$1:$I$30000,9,0) -> FR | W139: erreur | Z139: =IF(OR(E139="3A",E139="3B",E139="4A",E139="4B",E139="4C",E139="4D"),B139,VLOOKUP(B139,Phase2!$A$2:$A$30000,1,0)) -> 1300937 | AA139: =IF(OR(E139="2A",E139="2B"),B139,VLOOKUP(B139,Phase3!$A$2:$A$29999,1,0)) -> 
A140: 20 | B140: 1008514 | C140: AZEMA Serge | D140: V | E140: 5C | F140: 6825 | G140: V33 | H140: 19 | I140: =VLOOKUP(B140,Dupli!$A$1:$J$30000,3,0) -> AZEMA | J140: =VLOOKUP(B140,Dupli!$A$1:$J$30000,4,0) -> Serge | K140: V | L140: 5C | M140: 6825 | N140: V33 | O140: FR | P140: =VLOOKUP(B140,Dupli!$A$1:$I$30000,6,0) -> V | Q140: =VLOOKUP(B140,Dupli!$A$1:$I$30000,5,0) -> 5C | R140: =VLOOKUP(B140,Dupli!$A$1:$I$30000,8,0) -> 6909 | S140: =VLOOKUP(B140,Dupli!$A$1:$I$30000,7,0) -> V33 | T140: =VLOOKUP(B140,Dupli!$A$1:$I$30000,9,0) -> FR | W140: erreur | Z140: =IF(OR(E140="3A",E140="3B",E140="4A",E140="4B",E140="4C",E140="4D"),B140,VLOOKUP(B140,Phase2!$A$2:$A$30000,1,0)) -> 1008514 | AA140: =IF(OR(E140="2A",E140="2B"),B140,VLOOKUP(B140,Phase3!$A$2:$A$29999,1,0)) -> 
H141: =B141 -> 0 | I141: =VLOOKUP(B141,Dupli!$A$1:$J$30000,3,0) ->  | J141: =VLOOKUP(B141,Dupli!$A$1:$J$30000,4,0) ->  | K141: 0 | L141: 0 | M141: 0 | N141: 0 | O141: FR | P141: =VLOOKUP(B141,Dupli!$A$1:$I$30000,6,0) ->  | Q141: =VLOOKUP(B141,Dupli!$A$1:$I$30000,5,0) ->  | R141: =VLOOKUP(B141,Dupli!$A$1:$I$30000,8,0) ->  | S141: =VLOOKUP(B141,Dupli!$A$1:$I$30000,7,0) ->  | T141: =VLOOKUP(B141,Dupli!$A$1:$I$30000,9,0) ->  | Z141: =IF(OR(E141="3A",E141="3B",E141="4A",E141="4B",E141="4C",E141="4D"),B141,VLOOKUP(B141,Phase2!$A$2:$A$30000,1,0)) ->  | AA141: =IF(OR(E141="2A",E141="2B"),B141,VLOOKUP(B141,Phase3!$A$2:$A$29999,1,0)) -> 
H142: 0 | I142: =VLOOKUP(B142,Dupli!$A$1:$J$30000,3,0) ->  | J142: =VLOOKUP(B142,Dupli!$A$1:$J$30000,4,0) ->  | K142: 0 | L142: 0 | M142: 0 | N142: 0 | O142: FR | P142: =VLOOKUP(B142,Dupli!$A$1:$I$30000,6,0) ->  | Q142: =VLOOKUP(B142,Dupli!$A$1:$I$30000,5,0) ->  | R142: =VLOOKUP(B142,Dupli!$A$1:$I$30000,8,0) ->  | S142: =VLOOKUP(B142,Dupli!$A$1:$I$30000,7,0) ->  | T142: =VLOOKUP(B142,Dupli!$A$1:$I$30000,9,0) ->  | Z142: =IF(OR(E142="3A",E142="3B",E142="4A",E142="4B",E142="4C",E142="4D"),B142,VLOOKUP(B142,Phase2!$A$2:$A$30000,1,0)) ->  | AA142: =IF(OR(E142="2A",E142="2B"),B142,VLOOKUP(B142,Phase3!$A$2:$A$29999,1,0)) -> 
H143: 0 | I143: =VLOOKUP(B143,Dupli!$A$1:$J$30000,3,0) ->  | J143: =VLOOKUP(B143,Dupli!$A$1:$J$30000,4,0) ->  | K143: 0 | L143: 0 | M143: 0 | N143: 0 | O143: FR | P143: =VLOOKUP(B143,Dupli!$A$1:$I$30000,6,0) ->  | Q143: =VLOOKUP(B143,Dupli!$A$1:$I$30000,5,0) ->  | R143: =VLOOKUP(B143,Dupli!$A$1:$I$30000,8,0) ->  | S143: =VLOOKUP(B143,Dupli!$A$1:$I$30000,7,0) ->  | T143: =VLOOKUP(B143,Dupli!$A$1:$I$30000,9,0) ->  | Z143: =IF(OR(E143="3A",E143="3B",E143="4A",E143="4B",E143="4C",E143="4D"),B143,VLOOKUP(B143,Phase2!$A$2:$A$30000,1,0)) ->  | AA143: =IF(OR(E143="2A",E143="2B"),B143,VLOOKUP(B143,Phase3!$A$2:$A$29999,1,0)) -> 
H144: 0 | I144: =VLOOKUP(B144,Dupli!$A$1:$J$30000,3,0) ->  | J144: =VLOOKUP(B144,Dupli!$A$1:$J$30000,4,0) ->  | K144: 0 | L144: 0 | M144: 0 | N144: 0 | O144: FR | P144: =VLOOKUP(B144,Dupli!$A$1:$I$30000,6,0) ->  | Q144: =VLOOKUP(B144,Dupli!$A$1:$I$30000,5,0) ->  | R144: =VLOOKUP(B144,Dupli!$A$1:$I$30000,8,0) ->  | S144: =VLOOKUP(B144,Dupli!$A$1:$I$30000,7,0) ->  | T144: =VLOOKUP(B144,Dupli!$A$1:$I$30000,9,0) ->  | Z144: =IF(OR(E144="3A",E144="3B",E144="4A",E144="4B",E144="4C",E144="4D"),B144,VLOOKUP(B144,Phase2!$A$2:$A$30000,1,0)) ->  | AA144: =IF(OR(E144="2A",E144="2B"),B144,VLOOKUP(B144,Phase3!$A$2:$A$29999,1,0)) -> 
H145: 0 | I145: =VLOOKUP(B145,Dupli!$A$1:$J$30000,3,0) ->  | J145: =VLOOKUP(B145,Dupli!$A$1:$J$30000,4,0) ->  | K145: 0 | L145: 0 | M145: 0 | N145: 0 | O145: FR | P145: =VLOOKUP(B145,Dupli!$A$1:$I$30000,6,0) ->  | Q145: =VLOOKUP(B145,Dupli!$A$1:$I$30000,5,0) ->  | R145: =VLOOKUP(B145,Dupli!$A$1:$I$30000,8,0) ->  | S145: =VLOOKUP(B145,Dupli!$A$1:$I$30000,7,0) ->  | T145: =VLOOKUP(B145,Dupli!$A$1:$I$30000,9,0) ->  | Z145: =IF(OR(E145="3A",E145="3B",E145="4A",E145="4B",E145="4C",E145="4D"),B145,VLOOKUP(B145,Phase2!$A$2:$A$30000,1,0)) ->  | AA145: =IF(OR(E145="2A",E145="2B"),B145,VLOOKUP(B145,Phase3!$A$2:$A$29999,1,0)) -> 
H146: 0 | I146: =VLOOKUP(B146,Dupli!$A$1:$J$30000,3,0) ->  | J146: =VLOOKUP(B146,Dupli!$A$1:$J$30000,4,0) ->  | K146: 0 | L146: 0 | M146: 0 | N146: 0 | O146: FR | P146: =VLOOKUP(B146,Dupli!$A$1:$I$30000,6,0) ->  | Q146: =VLOOKUP(B146,Dupli!$A$1:$I$30000,5,0) ->  | R146: =VLOOKUP(B146,Dupli!$A$1:$I$30000,8,0) ->  | S146: =VLOOKUP(B146,Dupli!$A$1:$I$30000,7,0) ->  | T146: =VLOOKUP(B146,Dupli!$A$1:$I$30000,9,0) ->  | Z146: =IF(OR(E146="3A",E146="3B",E146="4A",E146="4B",E146="4C",E146="4D"),B146,VLOOKUP(B146,Phase2!$A$2:$A$30000,1,0)) ->  | AA146: =IF(OR(E146="2A",E146="2B"),B146,VLOOKUP(B146,Phase3!$A$2:$A$29999,1,0)) -> 
H147: 0 | I147: =VLOOKUP(B147,Dupli!$A$1:$J$30000,3,0) ->  | J147: =VLOOKUP(B147,Dupli!$A$1:$J$30000,4,0) ->  | K147: 0 | L147: 0 | M147: 0 | N147: 0 | O147: FR | P147: =VLOOKUP(B147,Dupli!$A$1:$I$30000,6,0) ->  | Q147: =VLOOKUP(B147,Dupli!$A$1:$I$30000,5,0) ->  | R147: =VLOOKUP(B147,Dupli!$A$1:$I$30000,8,0) ->  | S147: =VLOOKUP(B147,Dupli!$A$1:$I$30000,7,0) ->  | T147: =VLOOKUP(B147,Dupli!$A$1:$I$30000,9,0) ->  | Z147: =IF(OR(E147="3A",E147="3B",E147="4A",E147="4B",E147="4C",E147="4D"),B147,VLOOKUP(B147,Phase2!$A$2:$A$30000,1,0)) ->  | AA147: =IF(OR(E147="2A",E147="2B"),B147,VLOOKUP(B147,Phase3!$A$2:$A$29999,1,0)) -> 
H148: 0 | I148: =VLOOKUP(B148,Dupli!$A$1:$J$30000,3,0) ->  | J148: =VLOOKUP(B148,Dupli!$A$1:$J$30000,4,0) ->  | K148: 0 | L148: 0 | M148: 0 | N148: 0 | O148: FR | P148: =VLOOKUP(B148,Dupli!$A$1:$I$30000,6,0) ->  | Q148: =VLOOKUP(B148,Dupli!$A$1:$I$30000,5,0) ->  | R148: =VLOOKUP(B148,Dupli!$A$1:$I$30000,8,0) ->  | S148: =VLOOKUP(B148,Dupli!$A$1:$I$30000,7,0) ->  | T148: =VLOOKUP(B148,Dupli!$A$1:$I$30000,9,0) ->  | Z148: =IF(OR(E148="3A",E148="3B",E148="4A",E148="4B",E148="4C",E148="4D"),B148,VLOOKUP(B148,Phase2!$A$2:$A$30000,1,0)) ->  | AA148: =IF(OR(E148="2A",E148="2B"),B148,VLOOKUP(B148,Phase3!$A$2:$A$29999,1,0)) -> 
H149: 0 | I149: =VLOOKUP(B149,Dupli!$A$1:$J$30000,3,0) ->  | J149: =VLOOKUP(B149,Dupli!$A$1:$J$30000,4,0) ->  | K149: 0 | L149: 0 | M149: 0 | N149: 0 | O149: FR | P149: =VLOOKUP(B149,Dupli!$A$1:$I$30000,6,0) ->  | Q149: =VLOOKUP(B149,Dupli!$A$1:$I$30000,5,0) ->  | R149: =VLOOKUP(B149,Dupli!$A$1:$I$30000,8,0) ->  | S149: =VLOOKUP(B149,Dupli!$A$1:$I$30000,7,0) ->  | T149: =VLOOKUP(B149,Dupli!$A$1:$I$30000,9,0) ->  | Z149: =IF(OR(E149="3A",E149="3B",E149="4A",E149="4B",E149="4C",E149="4D"),B149,VLOOKUP(B149,Phase2!$A$2:$A$30000,1,0)) ->  | AA149: =IF(OR(E149="2A",E149="2B"),B149,VLOOKUP(B149,Phase3!$A$2:$A$29999,1,0)) -> 
H150: 0 | I150: =VLOOKUP(B150,Dupli!$A$1:$J$30000,3,0) ->  | J150: =VLOOKUP(B150,Dupli!$A$1:$J$30000,4,0) ->  | K150: 0 | L150: 0 | M150: 0 | N150: 0 | O150: FR | P150: =VLOOKUP(B150,Dupli!$A$1:$I$30000,6,0) ->  | Q150: =VLOOKUP(B150,Dupli!$A$1:$I$30000,5,0) ->  | R150: =VLOOKUP(B150,Dupli!$A$1:$I$30000,8,0) ->  | S150: =VLOOKUP(B150,Dupli!$A$1:$I$30000,7,0) ->  | T150: =VLOOKUP(B150,Dupli!$A$1:$I$30000,9,0) ->  | Z150: =IF(OR(E150="3A",E150="3B",E150="4A",E150="4B",E150="4C",E150="4D"),B150,VLOOKUP(B150,Phase2!$A$2:$A$30000,1,0)) ->  | AA150: =IF(OR(E150="2A",E150="2B"),B150,VLOOKUP(B150,Phase3!$A$2:$A$29999,1,0)) -> 
H151: 0 | I151: =VLOOKUP(B151,Dupli!$A$1:$J$30000,3,0) ->  | J151: =VLOOKUP(B151,Dupli!$A$1:$J$30000,4,0) ->  | K151: 0 | L151: 0 | M151: 0 | N151: 0 | O151: FR | P151: =VLOOKUP(B151,Dupli!$A$1:$I$30000,6,0) ->  | Q151: =VLOOKUP(B151,Dupli!$A$1:$I$30000,5,0) ->  | R151: =VLOOKUP(B151,Dupli!$A$1:$I$30000,8,0) ->  | S151: =VLOOKUP(B151,Dupli!$A$1:$I$30000,7,0) ->  | T151: =VLOOKUP(B151,Dupli!$A$1:$I$30000,9,0) ->  | Z151: =IF(OR(E151="3A",E151="3B",E151="4A",E151="4B",E151="4C",E151="4D"),B151,VLOOKUP(B151,Phase2!$A$2:$A$30000,1,0)) ->  | AA151: =IF(OR(E151="2A",E151="2B"),B151,VLOOKUP(B151,Phase3!$A$2:$A$29999,1,0)) -> 
A152: 49 | B152: 1005413 | C152: LAVOT Annie | D152: D | E152: 5D | F152: 8046 | G152: V37 | H152: 1005413 | I152: =VLOOKUP(B152,Dupli!$A$1:$J$30000,3,0) -> LAVOT | J152: =VLOOKUP(B152,Dupli!$A$1:$J$30000,4,0) -> Annie | K152: D | L152: 5D | M152: 8046 | N152: V37 | O152: FR | P152: =VLOOKUP(B152,Dupli!$A$1:$I$30000,6,0) -> D | Q152: =VLOOKUP(B152,Dupli!$A$1:$I$30000,5,0) -> 5C | R152: =VLOOKUP(B152,Dupli!$A$1:$I$30000,8,0) -> 7031 | S152: =VLOOKUP(B152,Dupli!$A$1:$I$30000,7,0) -> V37 | T152: =VLOOKUP(B152,Dupli!$A$1:$I$30000,9,0) -> FR | V152: erreur | W152: erreur | Z152: =IF(OR(E152="3A",E152="3B",E152="4A",E152="4B",E152="4C",E152="4D"),B152,VLOOKUP(B152,Phase2!$A$2:$A$30000,1,0)) ->  | AA152: =IF(OR(E152="2A",E152="2B"),B152,VLOOKUP(B152,Phase3!$A$2:$A$29999,1,0)) -> 
A153: 50 | B153: 1008353 | C153: TURBIARZ Françoise | D153: V | E153: 6A | F153: 9240 | G153: V24 | H153: 1008353 | I153: =VLOOKUP(B153,Dupli!$A$1:$J$30000,3,0) -> TURBIARZ | J153: =VLOOKUP(B153,Dupli!$A$1:$J$30000,4,0) -> Françoise | K153: V | L153: 6A | M153: 9240 | N153: V24 | O153: FR | P153: =VLOOKUP(B153,Dupli!$A$1:$I$30000,6,0) -> V | Q153: =VLOOKUP(B153,Dupli!$A$1:$I$30000,5,0) -> 5D | R153: =VLOOKUP(B153,Dupli!$A$1:$I$30000,8,0) -> 7663 | S153: =VLOOKUP(B153,Dupli!$A$1:$I$30000,7,0) -> V24 | T153: =VLOOKUP(B153,Dupli!$A$1:$I$30000,9,0) -> FR | V153: erreur | W153: erreur | Z153: =IF(OR(E153="3A",E153="3B",E153="4A",E153="4B",E153="4C",E153="4D"),B153,VLOOKUP(B153,Phase2!$A$2:$A$30000,1,0)) ->  | AA153: =IF(OR(E153="2A",E153="2B"),B153,VLOOKUP(B153,Phase3!$A$2:$A$29999,1,0)) -> 
A154: 51 | B154: 1013062 | C154: BELLANGER Christelle | D154: S | E154: 6A | F154: 9318 | G154: V03 | H154: 1013062 | I154: =VLOOKUP(B154,Dupli!$A$1:$J$30000,3,0) -> BELLANGER | J154: =VLOOKUP(B154,Dupli!$A$1:$J$30000,4,0) -> Christelle | K154: S | L154: 6A | M154: 9318 | N154: V03 | O154: FR | P154: =VLOOKUP(B154,Dupli!$A$1:$I$30000,6,0) -> S | Q154: =VLOOKUP(B154,Dupli!$A$1:$I$30000,5,0) -> 5C | R154: =VLOOKUP(B154,Dupli!$A$1:$I$30000,8,0) -> 6620 | S154: =VLOOKUP(B154,Dupli!$A$1:$I$30000,7,0) -> V24 | T154: =VLOOKUP(B154,Dupli!$A$1:$I$30000,9,0) -> FR | V154: erreur | W154: erreur | X154: erreur | Z154: =IF(OR(E154="3A",E154="3B",E154="4A",E154="4B",E154="4C",E154="4D"),B154,VLOOKUP(B154,Phase2!$A$2:$A$30000,1,0)) -> 1013062 | AA154: =IF(OR(E154="2A",E154="2B"),B154,VLOOKUP(B154,Phase3!$A$2:$A$29999,1,0)) -> 
A155: 52 | B155: 1650079 | C155: FOURQUET Jean-Claude | D155: D | E155: 6A | F155: 9334 | G155: V17 | H155: 1650079 | I155: =VLOOKUP(B155,Dupli!$A$1:$J$30000,3,0) -> FOURQUET | J155: =VLOOKUP(B155,Dupli!$A$1:$J$30000,4,0) -> Jean-Claude | K155: D | L155: 6A | M155: 9334 | N155: V17 | O155: FR | P155: =VLOOKUP(B155,Dupli!$A$1:$I$30000,6,0) -> D | Q155: =VLOOKUP(B155,Dupli!$A$1:$I$30000,5,0) -> 5C | R155: =VLOOKUP(B155,Dupli!$A$1:$I$30000,8,0) -> 7026 | S155: =VLOOKUP(B155,Dupli!$A$1:$I$30000,7,0) -> V17 | T155: =VLOOKUP(B155,Dupli!$A$1:$I$30000,9,0) -> FR | V155: erreur | W155: erreur | Z155: =IF(OR(E155="3A",E155="3B",E155="4A",E155="4B",E155="4C",E155="4D"),B155,VLOOKUP(B155,Phase2!$A$2:$A$30000,1,0)) ->  | AA155: =IF(OR(E155="2A",E155="2B"),B155,VLOOKUP(B155,Phase3!$A$2:$A$29999,1,0)) -> 
A156: 53 | B156: 1010329 | C156: DOBRZYNSKY Chantale | D156: V | E156: 6A | F156: 9354 | G156: V19 | H156: 1010329 | I156: =VLOOKUP(B156,Dupli!$A$1:$J$30000,3,0) -> DOBRZYNSKY | J156: =VLOOKUP(B156,Dupli!$A$1:$J$30000,4,0) -> Chantale | K156: V | L156: 6A | M156: 9354 | N156: V19 | O156: FR | P156: =VLOOKUP(B156,Dupli!$A$1:$I$30000,6,0) -> V | Q156: =VLOOKUP(B156,Dupli!$A$1:$I$30000,5,0) -> 5D | R156: =VLOOKUP(B156,Dupli!$A$1:$I$30000,8,0) -> 7991 | S156: =VLOOKUP(B156,Dupli!$A$1:$I$30000,7,0) -> V19 | T156: =VLOOKUP(B156,Dupli!$A$1:$I$30000,9,0) -> FR | V156: erreur | W156: erreur | Z156: =IF(OR(E156="3A",E156="3B",E156="4A",E156="4B",E156="4C",E156="4D"),B156,VLOOKUP(B156,Phase2!$A$2:$A$30000,1,0)) -> 1010329 | AA156: =IF(OR(E156="2A",E156="2B"),B156,VLOOKUP(B156,Phase3!$A$2:$A$29999,1,0)) -> 
A157: 54 | B157: 1008893 | C157: DUBUS Martine | D157: V | E157: 6A | F157: 9382 | G157: V03 | H157: 1008893 | I157: =VLOOKUP(B157,Dupli!$A$1:$J$30000,3,0) -> DUBUS | J157: =VLOOKUP(B157,Dupli!$A$1:$J$30000,4,0) -> Martine | K157: =D157 -> V | L157: 6A | M157: 9382 | N157: V03 | O157: FR | P157: =VLOOKUP(B157,Dupli!$A$1:$I$30000,6,0) -> V | Q157: =VLOOKUP(B157,Dupli!$A$1:$I$30000,5,0) -> 5D | R157: =VLOOKUP(B157,Dupli!$A$1:$I$30000,8,0) -> 8035 | S157: =VLOOKUP(B157,Dupli!$A$1:$I$30000,7,0) -> V03 | T157: =VLOOKUP(B157,Dupli!$A$1:$I$30000,9,0) -> FR | V157: erreur | W157: erreur | Z157: =IF(OR(E157="3A",E157="3B",E157="4A",E157="4B",E157="4C",E157="4D"),B157,VLOOKUP(B157,Phase2!$A$2:$A$30000,1,0)) ->  | AA157: =IF(OR(E157="2A",E157="2B"),B157,VLOOKUP(B157,Phase3!$A$2:$A$29999,1,0)) -> 
A158: 55 | B158: 1098619 | C158: DEMOTTAIS Chantal | D158: V | E158: 6A | F158: 9549 | G158: V07 | H158: 1098619 | I158: =VLOOKUP(B158,Dupli!$A$1:$J$30000,3,0) -> DEMOTTAIS | J158: =VLOOKUP(B158,Dupli!$A$1:$J$30000,4,0) -> Chantal | K158: V | L158: 6A | M158: 9549 | N158: V07 | O158: FR | P158: =VLOOKUP(B158,Dupli!$A$1:$I$30000,6,0) -> V | Q158: =VLOOKUP(B158,Dupli!$A$1:$I$30000,5,0) -> 5D | R158: =VLOOKUP(B158,Dupli!$A$1:$I$30000,8,0) -> 8238 | S158: =VLOOKUP(B158,Dupli!$A$1:$I$30000,7,0) -> V07 | T158: =VLOOKUP(B158,Dupli!$A$1:$I$30000,9,0) -> FR | V158: erreur | W158: erreur | Z158: =IF(OR(E158="3A",E158="3B",E158="4A",E158="4B",E158="4C",E158="4D"),B158,VLOOKUP(B158,Phase2!$A$2:$A$30000,1,0)) ->  | AA158: =IF(OR(E158="2A",E158="2B"),B158,VLOOKUP(B158,Phase3!$A$2:$A$29999,1,0)) -> 
A159: 56 | B159: 3202734 | C159: MERLIN Françoise | D159: V | E159: 6A | F159: 9931 | G159: V24 | H159: 3202734 | I159: =VLOOKUP(B159,Dupli!$A$1:$J$30000,3,0) -> MERLIN | J159: =VLOOKUP(B159,Dupli!$A$1:$J$30000,4,0) -> Françoise | K159: V | L159: 6A | M159: 9931 | N159: V24 | O159: FR | P159: =VLOOKUP(B159,Dupli!$A$1:$I$30000,6,0) -> V | Q159: =VLOOKUP(B159,Dupli!$A$1:$I$30000,5,0) -> 6A | R159: =VLOOKUP(B159,Dupli!$A$1:$I$30000,8,0) -> 8664 | S159: =VLOOKUP(B159,Dupli!$A$1:$I$30000,7,0) -> V24 | T159: =VLOOKUP(B159,Dupli!$A$1:$I$30000,9,0) -> FR | W159: erreur | Z159: =IF(OR(E159="3A",E159="3B",E159="4A",E159="4B",E159="4C",E159="4D"),B159,VLOOKUP(B159,Phase2!$A$2:$A$30000,1,0)) ->  | AA159: =IF(OR(E159="2A",E159="2B"),B159,VLOOKUP(B159,Phase3!$A$2:$A$29999,1,0)) -> 
A160: 57 | B160: 1008904 | C160: DUBUS Roland | D160: V | E160: 6A | F160: 10339 | G160: V03 | H160: 1008904 | I160: =VLOOKUP(B160,Dupli!$A$1:$J$30000,3,0) -> DUBUS | J160: =VLOOKUP(B160,Dupli!$A$1:$J$30000,4,0) -> Roland | K160: V | L160: 6A | M160: 10339 | N160: V03 | O160: FR | P160: =VLOOKUP(B160,Dupli!$A$1:$I$30000,6,0) -> V | Q160: =VLOOKUP(B160,Dupli!$A$1:$I$30000,5,0) -> 6A | R160: =VLOOKUP(B160,Dupli!$A$1:$I$30000,8,0) -> 8938 | S160: =VLOOKUP(B160,Dupli!$A$1:$I$30000,7,0) -> V03 | T160: =VLOOKUP(B160,Dupli!$A$1:$I$30000,9,0) -> FR | W160: erreur | Z160: =IF(OR(E160="3A",E160="3B",E160="4A",E160="4B",E160="4C",E160="4D"),B160,VLOOKUP(B160,Phase2!$A$2:$A$30000,1,0)) ->  | AA160: =IF(OR(E160="2A",E160="2B"),B160,VLOOKUP(B160,Phase3!$A$2:$A$29999,1,0)) -> 
A161: 58 | B161: 1011362 | C161: HUGOTTE Jocelyne | D161: V | E161: 6A | F161: 10481 | G161: V24 | H161: 1011362 | I161: =VLOOKUP(B161,Dupli!$A$1:$J$30000,3,0) -> HUGOTTE | J161: =VLOOKUP(B161,Dupli!$A$1:$J$30000,4,0) -> Jocelyne | K161: V | L161: 6A | M161: 10481 | N161: V24 | O161: FR | P161: =VLOOKUP(B161,Dupli!$A$1:$I$30000,6,0) -> V | Q161: =VLOOKUP(B161,Dupli!$A$1:$I$30000,5,0) -> 6A | R161: =VLOOKUP(B161,Dupli!$A$1:$I$30000,8,0) -> 9188 | S161: =VLOOKUP(B161,Dupli!$A$1:$I$30000,7,0) -> V24 | T161: =VLOOKUP(B161,Dupli!$A$1:$I$30000,9,0) -> FR | W161: erreur | Z161: =IF(OR(E161="3A",E161="3B",E161="4A",E161="4B",E161="4C",E161="4D"),B161,VLOOKUP(B161,Phase2!$A$2:$A$30000,1,0)) ->  | AA161: =IF(OR(E161="2A",E161="2B"),B161,VLOOKUP(B161,Phase3!$A$2:$A$29999,1,0)) -> 
A162: 59 | B162: 1059938 | C162: TOUZELET France | D162: V | E162: 6A | F162: 10973 | G162: V37 | H162: 1059938 | I162: =VLOOKUP(B162,Dupli!$A$1:$J$30000,3,0) -> TOUZELET | J162: =VLOOKUP(B162,Dupli!$A$1:$J$30000,4,0) -> France | K162: V | L162: 6A | M162: 10973 | N162: V37 | O162: FR | P162: =VLOOKUP(B162,Dupli!$A$1:$I$30000,6,0) -> V | Q162: =VLOOKUP(B162,Dupli!$A$1:$I$30000,5,0) -> 6A | R162: =VLOOKUP(B162,Dupli!$A$1:$I$30000,8,0) -> 9240 | S162: =VLOOKUP(B162,Dupli!$A$1:$I$30000,7,0) -> V37 | T162: =VLOOKUP(B162,Dupli!$A$1:$I$30000,9,0) -> FR | W162: erreur | Z162: =IF(OR(E162="3A",E162="3B",E162="4A",E162="4B",E162="4C",E162="4D"),B162,VLOOKUP(B162,Phase2!$A$2:$A$30000,1,0)) ->  | AA162: =IF(OR(E162="2A",E162="2B"),B162,VLOOKUP(B162,Phase3!$A$2:$A$29999,1,0)) -> 
A163: 60 | B163: 1059112 | C163: BORIE Colette | D163: V | E163: 6C | F163: 14018 | G163: V37 | H163: 1059112 | I163: =VLOOKUP(B163,Dupli!$A$1:$J$30000,3,0) -> BORIE | J163: =VLOOKUP(B163,Dupli!$A$1:$J$30000,4,0) -> Colette | K163: V | L163: 6C | M163: 14018 | N163: V37 | O163: FR | P163: =VLOOKUP(B163,Dupli!$A$1:$I$30000,6,0) -> V | Q163: =VLOOKUP(B163,Dupli!$A$1:$I$30000,5,0) -> 6B | R163: =VLOOKUP(B163,Dupli!$A$1:$I$30000,8,0) -> 11354 | S163: =VLOOKUP(B163,Dupli!$A$1:$I$30000,7,0) -> V37 | T163: =VLOOKUP(B163,Dupli!$A$1:$I$30000,9,0) -> FR | V163: erreur | W163: erreur | Z163: =IF(OR(E163="3A",E163="3B",E163="4A",E163="4B",E163="4C",E163="4D"),B163,VLOOKUP(B163,Phase2!$A$2:$A$30000,1,0)) ->  | AA163: =IF(OR(E163="2A",E163="2B"),B163,VLOOKUP(B163,Phase3!$A$2:$A$29999,1,0)) -> 
A164: 61 | B164: 1013685 | C164: LAVOT Maurice | D164: D | E164: 6C | F164: 15458 | G164: V37 | H164: 1013685 | I164: =VLOOKUP(B164,Dupli!$A$1:$J$30000,3,0) -> LAVOT | J164: =VLOOKUP(B164,Dupli!$A$1:$J$30000,4,0) -> Maurice | K164: D | L164: 6C | M164: 15458 | N164: V37 | O164: FR | P164: =VLOOKUP(B164,Dupli!$A$1:$I$30000,6,0) -> D | Q164: =VLOOKUP(B164,Dupli!$A$1:$I$30000,5,0) -> 6C | R164: =VLOOKUP(B164,Dupli!$A$1:$I$30000,8,0) -> 11808 | S164: =VLOOKUP(B164,Dupli!$A$1:$I$30000,7,0) -> V37 | T164: =VLOOKUP(B164,Dupli!$A$1:$I$30000,9,0) -> FR | W164: erreur | Z164: =IF(OR(E164="3A",E164="3B",E164="4A",E164="4B",E164="4C",E164="4D"),B164,VLOOKUP(B164,Phase2!$A$2:$A$30000,1,0)) ->  | AA164: =IF(OR(E164="2A",E164="2B"),B164,VLOOKUP(B164,Phase3!$A$2:$A$29999,1,0)) -> 
A165: 62 | B165: 1014915 | C165: FRANCO Philippe | D165: S | E165: 6D | F165: 17643 | G165: V21 | H165: 1014915 | I165: =VLOOKUP(B165,Dupli!$A$1:$J$30000,3,0) -> FRANCO | J165: =VLOOKUP(B165,Dupli!$A$1:$J$30000,4,0) -> Philippe | K165: S | L165: 6D | M165: 17643 | N165: V21 | O165: FR | P165: =VLOOKUP(B165,Dupli!$A$1:$I$30000,6,0) -> S | Q165: =VLOOKUP(B165,Dupli!$A$1:$I$30000,5,0) -> 6B | R165: =VLOOKUP(B165,Dupli!$A$1:$I$30000,8,0) -> 11443 | S165: =VLOOKUP(B165,Dupli!$A$1:$I$30000,7,0) -> V21 | T165: =VLOOKUP(B165,Dupli!$A$1:$I$30000,9,0) -> FR | V165: erreur | W165: erreur | Z165: =IF(OR(E165="3A",E165="3B",E165="4A",E165="4B",E165="4C",E165="4D"),B165,VLOOKUP(B165,Phase2!$A$2:$A$30000,1,0)) ->  | AA165: =IF(OR(E165="2A",E165="2B"),B165,VLOOKUP(B165,Phase3!$A$2:$A$29999,1,0)) -> 
A166: 63 | B166: 1015403 | C166: LE YAOUANG Marie-Hélène | D166: S | E166: 7 | F166: 23000 | G166: V09 | H166: 1015403 | I166: =VLOOKUP(B166,Dupli!$A$1:$J$30000,3,0) -> LE YAOUANQ | J166: =VLOOKUP(B166,Dupli!$A$1:$J$30000,4,0) -> Marie-Hélène | K166: S | L166: 7 | M166: 23000 | N166: V09 | O166: FR | P166: =VLOOKUP(B166,Dupli!$A$1:$I$30000,6,0) -> V | Q166: =VLOOKUP(B166,Dupli!$A$1:$I$30000,5,0) -> 7 | R166: =VLOOKUP(B166,Dupli!$A$1:$I$30000,8,0) -> 15633 | S166: =VLOOKUP(B166,Dupli!$A$1:$I$30000,7,0) -> V09 | T166: =VLOOKUP(B166,Dupli!$A$1:$I$30000,9,0) -> FR | U166: erreur | V166: erreur | W166: erreur | Z166: =IF(OR(E166="3A",E166="3B",E166="4A",E166="4B",E166="4C",E166="4D"),B166,VLOOKUP(B166,Phase2!$A$2:$A$30000,1,0)) ->  | AA166: =IF(OR(E166="2A",E166="2B"),B166,VLOOKUP(B166,Phase3!$A$2:$A$29999,1,0)) -> 
A167: 64 | B167: 1016301 | C167: TOUZELET Nathalie | D167: S | E167: 7 | F167: 23000 | G167: V37 | H167: 1016301 | I167: =VLOOKUP(B167,Dupli!$A$1:$J$30000,3,0) ->  | J167: =VLOOKUP(B167,Dupli!$A$1:$J$30000,4,0) ->  | K167: S | L167: 7 | M167: 23000 | N167: V37 | O167: FR | P167: =VLOOKUP(B167,Dupli!$A$1:$I$30000,6,0) ->  | Q167: =VLOOKUP(B167,Dupli!$A$1:$I$30000,5,0) ->  | R167: =VLOOKUP(B167,Dupli!$A$1:$I$30000,8,0) ->  | S167: =VLOOKUP(B167,Dupli!$A$1:$I$30000,7,0) ->  | T167: =VLOOKUP(B167,Dupli!$A$1:$I$30000,9,0) ->  | Z167: =IF(OR(E167="3A",E167="3B",E167="4A",E167="4B",E167="4C",E167="4D"),B167,VLOOKUP(B167,Phase2!$A$2:$A$30000,1,0)) ->  | AA167: =IF(OR(E167="2A",E167="2B"),B167,VLOOKUP(B167,Phase3!$A$2:$A$29999,1,0)) -> 
B168: 2313203 | C168: HAQUIN Irène | D168: V | E168: 3B | F168: 1353 | G168: V33 | H168: 2313203 | I168: =VLOOKUP(B168,Dupli!$A$1:$J$30000,3,0) -> HAQUIN | J168: =VLOOKUP(B168,Dupli!$A$1:$J$30000,4,0) -> Irène | K168: V | L168: 3B | M168: 1353 | N168: V33 | O168: FR | P168: =VLOOKUP(B168,Dupli!$A$1:$I$30000,6,0) -> D | Q168: =VLOOKUP(B168,Dupli!$A$1:$I$30000,5,0) -> 3B | R168: =VLOOKUP(B168,Dupli!$A$1:$I$30000,8,0) -> 1244 | S168: =VLOOKUP(B168,Dupli!$A$1:$I$30000,7,0) -> V33 | T168: =VLOOKUP(B168,Dupli!$A$1:$I$30000,9,0) -> FR | U168: erreur | W168: erreur | Z168: =IF(OR(E168="3A",E168="3B",E168="4A",E168="4B",E168="4C",E168="4D"),B168,VLOOKUP(B168,Phase2!$A$2:$A$30000,1,0)) -> 2313203 | AA168: =IF(OR(E168="2A",E168="2B"),B168,VLOOKUP(B168,Phase3!$A$2:$A$29999,1,0)) -> 2313203
B169: 2313192 | C169: PECHON Monique | D169: D | E169: 4B | F169: 2888 | G169: V33 | H169: 2313192 | I169: =VLOOKUP(B169,Dupli!$A$1:$J$30000,3,0) -> PECHON | J169: =VLOOKUP(B169,Dupli!$A$1:$J$30000,4,0) -> Monique | K169: D | L169: 4B | M169: 2888 | N169: V33 | O169: FR | P169: =VLOOKUP(B169,Dupli!$A$1:$I$30000,6,0) -> D | Q169: =VLOOKUP(B169,Dupli!$A$1:$I$30000,5,0) -> 4B | R169: =VLOOKUP(B169,Dupli!$A$1:$I$30000,8,0) -> 2820 | S169: =VLOOKUP(B169,Dupli!$A$1:$I$30000,7,0) -> V33 | T169: =VLOOKUP(B169,Dupli!$A$1:$I$30000,9,0) -> FR | W169: erreur | Z169: =IF(OR(E169="3A",E169="3B",E169="4A",E169="4B",E169="4C",E169="4D"),B169,VLOOKUP(B169,Phase2!$A$2:$A$30000,1,0)) -> 2313192 | AA169: =IF(OR(E169="2A",E169="2B"),B169,VLOOKUP(B169,Phase3!$A$2:$A$29999,1,0)) -> 
I170: =VLOOKUP(B170,Dupli!$A$1:$J$30000,3,0) ->  | J170: =VLOOKUP(B170,Dupli!$A$1:$J$30000,4,0) ->  | P170: =VLOOKUP(B170,Dupli!$A$1:$I$30000,6,0) ->  | Q170: =VLOOKUP(B170,Dupli!$A$1:$I$30000,5,0) ->  | R170: =VLOOKUP(B170,Dupli!$A$1:$I$30000,8,0) ->  | S170: =VLOOKUP(B170,Dupli!$A$1:$I$30000,7,0) ->  | T170: =VLOOKUP(B170,Dupli!$A$1:$I$30000,9,0) ->  | Z170: =IF(OR(E170="3A",E170="3B",E170="4A",E170="4B",E170="4C",E170="4D"),B170,VLOOKUP(B170,Phase2!$A$2:$A$30000,1,0)) ->  | AA170: =IF(OR(E170="2A",E170="2B"),B170,VLOOKUP(B170,Phase3!$A$2:$A$29999,1,0)) -> 

Sheet Inscrits
A1: TABLE | B1: NLIC | C1: NOM | D1: CAT | E1: S | F1: Place | G1: CCLUB
C2: TOP
A3: A01 | B3: 2323865 | C3: LEFEVRE Maryse | D3: R | E3: 4A | F3: 1751 | G3: V33
A4: A02 | B4: 1017965 | C4: LESPINE Huguette | D4: R | E4: 7 | F4: 18000 | G4: V06
A5: 1 | B5: 2313203 | C5: HAQUIN Irène | D5: D | E5: 3B | F5: 1231 | G5: V33
A6: 2 | B6: 1118507 | C6: DI MASCIO Lavinia | D6: D | E6: 3B | F6: 1374 | G6: V29
A7: 3 | B7: 1092028 | C7: CAMUS Gioconde | D7: D | E7: 4A | F7: 1763 | G7: V33
A8: 4 | B8: 2627313 | C8: RAMEL Josiane | D8: D | E8: 4A | F8: 2011 | G8: V29
A9: 5 | B9: 3330622 | C9: DELUGIAN Gérard | D9: V | E9: 4A | F9: 2141 | G9: V33
A10: 6 | B10: 3330633 | C10: DELUGIAN Christiane | D10: V | E10: 4C | F10: 2968 | G10: V33
A11: 7 | B11: 1037198 | C11: BAAN Annie | D11: D | E11: 4C | F11: 3345 | G11: V09
A12: 8 | B12: 1252022 | C12: GUILLON Chantal | D12: V | E12: 4D | F12: 3516 | G12: V33
A13: 9 | B13: 1001129 | C13: VAILLANT Anny | D13: D | E13: 5A | F13: 4992 | G13: V33
A14: 10 | B14: 1185806 | C14: POCHARD Margaret | D14: D | E14: 5B | F14: 5879 | G14: V33
A15: 11 | B15: 1271623 | C15: HILAIRE Colette | D15: D | E15: 5B | F15: 6071 | G15: V29
A16: 12 | B16: 2800563 | C16: TOUFFET Rémy | D16: D | E16: 5C | F16: 6207 | G16: V33
A17: 13 | B17: 1008514 | C17: AZEMA Serge | D17: V | E17: 5C | F17: 6825 | G17: V33
A18: 14 | B18: 1006975 | C18: YVÉ Françoise | D18: V | E18: 5C | F18: 7050 | G18: V29
A19: 15 | B19: 1017995 | C19: LAMORLETTE Marie-France | D19: V | E19: 7 | F19: 18000 | G19: V33
A20: 0
A21: 0
A22: 0
A23: 0
A24: 0
A25: 0
A26: 0
A27: 0
A28: 0
A29: 0
A30: 0
A31: 0
A32: 0
A33: 0
A34: 0
A35: 0
A36: 0
A37: 0
A38: 0
A39: 0
A40: 0
A41: 0
A42: 0
A43: 0
A44: 0
A45: 0
A46: 0
A47: 0
A48: 0
A49: 0
A50: 0
A51: 0
A52: 0
A53: 0
A54: 0
A55: 0
A56: 0
A57: 0
A58: 0
A59: 0
A60: 0
A61: 0
A62: 0
A63: 0
A64: 0
A65: 0
A66: 0
A67: 0
A68: 0
A69: 0
A70: 0
A71: 0
A72: 0
A73: 0
A74: 0
A75: 0
A76: 0
A77: 0
A78: 0
A79: 0
A80: 0
A81: 0
A82: 0
A83: 0
A84: 0
A85: 0
A86: 0
A87: 0
A88: 0
A89: 0
A90: 0
A91: 0
A92: 0
A93: 0
A94: 0
A95: 0
A96: 0
A97: 0
A98: 0
A99: 0
A100: 0
A101: 0
A102: 0
A103: 0
A104: 0
A105: 0
A106: 0
A107: 0
A108: 0
A109: 0
A110: 0
A111: 0
A112: 0
A113: 0
A114: 0
A115: 0
A116: 0
A117: 0
A118: 0
A119: 0
A120: 0
A121: 0
A122: 0
A123: 0
A124: 0
A125: 0
A126: 0
A127: 0
A128: 0
A129: 0
A130: 0
A131: 0
A132: 0
A133: 0
A134: 0
A135: 0
A136: 0
A137: 0
A138: 0
A139: 0
A140: 0
A141: 0
A142: 0
A143: 0
A144: 0
A145: 0
A146: 0
A147: 0
A148: 0
A149: 0
A150: 0
A151: 0
A152: 0
A153: 0
A154: 0
A155: 0
A156: 0
A157: 0
A158: 0
A159: 0
A160: 0
A161: 0
A162: 0
A163: 0
A164: 0
A165: 0
A166: 0
A167: 0
A168: 0
A169: 0
A170: 0
A171: 0
A172: 0
A173: 0
A174: 0
A175: 0
A176: 0
A177: 0
A178: 0
A179: 0
A180: 0
A181: 0
A182: 0
A183: 0
A184: 0
A185: 0
A186: 0
A187: 0
A188: 0
A189: 0
A190: 0
A191: 0
A192: 0
A193: 0
A194: 0
A195: 0
A196: 0
A197: 0
A198: 0
A199: 0
A200: 0
... 100 more rows

Sheet Procédure
A1: TABLE
A3: =IF(ISBLANK(H3),N3,H3) -> 0
A4: =IF(ISBLANK(H4),N4,H4) -> 0
A5: 0
A6: 0
A7: 0
A8: 0
A9: 0
A10: 0
A11: 0
A12: 0
A13: 0
A14: 0
A15: 0
A16: 0
A17: 0
A18: 0
A19: 0
A20: 0
A21: 0
A22: 0
A23: 0
A24: 0
A25: 0
A26: 0
A27: 0
A28: 0
A29: 0
A30: 0
A31: 0
A32: 0
A33: 0
A34: 0
A35: 0
A36: 0
A37: 0
A38: 0
A39: 0
A40: 0
A41: 0
A42: 0
A43: 0
A44: 0
A45: 0
A46: 0
A47: 0
A48: 0
A49: 0
A50: 0
A51: 0
A52: 0
A53: 0
A54: 0
A55: 0
A56: 0
A57: 0
A58: 0
A59: 0
A60: 0
A61: 0
A62: 0
A63: 0
A64: 0
A65: 0
A66: 0
A67: 0
A68: =IF(ISBLANK(H68),N68,H68) -> 0
A69: 0
A70: 0
A71: 0
A72: 0
A73: 0
A74: 0
A75: 0
A76: 0
A77: 0
A78: 0
A79: 0
A80: 0
A81: 0
A82: 0
A83: 0
A84: 0
A85: 0
A86: 0
A87: 0
A88: 0
A89: 0
A90: 0
A91: 0
A92: 0
A93: 0
A94: 0
A95: 0
A96: 0
A97: 0
A98: 0
A99: 0
A100: 0
A101: 0
A102: 0
A103: 0
A104: 0
A105: 0
A106: 0
A107: 0
A108: 0
A109: 0
A110: 0
A111: 0
A112: 0
A113: 0
A114: 0
A115: 0
A116: 0
A117: 0
A118: 0
A119: 0
A120: 0
A121: 0
A122: 0
A123: 0
A124: 0
A125: 0
A126: 0
A127: 0
A128: 0
A129: 0
A130: 0
A131: 0
A132: =IF(ISBLANK(H132),N132,H132) -> 0
A133: 0
A134: 0
A135: 0
A136: 0
A137: 0
A138: 0
A139: 0
A140: 0
A141: 0
A142: 0
A143: 0
A144: 0
A145: 0
A146: 0
A147: 0
A148: 0
A149: 0
A150: 0
A151: 0
A152: 0
A153: 0
A154: 0
A155: 0
A156: 0
A157: 0
A158: 0
A159: 0
A160: 0
A161: 0
A162: 0
A163: 0
A164: 0
A165: 0
A166: 0
A167: 0
A168: 0
A169: 0
A170: 0
A171: 0
A172: 0
A173: 0
A174: 0
A175: 0
A176: 0
A177: 0
A178: 0
A179: 0
A180: 0
A181: 0
A182: 0
A183: 0
A184: 0
A185: 0
A186: 0
A187: 0
A188: 0
A189: 0
A190: 0
A191: 0
A192: 0
A193: 0
A194: 0
A195: 0
A196: =IF(ISBLANK(H196),N196,H196) -> 0
A197: 0
A198: 0
A199: 0
A200: 0
A201: 0
... 99 more rows

Sheet Place
A1: 1604 | B1: =RANK(A1,A$1:A$300,0) -> 1
A2: 1571 | B2: =RANK(A2,A$1:A$300,0) -> 2
A3: 1524 | B3: 3
A4: 1450 | B4: 4
A5: 1410 | B5: 5
A6: 1401 | B6: 6
A7: 1399 | B7: 7
A8: 1386 | B8: 8
A9: 1377 | B9: 9
A10: 1355 | B10: 10
A11: 1353 | B11: 11
A12: 1346 | B12: 12
A13: 1344 | B13: 13
A14: 1333 | B14: 14
A15: 1329 | B15: 15
A16: 1326 | B16: 16
A17: 1325 | B17: 17
A18: 1319 | B18: 18
A19: 1307 | B19: 19
A20: 1294 | B20: 20
A21: 1288 | B21: 21
A22: 1274 | B22: 22
A23: 1261 | B23: 23
A24: 1257 | B24: 24
A25: 1247 | B25: 25
A26: 1246 | B26: 26
A27: 1231 | B27: 27
A28: 1226 | B28: 28
A29: 1215 | B29: 29
A30: 1215 | B30: 29
A31: 1212 | B31: 31
A32: 1202 | B32: 32
A33: 1167 | B33: 33
A34: 1109 | B34: 34
A35: 1088 | B35: 35
A36: 1083 | B36: 36
A37: 1029 | B37: 37
A38: 778 | B38: 38
B66: =RANK(A66,A$1:A$300,0) -> 
B130: =RANK(A130,A$1:A$300,0) -> 
B194: =RANK(A194,A$1:A$300,0) -> 
B258: =RANK(A258,A$1:A$300,0) -> 
B322: =RANK(A322,A$1:A$300,0) -> 
B386: =RANK(A386,A$1:A$300,0) -> 

Sheet Dupli
A1: 2295172 | B1: =CONCATENATE(C1," ",D1) -> ABADIE Micheline | C1: ABADIE | D1: Micheline | E1: 5D | F1: R | G1: U14 | H1: 8414 | I1: FR
A2: 8015346 | B2: ABALLO Bruno | C2: ABALLO | D2: Bruno | E2: 6C | F2: S | H2: 12806 | I2: BJ
A3: 8070040 | B3: ABASS Dem | C3: ABASS | D3: Dem | E3: 7 | F3: S | H3: 17675 | I3: MR
A4: 1094606 | B4: ABAUL Aline | C4: ABAUL | D4: Aline | E4: 3A | F4: S | G4: Q03 | H4: 1181 | I4: FR
A5: 8085009 | B5: ABDELLI Abdelkrim | C5: ABDELLI | D5: Abdelkrim | E5: 2B | F5: S | G5: ISC | H5: 612 | I5: DZ
A6: 8060230 | B6: ABDESSAMIA Naima | C6: ABDESSAMIA | D6: Naima | E6: 6B | F6: V | G6: RCSM | H6: 10804 | I6: MA
A7: 8075145 | B7: ABDOU Alzouma | C7: ABDOU | D7: Alzouma | E7: 7 | F7: S | H7: 14628 | I7: NE
A8: 8075184 | B8: ABDOU Illa | C8: ABDOU | D8: Illa | E8: 7 | F8: S | G8: AFAZ | H8: 17710 | I8: NE
A9: 8075044 | B9: ABDOUL RAZACK Mahamane Garba | C9: ABDOUL RAZACK | D9: Mahamane Garba | E9: 2A | F9: S | G9: GLA | H9: 532 | I9: NE
A10: 8075134 | B10: ABDOULAYE Dambagi | C10: ABDOULAYE | D10: Dambagi | E10: 5D | F10: S | G10: TOR | H10: 8507 | I10: NE
A11: 8075175 | B11: ABDOULAYE Fougou | C11: ABDOULAYE | D11: Fougou | E11: 7 | F11: S | H11: 17701 | I11: NE
A12: 8075158 | B12: ABDOULKADER Issaka | C12: ABDOULKADER | D12: Issaka | E12: 7 | F12: S | G12: FBA | H12: 17684 | I12: NE
A13: 8075159 | B13: ABDOULKADER Mohamed | C13: ABDOULKADER | D13: Mohamed | E13: 7 | F13: S | G13: GUE | H13: 17685 | I13: NE
A14: 8075065 | B14: ABDOULKARIM Mana | C14: ABDOULKARIM | D14: Mana | E14: 4B | F14: S | G14: TOR | H14: 2708 | I14: NE
A15: 8075089 | B15: ABDOURAHAMANE Moussa | C15: ABDOURAHAMANE | D15: Moussa | E15: 6D | F15: S | G15: FHA | H15: 14577 | I15: NE
A16: 8075010 | B16: ABDOURAMANE Moussa | C16: ABDOURAMANE | D16: Moussa | E16: 1A | F16: S | G16: GLA | H16: 113 | I16: NE
A17: 8015186 | B17: ABE Codjo Fadel | C17: ABE | D17: Codjo Fadel | E17: 6D | F17: S | H17: 14540 | I17: BJ
A18: 8015187 | B18: ABE Codjo M. E. Robert | C18: ABE | D18: Codjo M. E. Robert | E18: 6D | F18: S | H18: 14541 | I18: BJ
A19: 8030931 | B19: ABEKI Michel | C19: ABEKI | D19: Michel | E19: 7 | F19: S | G19: KAM | H19: 17623 | I19: CD
A20: 1103594 | B20: ABEL Joëlle | C20: ABEL | D20: Joëlle | E20: 5C | F20: V | G20: C08 | H20: 6788 | I20: FR
A21: 2256621 | B21: ABELLA Madeleine | C21: ABELLA | D21: Madeleine | E21: 6A | F21: R | G21: I21 | H21: 8725 | I21: FR
A22: 2019675 | B22: ABELOOS Michèle | C22: ABELOOS | D22: Michèle | E22: 5A | F22: D | G22: G17 | H22: 4545 | I22: FR
A23: 8020106 | B23: ABENG Enyegue Dimitri | C23: ABENG | D23: Enyegue Dimitri | E23: 4D | F23: S | G23: AMV | H23: 4348 | I23: CM
A24: 8060346 | B24: ABERDINE Mohamed Adam | C24: ABERDINE | D24: Mohamed Adam | E24: 6C | F24: C | G24: RCSM | H24: 12172 | I24: MA
A25: 8095053 | B25: ABID Faiza | C25: ABID | D25: Faiza | E25: 6A | F25: S | G25: SF | H25: 9859 | I25: TN
A26: 8060152 | B26: ABID Mohamed | C26: ABID | D26: Mohamed | E26: 6D | F26: S | G26: RCMA | H26: 12866 | I26: MA
A27: 8060298 | B27: ABID Yasmine | C27: ABID | D27: Yasmine | E27: 6C | F27: B | G27: RCMA | H27: 12649 | I27: MA
A28: 1043475 | B28: ABILLA Bernadette | C28: ABILLA | D28: Bernadette | E28: 6D | F28: V | G28: B33 | H28: 14105 | I28: FR
A29: 1130548 | B29: ABLY Annick | C29: ABLY | D29: Annick | E29: 5A | F29: D | G29: N01 | H29: 4425 | I29: FR
A30: 8050064 | B30: ABOU CHEDID Hala | C30: ABOU CHEDID | D30: Hala | E30: 5D | F30: D | H30: 7785 | I30: LB
A31: 8050067 | B31: ABOU JAOUDÉ Christine | C31: ABOU JAOUDÉ | D31: Christine | E31: 4C | F31: S | H31: 3120 | I31: LB
A32: 7029411 | B32: ABOU RJEILI Antoinette | C32: ABOU RJEILI | D32: Antoinette | E32: 6C | F32: D | G32: LAU | H32: 11867 | I32: QC
A33: 8050072 | B33: ABOU ZEID Nicole | C33: ABOU ZEID | D33: Nicole | E33: 4D | F33: D | H33: 3599 | I33: LB
A34: 8060295 | B34: ABOUANKIRA Amro | C34: ABOUANKIRA | D34: Amro | E34: 6A | F34: C | G34: RCSM | H34: 10143 | I34: MA
A35: 6049981 | B35: ABRAHAM Sylvie | C35: ABRAHAM | D35: Sylvie | E35: 7 | F35: S | G35: ADUP | H35: 17274 | I35: BE
A36: 7015574 | B36: ABRAM Aline | C36: ABRAM | D36: Aline | E36: 6A | F36: D | G36: CDE | H36: 9059 | I36: QC
A37: 1003150 | B37: ABRARD Claudine | C37: ABRARD | D37: Claudine | E37: 4C | F37: D | G37: S02 | H37: 3454 | I37: FR
A38: 1017512 | B38: ABRARD Françoise | C38: ABRARD | D38: Françoise | E38: 7 | F38: D | G38: F13 | H38: 16469 | I38: FR
A39: 1330787 | B39: ABRIBAT William | C39: ABRIBAT | D39: William | E39: 2B | F39: S | G39: D17 | H39: 781 | I39: FR
A40: 1076543 | B40: ABRY Françoise | C40: ABRY | D40: Françoise | E40: 6B | F40: V | G40: F15 | H40: 10436 | I40: FR
A41: 7033923 | B41: ABSI Simone | C41: ABSI | D41: Simone | E41: 6C | F41: R | G41: STL | H41: 11740 | I41: QC
A42: 8930053 | B42: ACADEAU Jean Myrthon | C42: ACADEAU | D42: Jean Myrthon | E42: 6D | F42: S | G42: ANA | H42: 14598 | I42: HT
A43: 8930045 | B43: ACADEAU Pascal | C43: ACADEAU | D43: Pascal | E43: 6D | F43: S | G43: ANA | H43: 14596 | I43: HT
A44: 8015427 | B44: ACAKPO Hervé | C44: ACAKPO | D44: Hervé | E44: 7 | F44: S | H44: 17580 | I44: BJ
A45: 1002994 | B45: ACCHIARDI Eric | C45: ACCHIARDI | D45: Eric | E45: 2B | F45: S | G45: N04 | H45: 536 | I45: FR
A46: 2339676 | B46: ACED Thierry | C46: ACED | D46: Thierry | E46: 3B | F46: S | G46: M12 | H46: 1535 | I46: FR
A47: 1008422 | B47: ACHACHE Michel | C47: ACHACHE | D47: Michel | E47: 6B | F47: V | G47: L05 | H47: 10220 | I47: FR
A48: 2027362 | B48: ACHARD Bernadette | C48: ACHARD | D48: Bernadette | E48: 6A | F48: D | G48: L12 | H48: 8880 | I48: FR
A49: 2110362 | B49: ACHARD Jane | C49: ACHARD | D49: Jane | E49: 5A | F49: R | G49: L28 | H49: 4814 | I49: FR
A50: 1017258 | B50: ACHARD Monique | C50: ACHARD | D50: Monique | E50: 7 | F50: V | G50: X39 | H50: 16241 | I50: FR
A51: 1117238 | B51: ACKERER Claudette | C51: ACKERER | D51: Claudette | E51: 6C | F51: D | G51: L10 | H51: 11989 | I51: FR
A52: 1950343 | B52: ACKERMANN Jane | C52: ACKERMANN | D52: Jane | E52: 4C | F52: R | G52: U16 | H52: 3468 | I52: FR
A53: 1011084 | B53: ACKERMANN Maïté | C53: ACKERMANN | D53: Maïté | E53: 5D | F53: S | G53: A06 | H53: 7877 | I53: FR
A54: 8015424 | B54: ACOMEDI Joël | C54: ACOMEDI | D54: Joël | E54: 7 | F54: S | H54: 17577 | I54: BJ
A55: 1009553 | B55: ACOU Christine | C55: ACOU | D55: Christine | E55: 6B | F55: V | G55: D22 | H55: 10550 | I55: FR
A56: 2060657 | B56: ADAD Pierre | C56: ADAD | D56: Pierre | E56: 4D | F56: R | G56: V36 | H56: 4188 | I56: FR
A57: 1010953 | B57: ADAM Béatrice | C57: ADAM | D57: Béatrice | E57: 6B | F57: V | G57: H26 | H57: 11390 | I57: FR
A58: 6032552 | B58: ADAM Cécilia | C58: ADAM | D58: Cécilia | E58: 6B | F58: S | G58: OGIB | H58: 11005 | I58: BE
A59: 2291384 | B59: ADAM Colette | C59: ADAM | D59: Colette | E59: 4A | F59: V | G59: E07 | H59: 1756 | I59: FR
A60: 6048745 | B60: ADAM Diane | C60: ADAM | D60: Diane | E60: 6A | F60: V | G60: MAK | H60: 10031 | I60: BE
A61: 1139028 | B61: ADAM France | C61: ADAM | D61: France | E61: 6D | F61: D | G61: I07 | H61: 14209 | I61: FR
A62: 1510409 | B62: ADAM Ivan | C62: ADAM | D62: Ivan | E62: 3A | F62: V | G62: E07 | H62: 876 | I62: FR
A63: 1013361 | B63: ADAM Jeannine | C63: ADAM | D63: Jeannine | E63: 6B | F63: R | G63: H13 | H63: 10665 | I63: FR
A64: 1008336 | B64: ADAM Michèle | C64: ADAM | D64: Michèle | E64: 6B | F64: D | G64: R10 | H64: 10404 | I64: FR
A65: 2318409 | B65: =CONCATENATE(C65," ",D65) -> ADAM Paulette | C65: ADAM | D65: Paulette | E65: 5A | F65: R | G65: S05 | H65: 4388 | I65: FR
A66: 1109024 | B66: ADAM Simone | C66: ADAM | D66: Simone | E66: 6A | F66: V | G66: H28 | H66: 9962 | I66: FR
A67: 1017239 | B67: ADAM Sophie | C67: ADAM | D67: Sophie | E67: 7 | F67: S | G67: M02 | H67: 16223 | I67: FR
A68: 6020691 | B68: ADAM Thierry | C68: ADAM | D68: Thierry | E68: 3B | F68: S | G68: OUE | H68: 1550 | I68: BE
A69: 8075174 | B69: ADAMOU Laouali Na-Awatche | C69: ADAMOU | D69: Laouali Na-Awatche | E69: 7 | F69: S | G69: MAN | H69: 17700 | I69: NE
A70: 8075045 | B70: ADAMOU Mansour | C70: ADAMOU | D70: Mansour | E70: 5D | F70: S | H70: 7982 | I70: NE
A71: 8075036 | B71: ADAMOU Rachid | C71: ADAMOU | D71: Rachid | E71: 6D | F71: S | H71: 14567 | I71: NE
A72: 8055150 | B72: ADAMOU Yaou | C72: ADAMOU | D72: Yaou | E72: 5A | F72: S | G72: BKO | H72: 4454 | I72: ML
A73: 1003483 | B73: ADDA Sylvie | C73: ADDA | D73: Sylvie | E73: 4B | F73: V | G73: K27 | H73: 2410 | I73: FR
A74: 8015188 | B74: ADEGBOLA M. Louis | C74: ADEGBOLA M. | D74: Louis | E74: 6D | F74: S | H74: 14542 | I74: BJ
A75: 2615261 | B75: ADELAIDE Marie-Alberte | C75: ADELAIDE | D75: Marie-Alberte | E75: 5B | F75: V | G75: Q28 | H75: 5422 | I75: FR
A76: 1018107 | B76: ADELINE Catherine | C76: ADELINE | D76: Catherine | E76: 7 | F76: R | G76: M23 | H76: 16999 | I76: FR
A77: 1013427 | B77: ADELINE Emmanuelle | C77: ADELINE | D77: Emmanuelle | E77: 5C | F77: S | G77: N06 | H77: 6876 | I77: FR
A78: 8015342 | B78: ADEOTI Bouhari | C78: ADEOTI | D78: Bouhari | E78: 5D | F78: S | G78: IMSC | H78: 7795 | I78: BJ
A79: 1011896 | B79: ADEUX Yveline | C79: ADEUX | D79: Yveline | E79: 5C | F79: V | G79: S27 | H79: 7166 | I79: FR
A80: 1017015 | B80: ADIDA Brigitte | C80: ADIDA | D80: Brigitte | E80: 7 | F80: S | G80: H08 | H80: 16022 | I80: FR
A81: 8015249 | B81: ADINGBANNON Roka | C81: ADINGBANNON | D81: Roka | E81: 6D | F81: S | H81: 14543 | I81: BJ
A82: 8015002 | B82: ADJADJA Armel | C82: ADJADJA | D82: Armel | E82: 6D | F82: S | H82: 14534 | I82: BJ
A83: 8015189 | B83: ADJAGBE Roland | C83: ADJAGBE | D83: Roland | E83: 5D | F83: S | H83: 8485 | I83: BJ
A84: 8015003 | B84: ADJAHOUNGBETA Rodrigue | C84: ADJAHOUNGBETA | D84: Rodrigue | E84: 3B | F84: S | H84: 1690 | I84: BJ
A85: 8015184 | B85: ADJAKA Alfred | C85: ADJAKA | D85: Alfred | E85: 6D | F85: S | H85: 14539 | I85: BJ
A86: 8090160 | B86: ADJATO-YAWO Youndou Gbande | C86: ADJATO-YAWO | D86: Youndou Gbande | E86: 6C | F86: S | G86: LDO | H86: 12169 | I86: TG
A87: 8015369 | B87: ADJE Foumilayo Edwige | C87: ADJE | D87: Foumilayo Edwige | E87: 6A | F87: S | G87: NSC | H87: 9715 | I87: BJ
A88: 8090102 | B88: ADJIWANOU Croussita | C88: ADJIWANOU | D88: Croussita | E88: 6B | F88: J | G88: OSCT | H88: 10285 | I88: TG
A89: 8090056 | B89: ADJIWANOU Emmanuel | C89: ADJIWANOU | D89: Emmanuel | E89: 5D | F89: S | H89: 8074 | I89: TG
A90: 8090199 | B90: ADJIWANOU Paméla | C90: ADJIWANOU | D90: Paméla | E90: 7 | F90: B | G90: OSCT | H90: 17722 | I90: TG
A91: 8090057 | B91: ADJOGAH Kodjo Enyonam | C91: ADJOGAH | D91: Kodjo Enyonam | E91: 3A | F91: S | G91: ANG | H91: 1174 | I91: TG
A92: 1014785 | B92: ADJOVI Camus | C92: ADJOVI | D92: Camus | E92: 6D | F92: S | G92: H23 | H92: 12869 | I92: FR
A93: 8015005 | B93: ADJOVI François-Xavier | C93: ADJOVI | D93: François-Xavier | E93: 1A | F93: S | G93: K06 | H93: 77 | I93: FR
A94: 1003229 | B94: ADLER Isabelle | C94: ADLER | D94: Isabelle | E94: 5A | F94: S | G94: M12 | H94: 4740 | I94: FR
A95: 1015272 | B95: ADNET Patrick | C95: ADNET | D95: Patrick | E95: 7 | F95: D | G95: M40 | H95: 15145 | I95: FR
A96: 8015429 | B96: ADOHINZIN Pascal | C96: ADOHINZIN | D96: Pascal | E96: 7 | F96: S | G96: NSC | H96: 17582 | I96: BJ
A97: 8015250 | B97: ADOKO Boris | C97: ADOKO | D97: Boris | E97: 6A | F97: S | G97: PSC | H97: 10136 | I97: BJ
A98: 1017510 | B98: ADOLPHE Marie Edith | C98: ADOLPHE | D98: Marie Edith | E98: 7 | F98: V | G98: Q21 | H98: 16467 | I98: FR
A99: 1441753 | B99: ADOLPHE Marie Noëlle | C99: ADOLPHE | D99: Marie Noëlle | E99: 6D | F99: D | G99: Z00 | H99: 14300 | I99: FR
A100: 1007524 | B100: ADONETH Doris | C100: ADONETH | D100: Doris | E100: 5B | F100: V | G100: A13 | H100: 5688 | I100: FR
A101: 8015272 | B101: ADONOU Boris | C101: ADONOU | D101: Boris | E101: 5D | F101: S | H101: 8486 | I101: BJ
A102: 8090031 | B102: ADORGLOH Dosseh | C102: ADORGLOH | D102: Dosseh | E102: 3B | F102: S | G102: LDO | H102: 1702 | I102: TG
A103: 2628277 | B103: ADOUARD Violette | C103: ADOUARD | D103: Violette | E103: 6A | F103: D | G103: C04 | H103: 9955 | I103: FR
A104: 1002821 | B104: ADRIANSENS Colette | C104: ADRIANSENS | D104: Colette | E104: 4C | F104: S | G104: M42 | H104: 3192 | I104: FR
A105: 1014766 | B105: AELVOET Marie-Agnès | C105: AELVOET | D105: Marie-Agnès | E105: 6B | F105: V | G105: G47 | H105: 11107 | I105: FR
A106: 8090203 | B106: AFANOUKPOE Hwoagnon | C106: AFANOUKPOE | D106: Hwoagnon | E106: 7 | F106: J | G106: ANG | H106: 17726 | I106: TG
A107: 1009298 | B107: AFCHAIN Sonia | C107: AFCHAIN | D107: Sonia | E107: 4B | F107: S | G107: K05 | H107: 2956 | I107: FR
A108: 8015260 | B108: AFFANOU Eudon | C108: AFFANOU | D108: Eudon | E108: 6D | F108: S | H108: 14544 | I108: BJ
A109: 8015007 | B109: AFFATON Julien | C109: AFFATON | D109: Julien | E109: 1A | F109: S | G109: GZSC | H109: 88 | I109: BJ
A110: 8095097 | B110: AFFES Ibtissem | C110: AFFES | D110: Ibtissem | E110: 6C | F110: V | G110: SF | H110: 12525 | I110: TN
A111: 8095094 | B111: AFFES Lilia | C111: AFFES | D111: Lilia | E111: 6C | F111: V | G111: SF | H111: 12823 | I111: TN
A112: 8015328 | B112: AFFOUKOU Delphano | C112: AFFOUKOU | D112: Delphano | E112: 6C | F112: S | H112: 12858 | I112: BJ
A113: 8015304 | B113: AFOUDA Freddy | C113: AFOUDA | D113: Freddy | E113: 6D | F113: S | H113: 14548 | I113: BJ
A114: 1007515 | B114: AGABRIEL Claire | C114: AGABRIEL | D114: Claire | E114: 6D | F114: V | G114: W15 | H114: 12871 | I114: FR
A115: 8090016 | B115: AGAMAH Léossé Quaudzo | C115: AGAMAH | D115: Léossé Quaudzo | E115: 4D | F115: S | G115: LDO | H115: 4110 | I115: TG
A116: 8015402 | B116: AGBAGAN Elrius | C116: AGBAGAN | D116: Elrius | E116: 7 | F116: J | H116: 14913 | I116: BJ
A117: 8015298 | B117: AGBAGLA Bob | C117: AGBAGLA | D117: Bob | E117: 6D | F117: S | H117: 14547 | I117: BJ
A118: 8015154 | B118: AGBAGLA Y. Xavier | C118: AGBAGLA Y. | D118: Xavier | E118: 6D | F118: S | H118: 14535 | I118: BJ
A119: 8015417 | B119: AGBAHOLOU Romaric | C119: AGBAHOLOU | D119: Romaric | E119: 7 | F119: S | H119: 15249 | I119: BJ
A120: 8015335 | B120: AGBANGLA Lionel | C120: AGBANGLA | D120: Lionel | E120: 6C | F120: S | H120: 12083 | I120: BJ
A121: 8015010 | B121: AGBANGLASSI Emile | C121: AGBANGLASSI | D121: Emile | E121: 1A | F121: S | G121: MSC | H121: 85 | I121: BJ
A122: 8015285 | B122: AGBEGNIGAN Adonis | C122: AGBEGNIGAN | D122: Adonis | E122: 6D | F122: S | H122: 14545 | I122: BJ
A123: 8015340 | B123: AGBEGNIGAN Adonis | C123: AGBEGNIGAN | D123: Adonis | E123: 6D | F123: S | G123: GZSC | H123: 12867 | I123: BJ
A124: 8015227 | B124: AGBEMAVO Jean-Eudes | C124: AGBEMAVO | D124: Jean-Eudes | E124: 2B | F124: S | G124: INSC | H124: 549 | I124: BJ
A125: 8015297 | B125: AGBIDINOUKOUN Sèdékon | C125: AGBIDINOUKOUN | D125: Sèdékon | E125: 6D | F125: S | H125: 14546 | I125: BJ
A126: 8015400 | B126: AGBIDINOUKOUN Vanessa | C126: AGBIDINOUKOUN | D126: Vanessa | E126: 7 | F126: E | H126: 14838 | I126: BJ
A127: 8090198 | B127: AGBODO Yao | C127: AGBODO | D127: Yao | E127: 7 | F127: S | G127: OSCT | H127: 17721 | I127: TG
A128: 8015394 | B128: AGBOTON Bertrand | C128: AGBOTON | D128: Bertrand | E128: 7 | F128: S | H128: 14884 | I128: BJ
A129: 8015155 | B129: =CONCATENATE(C129," ",D129) -> AGBOTON Félicité | C129: AGBOTON | D129: Félicité | E129: 6D | F129: S | H129: 14536 | I129: BJ
A130: 1012693 | B130: AGNES Solange | C130: AGNES | D130: Solange | E130: 6B | F130: D | G130: B29 | H130: 11387 | I130: FR
A131: 1182989 | B131: AGNOLY Nelly | C131: AGNOLY | D131: Nelly | E131: 6B | F131: D | G131: Q46 | H131: 11017 | I131: FR
A132: 8015180 | B132: AGO A. Kévin | C132: AGO A. | D132: Kévin | E132: 6D | F132: S | H132: 14538 | I132: BJ
A133: 2238259 | B133: AGOPIAN Patrick | C133: AGOPIAN | D133: Patrick | E133: 5A | F133: V | G133: V10 | H133: 4818 | I133: FR
A134: 8015156 | B134: AGOSSOU Alain | C134: AGOSSOU | D134: Alain | E134: 6D | F134: S | H134: 14537 | I134: BJ
A135: 8015237 | B135: AGOSSOU David | C135: AGOSSOU | D135: David | E135: 6C | F135: S | H135: 12855 | I135: BJ
A136: 8015311 | B136: AGOSSOU Ghislain | C136: AGOSSOU | D136: Ghislain | E136: 6C | F136: S | H136: 12856 | I136: BJ
A137: 8015361 | B137: AGOSSOU Seth | C137: AGOSSOU | D137: Seth | E137: 6C | F137: S | H137: 11793 | I137: BJ
A138: 8900200 | B138: AGOSSOU COOVI Aurèle | C138: AGOSSOU COOVI | D138: Aurèle | E138: 6B | F138: S | H138: 11594 | I138: BF
A139: 8090186 | B139: AGOUZI Patou Yaovi | C139: AGOUZI | D139: Patou Yaovi | E139: 5B | F139: S | G139: NKF | H139: 5413 | I139: TG
A140: 1009538 | B140: AGUILLON Dominique | C140: AGUILLON | D140: Dominique | E140: 5A | F140: V | G140: C02 | H140: 4946 | I140: FR
A141: 2630040 | B141: AGUSTIN Denis | C141: AGUSTIN | D141: Denis | E141: 2B | F141: V | G141: C02 | H141: 739 | I141: FR
A142: 1009923 | B142: AH-LEUNG Henri | C142: AH-LEUNG | D142: Henri | E142: 4B | F142: V | G142: Q30 | H142: 2584 | I142: FR
A143: 1022704 | B143: AH-LEUNG Marie-Ange | C143: AH-LEUNG | D143: Marie-Ange | E143: 5B | F143: V | G143: Q30 | H143: 6067 | I143: FR
A144: 1147261 | B144: AH-MOYE Céline | C144: AH-MOYE | D144: Céline | E144: 5A | F144: D | G144: Q04 | H144: 4641 | I144: FR
A145: 1013025 | B145: AHAMADA Mariama | C145: AHAMADA | D145: Mariama | E145: 4C | F145: S | G145: I06 | H145: 3379 | I145: FR
A146: 1033959 | B146: AHLFORS Simone | C146: AHLFORS | D146: Simone | E146: 4C | F146: D | G146: P04 | H146: 3278 | I146: FR
A147: 8060213 | B147: AHMAME Aicha | C147: AHMAME | D147: Aicha | E147: 6A | F147: E | G147: RCSM | H147: 9944 | I147: MA
A148: 1065739 | B148: AHMED Josette | C148: AHMED | D148: Josette | E148: 6A | F148: D | G148: B39 | H148: 8884 | I148: FR
A149: 1035698 | B149: AHMED YAHIA Jany | C149: AHMED YAHIA | D149: Jany | E149: 5B | F149: D | G149: W10 | H149: 5647 | I149: FR
A150: 1017970 | B150: AICARDI Françoise | C150: AICARDI | D150: Françoise | E150: 7 | F150: D | G150: T05 | H150: 16877 | I150: FR
A151: 8000109 | B151: AIDARA Hadina | C151: AIDARA | D151: Hadina | E151: 2A | F151: V | G151: DK | H151: 376 | I151: SN
A152: 1133501 | B152: AIELLO Pierrette | C152: AIELLO | D152: Pierrette | E152: 4D | F152: V | G152: O22 | H152: 4292 | I152: FR
A153: 1007836 | B153: AILLOUD Isabelle | C153: AILLOUD | D153: Isabelle | E153: 4C | F153: V | G153: M03 | H153: 3025 | I153: FR
A154: 1006941 | B154: AIRES Monique | C154: AIRES | D154: Monique | E154: 6D | F154: R | G154: R18 | H154: 12873 | I154: FR
A155: 8085043 | B155: AIT KACI AZZOU Rabah | C155: AIT KACI AZZOU | D155: Rabah | E155: 5A | F155: S | G155: ISC | H155: 5079 | I155: DZ
A156: 2336231 | B156: AJASSE Anne | C156: AJASSE | D156: Anne | E156: 6D | F156: S | G156: W10 | H156: 14344 | I156: FR
A157: 1018122 | B157: AJINCA Joëlle | C157: AJINCA | D157: Joëlle | E157: 7 | F157: V | G157: L12 | H157: 17013 | I157: FR
A158: 1012800 | B158: AJMI Chahinez | C158: AJMI | D158: Chahinez | E158: 6B | F158: C | G158: FS31 | H158: 10944 | I158: FR
A159: 1012811 | B159: AJMI Mohamed Béchir | C159: AJMI | D159: Mohamed Béchir | E159: 6A | F159: B | G159: FS31 | H159: 10190 | I159: FR
A160: 1017087 | B160: AKHOUN Firoza | C160: AKHOUN | D160: Firoza | E160: 7 | F160: S | G160: Q02 | H160: 16086 | I160: FR
A161: 8050001 | B161: AKL Nour | C161: AKL | D161: Nour | E161: 2A | F161: V | H161: 507 | I161: LB
A162: 8015373 | B162: AKODODJA François | C162: AKODODJA | D162: François | E162: 5C | F162: S | G162: PSC | H162: 6743 | I162: BJ
A163: 8015399 | B163: AKODODJA Judes Innocent | C163: AKODODJA | D163: Judes Innocent | E163: 7 | F163: J | G163: PSC | H163: 14897 | I163: BJ
A164: 8015348 | B164: AKOTEGNON Comlan Frédéric | C164: AKOTEGNON | D164: Comlan Frédéric | E164: 6B | F164: E | H164: 10600 | I164: BJ
A165: 8015293 | B165: AKOUTEY Gildas | C165: AKOUTEY | D165: Gildas | E165: 4D | F165: E | G165: MSC | H165: 3616 | I165: BJ
A166: 8015344 | B166: AKOUTEY Juliette | C166: AKOUTEY | D166: Juliette | E166: 6C | F166: S | G166: IMSC | H166: 12361 | I166: BJ
A167: 8090202 | B167: AKPO Sadat | C167: AKPO | D167: Sadat | E167: 7 | F167: S | G167: OSCT | H167: 17725 | I167: TG
A168: 2587215 | B168: ALA Sandrine | C168: ALA | D168: Sandrine | E168: 6A | F168: S | G168: U22 | H168: 9743 | I168: FR
A169: 8035129 | B169: ALABI Abib | C169: ALABI | D169: Abib | E169: 1B | F169: S | G169: H05 | H169: 300 | I169: FR
A170: 2269227 | B170: ALABRUNE Annie | C170: ALABRUNE | D170: Annie | E170: 5B | F170: R | G170: T15 | H170: 5343 | I170: FR
A171: 2153803 | B171: ALAIN Jean | C171: ALAIN | D171: Jean | E171: 4D | F171: R | G171: O00 | H171: 4312 | I171: FR
A172: 8035271 | B172: ALAIN Serge Timoléon Odjo | C172: ALAIN | D172: Serge Timoléon Odjo | E172: 6D | F172: S | H172: 12868 | I172: CI
A173: 2695114 | B173: ALAIS Jocelyne | C173: ALAIS | D173: Jocelyne | E173: 4D | F173: D | G173: I17 | H173: 4246 | I173: FR
A174: 8060001 | B174: ALAOUI El Mouloudi | C174: ALAOUI | D174: El Mouloudi | E174: 5D | F174: D | G174: AASM | H174: 8062 | I174: MA
A175: 7055175 | B175: ALARIE Sylvie | C175: ALARIE | D175: Sylvie | E175: 7 | F175: V | G175: SJS | H175: 14902 | I175: QC
A176: 1015157 | B176: ALARY Michèle | C176: ALARY | D176: Michèle | E176: 7 | F176: V | G176: D04 | H176: 14952 | I176: FR
A177: 8015267 | B177: ALASSANE ADAM Soulémane | C177: ALASSANE ADAM | D177: Soulémane | E177: 4A | F177: S | H177: 1738 | I177: BJ
A178: 8090191 | B178: ALATE Komi Josué | C178: ALATE | D178: Komi Josué | E178: 7 | F178: E | H178: 17714 | I178: TG
A179: 1018300 | B179: ALATORRE Fabienne | C179: ALATORRE | D179: Fabienne | E179: 7 | F179: S | G179: F16 | H179: 17166 | I179: FR
A180: 2550711 | B180: ALBARELLI Christiane | C180: ALBARELLI | D180: Christiane | E180: 4A | F180: V | G180: V24 | H180: 2288 | I180: FR
A181: 1109362 | B181: ALBE Grégory | C181: ALBE | D181: Grégory | E181: 4C | F181: S | G181: I04 | H181: 3187 | I181: FR
A182: 5507262 | B182: ALBER Clotilde | C182: ALBER | D182: Clotilde | E182: 6D | F182: R | G182: MAL | H182: 12870 | I182: CH
A183: 1016145 | B183: ALBERT Daniel | C183: ALBERT | D183: Daniel | E183: 7 | F183: V | G183: K41 | H183: 15906 | I183: FR
A184: 1272213 | B184: ALBERT Héloïse | C184: ALBERT | D184: Héloïse | E184: 6C | F184: R | G184: F21 | H184: 11752 | I184: FR
A185: 1251895 | B185: ALBERT Linette | C185: ALBERT | D185: Linette | E185: 6A | F185: D | G185: J35 | H185: 9489 | I185: FR
A186: 1681227 | B186: ALBERT Martine | C186: ALBERT | D186: Martine | E186: 4A | F186: D | G186: T03 | H186: 1800 | I186: FR
A187: 1098385 | B187: ALBERT Mauréane | C187: ALBERT | D187: Mauréane | E187: 5D | F187: S | G187: Q01 | H187: 7691 | I187: FR
A188: 1261409 | B188: ALBERT Odile | C188: ALBERT | D188: Odile | E188: 5D | F188: D | G188: D19 | H188: 8025 | I188: FR
A189: 1076309 | B189: ALBERTINI Simone | C189: ALBERTINI | D189: Simone | E189: 6D | F189: D | G189: Q17 | H189: 14135 | I189: FR
A190: 1030841 | B190: ALBINGRE Geneviève | C190: ALBINGRE | D190: Geneviève | E190: 4B | F190: D | G190: R10 | H190: 2349 | I190: FR
A191: 2166639 | B191: ALBINI Anne | C191: ALBINI | D191: Anne | E191: 3A | F191: S | G191: R12 | H191: 905 | I191: FR
A192: 1167615 | B192: ALBINI Nicolas | C192: ALBINI | D192: Nicolas | E192: 4D | F192: E | G192: R12 | H192: 3807 | I192: FR
A193: 1173503 | B193: =CONCATENATE(C193," ",D193) -> ALBINI Virginie | C193: ALBINI | D193: Virginie | E193: 6C | F193: E | G193: R12 | H193: 11945 | I193: FR
A194: 2287227 | B194: ALBRECHT Fabienne | C194: ALBRECHT | D194: Fabienne | E194: 6B | F194: V | G194: K21 | H194: 11421 | I194: FR
A195: 1571128 | B195: ALBRECHT Guido | C195: ALBRECHT | D195: Guido | E195: 4D | F195: R | G195: K21 | H195: 4170 | I195: FR
A196: 1018266 | B196: ALCANTARA Geneviève | C196: ALCANTARA | D196: Geneviève | E196: 7 | F196: V | G196: S13 | H196: 17136 | I196: FR
A197: 2348025 | B197: ALCARAZ Jean-Pierre | C197: ALCARAZ | D197: Jean-Pierre | E197: 6A | F197: D | G197: F14 | H197: 9461 | I197: FR
A198: 1030092 | B198: ALCOUFFE Elisabeth | C198: ALCOUFFE | D198: Elisabeth | E198: 6C | F198: V | G198: W02 | H198: 12099 | I198: FR
A199: 1015893 | B199: ALCOUFFE Michel | C199: ALCOUFFE | D199: Michel | E199: 6C | F199: D | G199: W02 | H199: 11824 | I199: FR
A200: 1010627 | B200: ALCOVER Laurence | C200: ALCOVER | D200: Laurence | E200: 5A | F200: V | G200: F28 | H200: 5223 | I200: FR
... 4300 more rows

Sheet Phase2
A1: Nlic | B1: Noms | C1: Noms | D1: Prénoms | E1: CAT | F1: Série | G1: Fédé | H1: Club | I1: Cumul | J1: P1 | K1: P2 | L1: Comité | M1: Centre
A2: 2066181 | B2: VANBESIEN Philippe | C2: VANBESIEN | D2: Philippe | E2: S | F2: 5C | G2: FR | H2: D01 | I2: 1688 | J2: 861 | K2: 827 | L2: D | M2: D
A3: 1015462 | B3: COURTOIS Tom | C3: COURTOIS | D3: Tom | E3: J | F3: 7 | G3: FR | H3: I06 | I3: 1687 | J3: 872 | K3: 815 | L3: I | M3: I
A4: 1013690 | B4: DUPONT Christine | C4: DUPONT | D4: Christine | E4: S | F4: 5A | G4: FR | H4: H10 | I4: 1681 | J4: 861 | K4: 820 | L4: H | M4: H
A5: 1052105 | B5: POULHALEC Jean-Pierre | C5: POULHALEC | D5: Jean-Pierre | E5: D | F5: 5D | G5: FR | H5: S12 | I5: 1677 | J5: 867 | K5: 810 | L5: S | M5: S
A6: 1017911 | B6: LE DOUJET Maryse | C6: LE DOUJET | D6: Maryse | E6: S | F6: 7 | G6: FR | H6: S09 | I6: 1676 | J6: 854 | K6: 822 | L6: S | M6: S
A7: 1015653 | B7: POTIER Thomas | C7: POTIER | D7: Thomas | E7: E | F7: 7 | G7: FR | H7: H05 | I7: 1673 | J7: 849 | K7: 824 | L7: H | M7: H
A8: 1017696 | B8: GRATIOULET Michel | C8: GRATIOULET | D8: Michel | E8: V | F8: 7 | G8: FR | H8: V30 | I8: 1673 | J8: 859 | K8: 814 | L8: Z | M8: V
A9: 2061095 | B9: BOURNIGAULT Frédéric | C9: BOURNIGAULT | D9: Frédéric | E9: S | F9: 5D | G9: FR | H9: P04 | I9: 1670 | J9: 857 | K9: 813 | L9: P | M9: P
A10: 2704038 | B10: LOZACH Sylvie | C10: LOZACH | D10: Sylvie | E10: S | F10: 5A | G10: FR | H10: S10 | I10: 1666 | J10: 851 | K10: 815 | L10: S | M10: S
A11: 1016678 | B11: WEINZAEPFLEN Michèle | C11: WEINZAEPFLEN | D11: Michèle | E11: V | F11: 7 | G11: FR | H11: A03 | I11: 1665 | J11: 858 | K11: 807 | L11: A | M11: A
A12: 1010192 | B12: GRENIER Aloys | C12: GRENIER | D12: Aloys | E12: C | F12: 5A | G12: FR | H12: A03 | I12: 1660 | J12: 834 | K12: 826 | L12: A | M12: A
A13: 1600626 | B13: LEGROS Yves | C13: LEGROS | D13: Yves | E13: D | F13: 5A | G13: FR | H13: G27 | I13: 1658 | J13: 849 | K13: 809 | L13: G | M13: G
A14: 2231617 | B14: ODIER Vincente | C14: ODIER | D14: Vincente | E14: S | F14: 5A | G14: FR | H14: F08 | I14: 1654 | J14: 851 | K14: 803 | L14: F | M14: F
A15: 2204922 | B15: CUDELOU Evelyne | C15: CUDELOU | D15: Evelyne | E15: V | F15: 5B | G15: FR | H15: M21 | I15: 1652 | J15: 859 | K15: 793 | L15: M | M15: M
A16: 1003843 | B16: NICOLAS Leslie | C16: NICOLAS | D16: Leslie | E16: S | F16: 5C | G16: FR | H16: Y02 | I16: 1650 | J16: 855 | K16: 795 | L16: Y | M16: Y
A17: 1013490 | B17: LOHEZIC Antoine | C17: LOHEZIC | D17: Antoine | E17: J | F17: 5A | G17: FR | H17: DJ10 | I17: 1648 | J17: 870 | K17: 778 | L17: D | M17: D
A18: 1086697 | B18: WALMACQ Stéphane | C18: WALMACQ | D18: Stéphane | E18: S | F18: 5D | G18: FR | H18: W13 | I18: 1648 | J18: 841 | K18: 807 | L18: W | M18: W
A19: 2601615 | B19: PEAU Sabine | C19: PEAU | D19: Sabine | E19: S | F19: 5C | G19: FR | H19: K09 | I19: 1648 | J19: 843 | K19: 805 | L19: K | M19: K
A20: 1012905 | B20: PHILIPPE Pascal | C20: PHILIPPE | D20: Pascal | E20: S | F20: 5A | G20: FR | H20: S08 | I20: 1647 | J20: 850 | K20: 797 | L20: S | M20: S
A21: 1023031 | B21: HOURI Gérard | C21: HOURI | D21: Gérard | E21: S | F21: 6D | G21: FR | H21: M23 | I21: 1647 | J21: 834 | K21: 813 | L21: M | M21: M
A22: 1007087 | B22: BLACHE Jean-Luc | C22: BLACHE | D22: Jean-Luc | E22: V | F22: 5D | G22: FR | H22: I13 | I22: 1646 | J22: 849 | K22: 797 | L22: I | M22: I
A23: 1013241 | B23: VOLTA Marie-Hélène | C23: VOLTA | D23: Marie-Hélène | E23: V | F23: 5A | G23: FR | H23: W17 | I23: 1646 | J23: 838 | K23: 808 | L23: W | M23: O
A24: 2175423 | B24: BELONY Annie | C24: BELONY | D24: Annie | E24: D | F24: 5A | G24: FR | H24: K05 | I24: 1646 | J24: 839 | K24: 807 | L24: K | M24: K
A25: 2322315 | B25: ROUSSEAU Béatrice | C25: ROUSSEAU | D25: Béatrice | E25: V | F25: 5A | G25: FR | H25: D01 | I25: 1646 | J25: 843 | K25: 803 | L25: D | M25: D
A26: 1008341 | B26: PEOT Emilien | C26: PEOT | D26: Emilien | E26: E | F26: 5C | G26: FR | H26: C24 | I26: 1643 | J26: 830 | K26: 813 | L26: C | M26: C
A27: 1009967 | B27: SAUNDERS Delphine | C27: SAUNDERS | D27: Delphine | E27: S | F27: 5A | G27: FR | H27: P09 | I27: 1643 | J27: 848 | K27: 795 | L27: P | M27: P
A28: 1097762 | B28: ALLARD Jocelyne | C28: ALLARD | D28: Jocelyne | E28: V | F28: 5A | G28: FR | H28: M22 | I28: 1643 | J28: 848 | K28: 795 | L28: M | M28: M
A29: 1014043 | B29: JACQUET Marie-Françoise | C29: JACQUET | D29: Marie-Françoise | E29: V | F29: 5A | G29: FR | H29: F19 | I29: 1642 | J29: 848 | K29: 794 | L29: F | M29: F
A30: 1001957 | B30: BARROT Olivier | C30: BARROT | D30: Olivier | E30: S | F30: 5A | G30: FR | H30: A04 | I30: 1641 | J30: 845 | K30: 796 | L30: A | M30: A
A31: 1572838 | B31: TOURRAINE Philippe | C31: TOURRAINE | D31: Philippe | E31: S | F31: 6A | G31: FR | H31: T03 | I31: 1641 | J31: 839 | K31: 802 | L31: T | M31: T
A32: 2220417 | B32: DE RENEVILLE Gilles | C32: DE RENEVILLE | D32: Gilles | E32: S | F32: 5D | G32: FR | H32: O16 | I32: 1641 | J32: 835 | K32: 806 | L32: O | M32: O
A33: 1107588 | B33: SOULARD Martine | C33: SOULARD | D33: Martine | E33: V | F33: 5A | G33: FR | H33: D07 | I33: 1640 | J33: 838 | K33: 802 | L33: D | M33: D
A34: 1031456 | B34: MICLO Céline | C34: MICLO | D34: Céline | E34: S | F34: 5B | G34: FR | H34: P04 | I34: 1639 | J34: 847 | K34: 792 | L34: P | M34: P
A35: 2520422 | B35: WASSER Claire | C35: WASSER | D35: Claire | E35: R | F35: 5A | G35: FR | H35: A01 | I35: 1638 | J35: 854 | K35: 784 | L35: A | M35: A
A36: 1012718 | B36: FINES Thérèse | C36: FINES | D36: Thérèse | E36: V | F36: 5A | G36: FR | H36: I21 | I36: 1637 | J36: 834 | K36: 803 | L36: I | M36: I
A37: 1103594 | B37: ABEL Joëlle | C37: ABEL | D37: Joëlle | E37: V | F37: 5C | G37: FR | H37: C08 | I37: 1637 | J37: 824 | K37: 813 | L37: C | M37: P
A38: 1123851 | B38: CHARRE René | C38: CHARRE | D38: René | E38: D | F38: 5A | G38: FR | H38: P15 | I38: 1637 | J38: 846 | K38: 791 | L38: P | M38: P
A39: 1017679 | B39: GROUT Philippe | C39: GROUT | D39: Philippe | E39: V | F39: 7 | G39: FR | H39: M00 | I39: 1636 | J39: 847 | K39: 789 | L39: M | M39: M
A40: 1017021 | B40: MANCA Alexis | C40: MANCA | D40: Alexis | E40: S | F40: 7 | G40: FR | H40: L19 | I40: 1635 | J40: 823 | K40: 812 | L40: L | M40: L
A41: 2246497 | B41: CHIPEAUX Annette | C41: CHIPEAUX | D41: Annette | E41: S | F41: 5A | G41: FR | H41: D25 | I41: 1635 | J41: 836 | K41: 799 | L41: D | M41: D
A42: 1016698 | B42: BOUCHARD Cécile | C42: BOUCHARD | D42: Cécile | E42: S | F42: 7 | G42: FR | H42: H09 | I42: 1634 | J42: 831 | K42: 803 | L42: H | M42: H
A43: 1084623 | B43: PUECH Marité | C43: PUECH | D43: Marité | E43: D | F43: 5D | G43: FR | H43: N09 | I43: 1634 | J43: 827 | K43: 807 | L43: N | M43: N
A44: 1511048 | B44: MAURICHERE Perrine | C44: MAURICHERE | D44: Perrine | E44: E | F44: 5A | G44: FR | H44: VJ10 | I44: 1634 | J44: 830 | K44: 804 | L44: V | M44: V
A45: 1592716 | B45: MAURICE Claudie | C45: MAURICE | D45: Claudie | E45: V | F45: 5A | G45: FR | H45: D14 | I45: 1634 | J45: 833 | K45: 801 | L45: D | M45: D
A46: 1108879 | B46: DIEBLING Jean-Luc | C46: DIEBLING | D46: Jean-Luc | E46: V | F46: 5A | G46: FR | H46: Y02 | I46: 1633 | J46: 811 | K46: 822 | L46: Y | M46: Y
A47: 2248629 | B47: CHARTIER Bruno | C47: CHARTIER | D47: Bruno | E47: S | F47: 5A | G47: FR | H47: J03 | I47: 1633 | J47: 827 | K47: 806 | L47: J | M47: J
A48: 1009538 | B48: AGUILLON Dominique | C48: AGUILLON | D48: Dominique | E48: V | F48: 5A | G48: FR | H48: C02 | I48: 1632 | J48: 833 | K48: 799 | L48: C | M48: C
A49: 1151466 | B49: PAPAZIAN Mireille | C49: PAPAZIAN | D49: Mireille | E49: D | F49: 5A | G49: FR | H49: O16 | I49: 1632 | J49: 856 | K49: 776 | L49: O | M49: O
A50: 1270535 | B50: BERNARD Hubert | C50: BERNARD | D50: Hubert | E50: V | F50: 5D | G50: FR | H50: G32 | I50: 1632 | J50: 819 | K50: 813 | L50: G | M50: G
A51: 1001584 | B51: FRISTOT Marie-France | C51: FRISTOT | D51: Marie-France | E51: D | F51: 5D | G51: FR | H51: P01 | I51: 1631 | J51: 841 | K51: 790 | L51: P | M51: P
A52: 1003413 | B52: PETIT Alain | C52: PETIT | D52: Alain | E52: S | F52: 5D | G52: FR | H52: F25 | I52: 1631 | J52: 826 | K52: 805 | L52: F | M52: F
A53: 1016182 | B53: ROCHETEAU Régine | C53: ROCHETEAU | D53: Régine | E53: S | F53: 7 | G53: FR | H53: Y01 | I53: 1631 | J53: 843 | K53: 788 | L53: Y | M53: Y
A54: 2292722 | B54: CAMPOURCY Patricia | C54: CAMPOURCY | D54: Patricia | E54: S | F54: 5A | G54: FR | H54: I03 | I54: 1631 | J54: 823 | K54: 808 | L54: I | M54: I
A55: 1006060 | B55: MARTIAL Clément | C55: MARTIAL | D55: Clément | E55: J | F55: 5D | G55: FR | H55: V05 | I55: 1630 | J55: 826 | K55: 804 | L55: V | M55: V
A56: 1013155 | B56: COUTURIER Yvon | C56: COUTURIER | D56: Yvon | E56: S | F56: 5A | G56: FR | H56: D05 | I56: 1630 | J56: 813 | K56: 817 | L56: D | M56: D
A57: 1016651 | B57: CAILLAUD Eline | C57: CAILLAUD | D57: Eline | E57: S | F57: 7 | G57: FR | H57: P23 | I57: 1630 | J57: 826 | K57: 804 | L57: P | M57: P
A58: 1127133 | B58: COCHET Emmanuelle | C58: COCHET | D58: Emmanuelle | E58: V | F58: 5A | G58: FR | H58: Q37 | I58: 1630 | J58: 838 | K58: 792 | L58: Q | M58: Q
A59: 1154924 | B59: AMANT Marie-Claude | C59: AMANT | D59: Marie-Claude | E59: V | F59: 5A | G59: FR | H59: E10 | I59: 1630 | J59: 843 | K59: 787 | L59: E | M59: E
A60: 2257506 | B60: ANDRE Paul | C60: ANDRE | D60: Paul | E60: D | F60: 5A | G60: FR | H60: L14 | I60: 1630 | J60: 823 | K60: 807 | L60: L | M60: L
A61: 1005143 | B61: VILLAUDY Annick | C61: VILLAUDY | D61: Annick | E61: V | F61: 5A | G61: FR | H61: V11 | I61: 1628 | J61: 826 | K61: 802 | L61: V | M61: V
A62: 1171600 | B62: FAULQUE Brigitte | C62: FAULQUE | D62: Brigitte | E62: D | F62: 5B | G62: FR | H62: P04 | I62: 1628 | J62: 835 | K62: 793 | L62: P | M62: P
A63: 2674581 | B63: JANNIOT Claude | C63: JANNIOT | D63: Claude | E63: S | F63: 5A | G63: FR | H63: R01 | I63: 1628 | J63: 820 | K63: 808 | L63: R | M63: R
A64: 1001196 | B64: DUBUT Florence | C64: DUBUT | D64: Florence | E64: V | F64: 5A | G64: FR | H64: S30 | I64: 1627 | J64: 827 | K64: 800 | L64: S | M64: S
A65: 1011778 | B65: BIGNON-BAKETOU Théophile | C65: BIGNON-BAKETOU | D65: Théophile | E65: C | F65: 5C | G65: FR | H65: WJ03 | I65: 1627 | J65: 828 | K65: 799 | L65: W | M65: W
A66: 1132147 | B66: LEOSTIC Sylvie | C66: LEOSTIC | D66: Sylvie | E66: V | F66: 5A | G66: FR | H66: O01 | I66: 1627 | J66: 828 | K66: 799 | L66: O | M66: O
A67: 1146596 | B67: WINCKEL Martine | C67: WINCKEL | D67: Martine | E67: V | F67: 5B | G67: FR | H67: H09 | I67: 1627 | J67: 829 | K67: 798 | L67: H | M67: H
A68: 1009479 | B68: GESLOT Martine | C68: GESLOT | D68: Martine | E68: V | F68: 5A | G68: FR | H68: M23 | I68: 1626 | J68: 838 | K68: 788 | L68: M | M68: M
A69: 1150715 | B69: BENACCHIO Mireille | C69: BENACCHIO | D69: Mireille | E69: D | F69: 5A | G69: FR | H69: F10 | I69: 1626 | J69: 816 | K69: 810 | L69: F | M69: F
A70: 1006068 | B70: SAUTHIER Yvette | C70: SAUTHIER | D70: Yvette | E70: V | F70: 5B | G70: FR | H70: F15 | I70: 1625 | J70: 816 | K70: 809 | L70: F | M70: F
A71: 1018631 | B71: BROUARDELLE Christophe | C71: BROUARDELLE | D71: Christophe | E71: S | F71: 5C | G71: FR | H71: E09 | I71: 1625 | J71: 824 | K71: 801 | L71: E | M71: E
A72: 2558756 | B72: CHAMPOMIER Colette | C72: CHAMPOMIER | D72: Colette | E72: D | F72: 5B | G72: FR | H72: W08 | I72: 1625 | J72: 847 | K72: 778 | L72: W | M72: W
A73: 1016528 | B73: MOTHE Norbert | C73: MOTHE | D73: Norbert | E73: S | F73: 7 | G73: FR | H73: B01 | I73: 1624 | J73: 834 | K73: 790 | L73: B | M73: B
A74: 1194785 | B74: ORIOU Marie-Dominique | C74: ORIOU | D74: Marie-Dominique | E74: V | F74: 5A | G74: FR | H74: D15 | I74: 1623 | J74: 832 | K74: 791 | L74: D | M74: D
A75: 1001341 | B75: CELLIER Odile | C75: CELLIER | D75: Odile | E75: V | F75: 5D | G75: FR | H75: Y01 | I75: 1622 | J75: 814 | K75: 808 | L75: Y | M75: Y
A76: 1012668 | B76: SOUZY Jean-Luc | C76: SOUZY | D76: Jean-Luc | E76: S | F76: 5A | G76: FR | H76: Y35 | I76: 1621 | J76: 839 | K76: 782 | L76: Y | M76: Y
A77: 1015349 | B77: VIGNERON Marie-Christine | C77: VIGNERON | D77: Marie-Christine | E77: V | F77: 7 | G77: FR | H77: D30 | I77: 1621 | J77: 820 | K77: 801 | L77: D | M77: D
A78: 1122828 | B78: HELART Annick | C78: HELART | D78: Annick | E78: V | F78: 5A | G78: FR | H78: G37 | I78: 1621 | J78: 820 | K78: 801 | L78: G | M78: G
A79: 2019675 | B79: ABELOOS Michèle | C79: ABELOOS | D79: Michèle | E79: D | F79: 5A | G79: FR | H79: G17 | I79: 1621 | J79: 814 | K79: 807 | L79: G | M79: G
A80: 2577711 | B80: JULOU Catherine | C80: JULOU | D80: Catherine | E80: V | F80: 5C | G80: FR | H80: S05 | I80: 1621 | J80: 809 | K80: 812 | L80: S | M80: S
A81: 1012766 | B81: MIRA Françoise | C81: MIRA | D81: Françoise | E81: V | F81: 5A | G81: FR | H81: X02 | I81: 1620 | J81: 821 | K81: 799 | L81: X | M81: X
A82: 1013507 | B82: BOURDE Brigitte | C82: BOURDE | D82: Brigitte | E82: V | F82: 5D | G82: FR | H82: S27 | I82: 1620 | J82: 831 | K82: 789 | L82: S | M82: S
A83: 1013551 | B83: COVEY Lore | C83: COVEY | D83: Lore | E83: S | F83: 5C | G83: FR | H83: W30 | I83: 1620 | J83: 814 | K83: 806 | L83: W | M83: W
A84: 1136474 | B84: VIDAL Lucette | C84: VIDAL | D84: Lucette | E84: V | F84: 5A | G84: FR | H84: P15 | I84: 1620 | J84: 824 | K84: 796 | L84: P | M84: P
A85: 1146833 | B85: COINTAULT Vincent | C85: COINTAULT | D85: Vincent | E85: V | F85: 5B | G85: FR | H85: Y02 | I85: 1620 | J85: 829 | K85: 791 | L85: Y | M85: Y
A86: 1224039 | B86: MEYNARD Annie | C86: MEYNARD | D86: Annie | E86: D | F86: 5A | G86: FR | H86: T13 | I86: 1620 | J86: 830 | K86: 790 | L86: T | M86: T
A87: 1590129 | B87: BOISSET Liliane | C87: BOISSET | D87: Liliane | E87: D | F87: 5A | G87: FR | H87: G02 | I87: 1620 | J87: 819 | K87: 801 | L87: G | M87: G
A88: 1007917 | B88: MELIX Ghislaine | C88: MELIX | D88: Ghislaine | E88: V | F88: 5A | G88: FR | H88: B29 | I88: 1619 | J88: 826 | K88: 793 | L88: B | M88: B
A89: 1155822 | B89: BOYER Roland | C89: BOYER | D89: Roland | E89: V | F89: 5D | G89: FR | H89: Q47 | I89: 1618 | J89: 820 | K89: 798 | L89: Q | M89: Q
A90: 1003324 | B90: HAUTOT Véronique | C90: HAUTOT | D90: Véronique | E90: S | F90: 5A | G90: FR | H90: M43 | I90: 1617 | J90: 828 | K90: 789 | L90: M | M90: M
A91: 1154441 | B91: GIUDICELLI Nicole | C91: GIUDICELLI | D91: Nicole | E91: V | F91: 5A | G91: FR | H91: Q11 | I91: 1616 | J91: 815 | K91: 801 | L91: Q | M91: Q
A92: 1211697 | B92: LECOCQ Jacques | C92: LECOCQ | D92: Jacques | E92: V | F92: 5D | G92: FR | H92: G34 | I92: 1616 | J92: 827 | K92: 789 | L92: G | M92: G
A93: 2184652 | B93: TERREE Françoise | C93: TERREE | D93: Françoise | E93: V | F93: 5C | G93: FR | H93: T05 | I93: 1616 | J93: 832 | K93: 784 | L93: T | M93: T
A94: 2338069 | B94: DEHODENCQ Jérôme | C94: DEHODENCQ | D94: Jérôme | E94: S | F94: 5D | G94: FR | H94: L19 | I94: 1616 | J94: 809 | K94: 807 | L94: L | M94: L
A95: 1011105 | B95: CYBULKA Bernadette | C95: CYBULKA | D95: Bernadette | E95: V | F95: 5A | G95: FR | H95: G47 | I95: 1615 | J95: 834 | K95: 781 | L95: G | M95: G
A96: 1017552 | B96: TOURE Macire | C96: TOURE | D96: Macire | E96: S | F96: 7 | G96: FR | H96: J05 | I96: 1615 | J96: 814 | K96: 801 | L96: J | M96: J
A97: 1122092 | B97: HUSELSTEIN Véronique | C97: HUSELSTEIN | D97: Véronique | E97: S | F97: 5C | G97: FR | H97: I04 | I97: 1615 | J97: 843 | K97: 772 | L97: I | M97: I
A98: 1330236 | B98: DELHOM Cécile | C98: DELHOM | D98: Cécile | E98: S | F98: 5D | G98: FR | H98: B23 | I98: 1615 | J98: 840 | K98: 775 | L98: B | M98: B
A99: 2688548 | B99: GAUDET Simone | C99: GAUDET | D99: Simone | E99: D | F99: 5A | G99: FR | H99: L15 | I99: 1615 | J99: 828 | K99: 787 | L99: L | M99: L
A100: 1010619 | B100: LAPEYRE-MIRANDE Geneviève | C100: LAPEYRE-MIRANDE | D100: Geneviève | E100: V | F100: 5B | G100: FR | H100: T13 | I100: 1613 | J100: 828 | K100: 785 | L100: T | M100: T
A101: 1014588 | B101: GANDON Véronique | C101: GANDON | D101: Véronique | E101: S | F101: 5C | G101: FR | H101: I15 | I101: 1613 | J101: 829 | K101: 784 | L101: I | M101: I
A102: 1016689 | B102: WEINZAEPFLEN Pierre | C102: WEINZAEPFLEN | D102: Pierre | E102: V | F102: 7 | G102: FR | H102: A03 | I102: 1613 | J102: 799 | K102: 814 | L102: A | M102: A
A103: 1064261 | B103: LE Cécile | C103: LE | D103: Cécile | E103: S | F103: 5A | G103: FR | H103: H03 | I103: 1613 | J103: 866 | K103: 747 | L103: H | M103: H
A104: 2047281 | B104: DESROZIERS Christiane | C104: DESROZIERS | D104: Christiane | E104: V | F104: 5C | G104: FR | H104: M14 | I104: 1613 | J104: 823 | K104: 790 | L104: M | M104: M
A105: 2613522 | B105: LARAND Jean-Christophe | C105: LARAND | D105: Jean-Christophe | E105: V | F105: 5B | G105: FR | H105: T13 | I105: 1613 | J105: 829 | K105: 784 | L105: T | M105: T
A106: 3206111 | B106: BERGERAT Christine | C106: BERGERAT | D106: Christine | E106: S | F106: 5C | G106: FR | H106: M12 | I106: 1613 | J106: 825 | K106: 788 | L106: M | M106: M
A107: 1011071 | B107: GALLAND Chantal | C107: GALLAND | D107: Chantal | E107: S | F107: 5A | G107: FR | H107: K12 | I107: 1612 | J107: 816 | K107: 796 | L107: K | M107: K
A108: 1016924 | B108: DELALANDE Marie-Hélène | C108: DELALANDE | D108: Marie-Hélène | E108: S | F108: 7 | G108: FR | H108: S27 | I108: 1612 | J108: 808 | K108: 804 | L108: S | M108: S
A109: 1045618 | B109: HANF Dominique | C109: HANF | D109: Dominique | E109: V | F109: 5A | G109: FR | H109: F01 | I109: 1612 | J109: 824 | K109: 788 | L109: F | M109: F
A110: 1171591 | B110: SCATENI Linda | C110: SCATENI | D110: Linda | E110: V | F110: 5A | G110: FR | H110: Q17 | I110: 1612 | J110: 816 | K110: 796 | L110: Q | M110: Q
A111: 2671423 | B111: PUBLIER Michel | C111: PUBLIER | D111: Michel | E111: D | F111: 5D | G111: FR | H111: H11 | I111: 1612 | J111: 824 | K111: 788 | L111: H | M111: H
A112: 1001375 | B112: BOYER Claudine | C112: BOYER | D112: Claudine | E112: V | F112: 5D | G112: FR | H112: I04 | I112: 1611 | J112: 843 | K112: 768 | L112: I | M112: I
A113: 1001747 | B113: RIMBAUT Gwennola | C113: RIMBAUT | D113: Gwennola | E113: V | F113: 6A | G113: FR | H113: D10 | I113: 1611 | J113: 806 | K113: 805 | L113: D | M113: D
A114: 1014204 | B114: VALET Pascal | C114: VALET | D114: Pascal | E114: V | F114: 5D | G114: FR | H114: E07 | I114: 1611 | J114: 818 | K114: 793 | L114: E | M114: E
A115: 2594078 | B115: LAURENT Jean-Claude | C115: LAURENT | D115: Jean-Claude | E115: D | F115: 5A | G115: FR | H115: U33 | I115: 1611 | J115: 818 | K115: 793 | L115: U | M115: U
A116: 1008122 | B116: FEVRE Jocelyne | C116: FEVRE | D116: Jocelyne | E116: S | F116: 5B | G116: FR | H116: K48 | I116: 1610 | J116: 819 | K116: 791 | L116: K | M116: K
A117: 1009289 | B117: DUGROSSY Nicole | C117: DUGROSSY | D117: Nicole | E117: D | F117: 5B | G117: FR | H117: J06 | I117: 1610 | J117: 813 | K117: 797 | L117: J | M117: J
A118: 1014520 | B118: JAFFRÉ Carole | C118: JAFFRÉ | D118: Carole | E118: S | F118: 5C | G118: FR | H118: S07 | I118: 1610 | J118: 814 | K118: 796 | L118: S | M118: S
A119: 1059481 | B119: GRESS Katia | C119: GRESS | D119: Katia | E119: S | F119: 5C | G119: FR | H119: I10 | I119: 1610 | J119: 816 | K119: 794 | L119: I | M119: I
A120: 2010528 | B120: CLOUSE Danièle | C120: CLOUSE | D120: Danièle | E120: V | F120: 5B | G120: FR | H120: B27 | I120: 1610 | J120: 820 | K120: 790 | L120: B | M120: B
A121: 2244556 | B121: LOUIN Sylvie | C121: LOUIN | D121: Sylvie | E121: S | F121: 5D | G121: FR | H121: S04 | I121: 1610 | J121: 793 | K121: 817 | L121: S | M121: S
A122: 2679923 | B122: FLEREAU Emile | C122: FLEREAU | D122: Emile | E122: V | F122: 5D | G122: FR | H122: Q44 | I122: 1610 | J122: 825 | K122: 785 | L122: Q | M122: Q
A123: 1222954 | B123: PIGNOLE Emmanuelle | C123: PIGNOLE | D123: Emmanuelle | E123: V | F123: 5A | G123: FR | H123: Q07 | I123: 1609 | J123: 820 | K123: 789 | L123: Q | M123: Q
A124: 2242571 | B124: FRIGENZA Clairette | C124: FRIGENZA | D124: Clairette | E124: D | F124: 5A | G124: FR | H124: N02 | I124: 1609 | J124: 815 | K124: 794 | L124: N | M124: N
A125: 2382792 | B125: VANHERZEEKE Gaëlle | C125: VANHERZEEKE | D125: Gaëlle | E125: S | F125: 6D | G125: FR | H125: M26 | I125: 1609 | J125: 812 | K125: 797 | L125: M | M125: M
A126: 1004440 | B126: LOSCOS Françoise | C126: LOSCOS | D126: Françoise | E126: V | F126: 5A | G126: FR | H126: L19 | I126: 1608 | J126: 811 | K126: 797 | L126: L | M126: L
A127: 1006437 | B127: MOISAN Monique | C127: MOISAN | D127: Monique | E127: D | F127: 5B | G127: FR | H127: D12 | I127: 1608 | J127: 810 | K127: 798 | L127: D | M127: D
A128: 1011132 | B128: ORLANDO Eliane | C128: ORLANDO | D128: Eliane | E128: V | F128: 5B | G128: FR | H128: B15 | I128: 1608 | J128: 797 | K128: 811 | L128: B | M128: B
A129: 1013504 | B129: BOUCHET Claudie | C129: BOUCHET | D129: Claudie | E129: V | F129: 5A | G129: FR | H129: S27 | I129: 1608 | J129: 828 | K129: 780 | L129: S | M129: S
A130: 1922131 | B130: ALLAIN Daniel | C130: ALLAIN | D130: Daniel | E130: R | F130: 5B | G130: FR | H130: H25 | I130: 1608 | J130: 821 | K130: 787 | L130: H | M130: H
A131: 2374510 | B131: NALENNE Marie-Claire | C131: NALENNE | D131: Marie-Claire | E131: V | F131: 5A | G131: FR | H131: H15 | I131: 1608 | J131: 805 | K131: 803 | L131: H | M131: H
A132: 2514676 | B132: BLOCH Laurence | C132: BLOCH | D132: Laurence | E132: S | F132: 5C | G132: FR | H132: H24 | I132: 1608 | J132: 822 | K132: 786 | L132: H | M132: H
A133: 2632532 | B133: DECOUTURE Christophe | C133: DECOUTURE | D133: Christophe | E133: S | F133: 5A | G133: FR | H133: F30 | I133: 1608 | J133: 806 | K133: 802 | L133: F | M133: F
A134: 1008628 | B134: AUBECQ Corinne | C134: AUBECQ | D134: Corinne | E134: S | F134: 5D | G134: FR | H134: S26 | I134: 1607 | J134: 813 | K134: 794 | L134: S | M134: S
A135: 1016912 | B135: DITER Philippe | C135: DITER | D135: Philippe | E135: V | F135: 7 | G135: FR | H135: M17 | I135: 1607 | J135: 819 | K135: 788 | L135: M | M135: M
A136: 2613645 | B136: DUFAU Annie | C136: DUFAU | D136: Annie | E136: D | F136: 5A | G136: FR | H136: T15 | I136: 1607 | J136: 839 | K136: 768 | L136: T | M136: T
A137: 8888888 | B137: BISCHOFF Francine | C137: BISCHOFF | D137: Francine | E137: S | F137: 7 | G137: FR | H137: A02 | I137: 1607 | J137: 796 | K137: 811 | L137: A | M137: A
A138: 1006306 | B138: ARAUJO Margot | C138: ARAUJO | D138: Margot | E138: S | F138: 5B | G138: FR | H138: E10 | I138: 1606 | J138: 838 | K138: 768 | L138: E | M138: E
A139: 1010128 | B139: SERVANT Anne | C139: SERVANT | D139: Anne | E139: V | F139: 5C | G139: FR | H139: S16 | I139: 1606 | J139: 820 | K139: 786 | L139: S | M139: S
A140: 1149547 | B140: DONCE Adeline | C140: DONCE | D140: Adeline | E140: S | F140: 5C | G140: FR | H140: U17 | I140: 1606 | J140: 819 | K140: 787 | L140: U | M140: U
A141: 1002341 | B141: DROCOURT Annie | C141: DROCOURT | D141: Annie | E141: D | F141: 5B | G141: FR | H141: M44 | I141: 1605 | J141: 805 | K141: 800 | L141: M | M141: M
A142: 1003900 | B142: PARIZOT Martine | C142: PARIZOT | D142: Martine | E142: V | F142: 5A | G142: FR | H142: E14 | I142: 1605 | J142: 808 | K142: 797 | L142: E | M142: E
A143: 1004298 | B143: LIVET Mariane | C143: LIVET | D143: Mariane | E143: V | F143: 5B | G143: FR | H143: P08 | I143: 1605 | J143: 808 | K143: 797 | L143: P | M143: P
A144: 1007796 | B144: GILLES Nicole | C144: GILLES | D144: Nicole | E144: V | F144: 5B | G144: FR | H144: J06 | I144: 1605 | J144: 841 | K144: 764 | L144: J | M144: J
A145: 1007865 | B145: SKIBNIEWSKI Ginette | C145: SKIBNIEWSKI | D145: Ginette | E145: D | F145: 5D | G145: FR | H145: F04 | I145: 1605 | J145: 808 | K145: 797 | L145: F | M145: F
A146: 1029379 | B146: FERREIRA Marie-Thérèse | C146: FERREIRA | D146: Marie-Thérèse | E146: V | F146: 5A | G146: FR | H146: C03 | I146: 1605 | J146: 820 | K146: 785 | L146: C | M146: C
A147: 2131627 | B147: PECILE Marie-Claude | C147: PECILE | D147: Marie-Claude | E147: D | F147: 5A | G147: FR | H147: S04 | I147: 1605 | J147: 841 | K147: 764 | L147: S | M147: S
A148: 2283016 | B148: LEROY Anne | C148: LEROY | D148: Anne | E148: V | F148: 5A | G148: FR | H148: C25 | I148: 1605 | J148: 820 | K148: 785 | L148: C | M148: C
A149: 2389715 | B149: ORSSAUD Anne-Marie | C149: ORSSAUD | D149: Anne-Marie | E149: R | F149: 5D | G149: FR | H149: L19 | I149: 1605 | J149: 845 | K149: 760 | L149: L | M149: L
A150: 1002362 | B150: VILCOCQ Gérald | C150: VILCOCQ | D150: Gérald | E150: V | F150: 5A | G150: FR | H150: V05 | I150: 1604 | J150: 823 | K150: 781 | L150: V | M150: V
A151: 1004047 | B151: LE FOULER Véronique | C151: LE FOULER | D151: Véronique | E151: S | F151: 5C | G151: FR | H151: L06 | I151: 1604 | J151: 807 | K151: 797 | L151: L | M151: L
A152: 1009041 | B152: CHAULIAT Violaine | C152: CHAULIAT | D152: Violaine | E152: V | F152: 5B | G152: FR | H152: W08 | I152: 1604 | J152: 806 | K152: 798 | L152: W | M152: W
A153: 1015868 | B153: BOUCHER Chantal | C153: BOUCHER | D153: Chantal | E153: S | F153: 7 | G153: FR | H153: Q07 | I153: 1604 | J153: 802 | K153: 802 | L153: Q | M153: Q
A154: 2240162 | B154: LEGER Sylvie | C154: LEGER | D154: Sylvie | E154: V | F154: 6A | G154: FR | H154: G39 | I154: 1604 | J154: 801 | K154: 803 | L154: G | M154: G
A155: 1006371 | B155: SANCE Claudie | C155: SANCE | D155: Claudie | E155: V | F155: 5B | G155: FR | H155: S11 | I155: 1603 | J155: 838 | K155: 765 | L155: S | M155: S
A156: 1008943 | B156: LE ROY Maryse | C156: LE ROY | D156: Maryse | E156: S | F156: 5C | G156: FR | H156: J18 | I156: 1603 | J156: 821 | K156: 782 | L156: J | M156: J
A157: 1011288 | B157: VALDENAIRE Isabelle | C157: VALDENAIRE | D157: Isabelle | E157: S | F157: 5B | G157: FR | H157: R21 | I157: 1603 | J157: 842 | K157: 761 | L157: R | M157: R
A158: 1012476 | B158: CROZIER Patrick | C158: CROZIER | D158: Patrick | E158: V | F158: 5B | G158: FR | H158: F31 | I158: 1603 | J158: 803 | K158: 800 | L158: F | M158: F
A159: 1014900 | B159: LEFELLE Dominique | C159: LEFELLE | D159: Dominique | E159: V | F159: 6D | G159: FR | H159: P01 | I159: 1603 | J159: 801 | K159: 802 | L159: P | M159: P
A160: 1015100 | B160: PORTE Thierry | C160: PORTE | D160: Thierry | E160: S | F160: 7 | G160: FR | H160: L28 | I160: 1603 | J160: 857 | K160: 746 | L160: L | M160: L
A161: 2022749 | B161: PANAU Marie-Odile | C161: PANAU | D161: Marie-Odile | E161: V | F161: 5A | G161: FR | H161: J17 | I161: 1603 | J161: 796 | K161: 807 | L161: J | M161: J
A162: 2711446 | B162: MASSON Anne-Marie | C162: MASSON | D162: Anne-Marie | E162: V | F162: 5C | G162: FR | H162: E06 | I162: 1603 | J162: 805 | K162: 798 | L162: E | M162: E
A163: 1015614 | B163: VINCENT Michel | C163: VINCENT | D163: Michel | E163: D | F163: 7 | G163: FR | H163: L11 | I163: 1602 | J163: 828 | K163: 774 | L163: L | M163: L
A164: 1026204 | B164: BERTHELEMY Alain | C164: BERTHELEMY | D164: Alain | E164: D | F164: 5A | G164: FR | H164: U03 | I164: 1602 | J164: 795 | K164: 807 | L164: U | M164: U
A165: 1102797 | B165: ANDRE Bernadette | C165: ANDRE | D165: Bernadette | E165: D | F165: 5B | G165: FR | H165: T14 | I165: 1602 | J165: 806 | K165: 796 | L165: T | M165: T
A166: 1108328 | B166: VANDEN BROECK Alain | C166: VANDEN BROECK | D166: Alain | E166: V | F166: 5B | G166: FR | H166: H15 | I166: 1602 | J166: 825 | K166: 777 | L166: H | M166: H
A167: 2188409 | B167: GOVINDIN Nathalie | C167: GOVINDIN | D167: Nathalie | E167: V | F167: 5A | G167: FR | H167: C04 | I167: 1602 | J167: 802 | K167: 800 | L167: C | M167: C
A168: 1005454 | B168: BROSSET Marie-Paule | C168: BROSSET | D168: Marie-Paule | E168: S | F168: 5A | G168: FR | H168: S02 | I168: 1601 | J168: 815 | K168: 786 | L168: S | M168: S
A169: 1143266 | B169: GUYOMARC'H Roselyne | C169: GUYOMARC'H | D169: Roselyne | E169: R | F169: 5B | G169: FR | H169: Y12 | I169: 1601 | J169: 827 | K169: 774 | L169: Y | M169: Y
A170: 2388335 | B170: CARRIER Odette | C170: CARRIER | D170: Odette | E170: V | F170: 5B | G170: FR | H170: F30 | I170: 1601 | J170: 825 | K170: 776 | L170: F | M170: F
A171: 1003361 | B171: GEORGES Isabelle | C171: GEORGES | D171: Isabelle | E171: S | F171: 5A | G171: FR | H171: W04 | I171: 1600 | J171: 815 | K171: 785 | L171: W | M171: W
A172: 1005173 | B172: VILLEN CASTILLA Geneviève | C172: VILLEN CASTILLA | D172: Geneviève | E172: V | F172: 5C | G172: FR | H172: D01 | I172: 1600 | J172: 821 | K172: 779 | L172: D | M172: D
A173: 1005993 | B173: WENTZEL Nicole | C173: WENTZEL | D173: Nicole | E173: V | F173: 5A | G173: FR | H173: R01 | I173: 1600 | J173: 817 | K173: 783 | L173: R | M173: R
A174: 1007020 | B174: ANDRE Chantal | C174: ANDRE | D174: Chantal | E174: V | F174: 5C | G174: FR | H174: K05 | I174: 1600 | J174: 797 | K174: 803 | L174: K | M174: K
A175: 3209938 | B175: ZIMMERMANN Jonathan | C175: ZIMMERMANN | D175: Jonathan | E175: E | F175: 5C | G175: FR | H175: A11 | I175: 1600 | J175: 802 | K175: 798 | L175: A | M175: A
A176: 1003234 | B176: FABRE Virginie | C176: FABRE | D176: Virginie | E176: S | F176: 5C | G176: FR | H176: M14 | I176: 1599 | J176: 837 | K176: 762 | L176: M | M176: M
A177: 1005623 | B177: CHARRIER Françoise | C177: CHARRIER | D177: Françoise | E177: V | F177: 5A | G177: FR | H177: D04 | I177: 1599 | J177: 827 | K177: 772 | L177: D | M177: D
A178: 1007153 | B178: HARTMANN Marie-Christine | C178: HARTMANN | D178: Marie-Christine | E178: S | F178: 5D | G178: FR | H178: V38 | I178: 1599 | J178: 796 | K178: 803 | L178: V | M178: V
A179: 1007785 | B179: HORNE Katherine | C179: HORNE | D179: Katherine | E179: D | F179: 5A | G179: FR | H179: J06 | I179: 1599 | J179: 815 | K179: 784 | L179: J | M179: J
A180: 1009571 | B180: BAUGÉ Béatrice | C180: BAUGÉ | D180: Béatrice | E180: V | F180: 5B | G180: FR | H180: V24 | I180: 1599 | J180: 810 | K180: 789 | L180: V | M180: V
A181: 1009615 | B181: PALFRAY Brigitte | C181: PALFRAY | D181: Brigitte | E181: V | F181: 5B | G181: FR | H181: B15 | I181: 1599 | J181: 827 | K181: 772 | L181: B | M181: B
A182: 1016020 | B182: HYPOLITE Yves | C182: HYPOLITE | D182: Yves | E182: V | F182: 7 | G182: FR | H182: G03 | I182: 1599 | J182: 796 | K182: 803 | L182: G | M182: G
A183: 1046207 | B183: JOSSERAND Christine | C183: JOSSERAND | D183: Christine | E183: V | F183: 5A | G183: FR | H183: L28 | I183: 1599 | J183: 808 | K183: 791 | L183: L | M183: L
A184: 2600526 | B184: JOUSSAIN Colette | C184: JOUSSAIN | D184: Colette | E184: D | F184: 5A | G184: FR | H184: X04 | I184: 1599 | J184: 818 | K184: 781 | L184: X | M184: X
A185: 2692282 | B185: ORDITZ Laetitia | C185: ORDITZ | D185: Laetitia | E185: S | F185: 6C | G185: FR | H185: K06 | I185: 1599 | J185: 786 | K185: 813 | L185: K | M185: K
A186: 1004013 | B186: DOUHERET Elisabeth | C186: DOUHERET | D186: Elisabeth | E186: D | F186: 6A | G186: FR | H186: Y02 | I186: 1598 | J186: 804 | K186: 794 | L186: Y | M186: Y
A187: 1008954 | B187: LABROUSSE Monica | C187: LABROUSSE | D187: Monica | E187: V | F187: 5A | G187: FR | H187: J18 | I187: 1598 | J187: 811 | K187: 787 | L187: J | M187: J
A188: 1015187 | B188: SOREL François | C188: SOREL | D188: François | E188: V | F188: 7 | G188: FR | H188: D04 | I188: 1598 | J188: 795 | K188: 803 | L188: D | M188: D
A189: 1092820 | B189: GOASMAT Annick | C189: GOASMAT | D189: Annick | E189: D | F189: 5A | G189: FR | H189: S26 | I189: 1598 | J189: 820 | K189: 778 | L189: S | M189: S
A190: 2011145 | B190: HIRONDELLE Colette | C190: HIRONDELLE | D190: Colette | E190: R | F190: 5D | G190: FR | H190: J06 | I190: 1598 | J190: 818 | K190: 780 | L190: J | M190: J
A191: 2287551 | B191: SFORZA Véronique | C191: SFORZA | D191: Véronique | E191: S | F191: 5A | G191: FR | H191: I02 | I191: 1598 | J191: 791 | K191: 807 | L191: I | M191: I
A192: 2316086 | B192: CRANCE Christine | C192: CRANCE | D192: Christine | E192: D | F192: 5A | G192: FR | H192: R05 | I192: 1598 | J192: 803 | K192: 795 | L192: R | M192: R
A193: 2800991 | B193: MICHEL-GOUDARD Renée | C193: MICHEL-GOUDARD | D193: Renée | E193: D | F193: 5A | G193: FR | H193: Y02 | I193: 1598 | J193: 800 | K193: 798 | L193: Y | M193: Y
A194: 1004517 | B194: MOREAU Odile | C194: MOREAU | D194: Odile | E194: V | F194: 5B | G194: FR | H194: R06 | I194: 1597 | J194: 799 | K194: 798 | L194: R | M194: R
A195: 1007043 | B195: MARTI Chantal | C195: MARTI | D195: Chantal | E195: S | F195: 5B | G195: FR | H195: E06 | I195: 1597 | J195: 809 | K195: 788 | L195: E | M195: E
A196: 1013593 | B196: RICHARD Kevin | C196: RICHARD | D196: Kevin | E196: S | F196: 5D | G196: FR | H196: L36 | I196: 1597 | J196: 790 | K196: 807 | L196: L | M196: L
A197: 1016881 | B197: LITAUDON Gérard | C197: LITAUDON | D197: Gérard | E197: D | F197: 5A | G197: FR | H197: C02 | I197: 1597 | J197: 805 | K197: 792 | L197: C | M197: C
A198: 2348924 | B198: SCHWAAB Martine | C198: SCHWAAB | D198: Martine | E198: S | F198: 5D | G198: FR | H198: A12 | I198: 1597 | J198: 811 | K198: 786 | L198: A | M198: A
A199: 2521195 | B199: BAZARD Nicole | C199: BAZARD | D199: Nicole | E199: D | F199: 5C | G199: FR | H199: O29 | I199: 1597 | J199: 823 | K199: 774 | L199: O | M199: O
A200: 2748827 | B200: JUCQUIN Micheline | C200: JUCQUIN | D200: Micheline | E200: D | F200: 5B | G200: FR | H200: E19 | I200: 1597 | J200: 816 | K200: 781 | L200: E | M200: E
... 1370 more rows

Sheet Phase3
A1: NLIC | B1: NOMS | E1: CAT | F1: SERIE | G1: PAYS | H1: CLUB | I1: CUMUL | J1: P1 | K1: P2 | L1: P3 | M1: CENTRES | N1: COMITE
A2: 2327769 | B2: HUCK Martine | C2: HUCK | D2: Martine | E2: V | F2: 3A | G2: FR | H2: A17 | I2: 2877 | J2: 948 | K2: 1082 | L2: 847 | M2: A | N2: A
A3: 2567993 | B3: GUEUTAL Anthony | C3: GUEUTAL | D3: Anthony | E3: S | F3: 3A | G3: FR | H3: R10 | I3: 2865 | J3: 968 | K3: 1050 | L3: 847 | M3: R | N3: R
A4: 2242435 | B4: SALETA Christine | C4: SALETA | D4: Christine | E4: S | F4: 3A | G4: FR | H4: G05 | I4: 2864 | J4: 947 | K4: 1068 | L4: 849 | M4: G | N4: G
A5: 2045016 | B5: PAUCHARD Laure | C5: PAUCHARD | D5: Laure | E5: V | F5: 3A | G5: FR | H5: C01 | I5: 2863 | J5: 962 | K5: 1049 | L5: 852 | M5: C | N5: C
A6: 2576456 | B6: SAGNAT Jacques | C6: SAGNAT | D6: Jacques | E6: V | F6: 3A | G6: FR | H6: I04 | I6: 2862 | J6: 937 | K6: 1060 | L6: 865 | M6: I | N6: I
A7: 3203305 | B7: BILOT Pascal | C7: BILOT | D7: Pascal | E7: S | F7: 3B | G7: FR | H7: G00 | I7: 2861 | J7: 992 | K7: 1009 | L7: 860 | M7: G | N7: G
A8: 2290023 | B8: DUTERQUE Sabine | C8: DUTERQUE | D8: Sabine | E8: V | F8: 3B | G8: FR | H8: B11 | I8: 2854 | J8: 923 | K8: 1082 | L8: 849 | M8: B | N8: B
A9: 1005879 | B9: ROLAND Philippe | C9: ROLAND | D9: Philippe | E9: S | F9: 3B | G9: FR | H9: D05 | I9: 2853 | J9: 953 | K9: 1076 | L9: 824 | M9: D | N9: D
A10: 2310454 | B10: CERNEAUX Marie-Annick | C10: CERNEAUX | D10: Marie-Annick | E10: V | F10: 3B | G10: FR | H10: I04 | I10: 2849 | J10: 927 | K10: 1078 | L10: 844 | M10: I | N10: I
A11: 2228778 | B11: BESNARD Jean-Yves | C11: BESNARD | D11: Jean-Yves | E11: V | F11: 3A | G11: FR | H11: Y12 | I11: 2848 | J11: 921 | K11: 1070 | L11: 857 | M11: Y | N11: Y
A12: 2256088 | B12: NOEL Michèle | C12: NOEL | D12: Michèle | E12: V | F12: 4A | G12: FR | H12: I17 | I12: 2847 | J12: 941 | K12: 1070 | L12: 836 | M12: I | N12: I
A13: 1070465 | B13: COUSIN-BOURGAIN Jeanne-Marie | C13: COUSIN-BOURGAIN | D13: Jeanne-Marie | E13: V | F13: 3A | G13: FR | H13: G29 | I13: 2843 | J13: 943 | K13: 1053 | L13: 847 | M13: G | N13: G
A14: 1005241 | B14: GASCUEL Benjamin | C14: GASCUEL | D14: Benjamin | E14: E | F14: 3A | G14: FR | H14: C03 | I14: 2842 | J14: 948 | K14: 1032 | L14: 862 | M14: C | N14: C
A15: 1001301 | B15: RAY Christiane | C15: RAY | D15: Christiane | E15: V | F15: 3B | G15: FR | H15: L13 | I15: 2838 | J15: 928 | K15: 1080 | L15: 830 | M15: L | N15: L
A16: 2204066 | B16: PRUDHON Gérard | C16: PRUDHON | D16: Gérard | E16: D | F16: 3A | G16: FR | H16: C07 | I16: 2838 | J16: 956 | K16: 1055 | L16: 827 | M16: C | N16: C
A17: 2672298 | B17: EPRINCHARD Yves | C17: EPRINCHARD | D17: Yves | E17: V | F17: 3A | G17: FR | H17: L19 | I17: 2838 | J17: 944 | K17: 1037 | L17: 857 | M17: L | N17: L
A18: 1332109 | B18: TESSIER Claude | C18: TESSIER | D18: Claude | E18: S | F18: 3A | G18: FR | H18: X04 | I18: 2835 | J18: 962 | K18: 1083 | L18: 790 | M18: X | N18: X
A19: 2597342 | B19: MAURICE Christine | C19: MAURICE | D19: Christine | E19: V | F19: 3A | G19: FR | H19: O34 | I19: 2834 | J19: 957 | K19: 1024 | L19: 853 | M19: O | N19: O
A20: 2598082 | B20: MUNIER Catherine | C20: MUNIER | D20: Catherine | E20: S | F20: 3A | G20: FR | H20: K32 | I20: 2834 | J20: 957 | K20: 1034 | L20: 843 | M20: K | N20: K
A21: 2255177 | B21: GUILLET Blandine | C21: GUILLET | D21: Blandine | E21: V | F21: 3A | G21: FR | H21: D05 | I21: 2830 | J21: 921 | K21: 1068 | L21: 841 | M21: D | N21: D
A22: 1119348 | B22: COLLARD Denis | C22: COLLARD | D22: Denis | E22: S | F22: 3B | G22: FR | H22: E08 | I22: 2829 | J22: 947 | K22: 1045 | L22: 837 | M22: E | N22: E
A23: 1910044 | B23: DOUKHAN Guy | C23: DOUKHAN | D23: Guy | E23: D | F23: 3A | G23: FR | H23: V20 | I23: 2825 | J23: 947 | K23: 1024 | L23: 854 | M23: V | N23: V
A24: 2380057 | B24: VARLOT Gisèle | C24: VARLOT | D24: Gisèle | E24: S | F24: 3A | G24: FR | H24: F33 | I24: 2825 | J24: 879 | K24: 1090 | L24: 856 | M24: F | N24: F
A25: 1121965 | B25: MENNESSIER Brigitte | C25: MENNESSIER | D25: Brigitte | E25: V | F25: 4B | G25: FR | H25: K09 | I25: 2824 | J25: 968 | K25: 1031 | L25: 825 | M25: K | N25: K
A26: 2317816 | B26: JÄGER Bernadette | C26: JÄGER | D26: Bernadette | E26: S | F26: 3B | G26: FR | H26: G02 | I26: 2824 | J26: 925 | K26: 1048 | L26: 851 | M26: G | N26: G
A27: 2526021 | B27: PHAM Liliane | C27: PHAM | D27: Liliane | E27: R | F27: 3A | G27: FR | H27: B05 | I27: 2824 | J27: 949 | K27: 1041 | L27: 834 | M27: B | N27: B
A28: 1013490 | B28: LOHEZIC Antoine | C28: LOHEZIC | D28: Antoine | E28: J | F28: 5A | G28: FR | H28: DJ10 | I28: 2822 | J28: 978 | K28: 1007 | L28: 837 | M28: D | N28: D
A29: 1067345 | B29: ROUX Martine | C29: ROUX | D29: Martine | E29: V | F29: 3B | G29: FR | H29: O13 | I29: 2821 | J29: 964 | K29: 999 | L29: 858 | M29: O | N29: O
A30: 1116421 | B30: LARONZE Catherine | C30: LARONZE | D30: Catherine | E30: S | F30: 4A | G30: FR | H30: H15 | I30: 2821 | J30: 933 | K30: 1031 | L30: 857 | M30: V | N30: H
A31: 1510409 | B31: ADAM Ivan | C31: ADAM | D31: Ivan | E31: V | F31: 3A | G31: FR | H31: E07 | I31: 2820 | J31: 889 | K31: 1080 | L31: 851 | M31: E | N31: E
A32: 2202946 | B32: COLOMBIER Michèle | C32: COLOMBIER | D32: Michèle | E32: D | F32: 3A | G32: FR | H32: S01 | I32: 2819 | J32: 931 | K32: 1039 | L32: 849 | M32: S | N32: S
A33: 1109597 | B33: BERART Pierre | C33: BERART | D33: Pierre | E33: S | F33: 3B | G33: FR | H33: I03 | I33: 2818 | J33: 954 | K33: 1014 | L33: 850 | M33: I | N33: I
A34: 1123048 | B34: OLLIVIER Bernadette | C34: OLLIVIER | D34: Bernadette | E34: S | F34: 3A | G34: FR | H34: Q02 | I34: 2818 | J34: 944 | K34: 1021 | L34: 853 | M34: Q | N34: Q
A35: 1006609 | B35: RODRIGUES Marvin | C35: RODRIGUES | D35: Marvin | E35: S | F35: 4A | G35: FR | H35: T07 | I35: 2817 | J35: 916 | K35: 1077 | L35: 824 | M35: T | N35: T
A36: 1029145 | B36: RUEFF Rémy | C36: RUEFF | D36: Rémy | E36: S | F36: 3A | G36: FR | H36: A13 | I36: 2817 | J36: 992 | K36: 997 | L36: 828 | M36: A | N36: A
A37: 1012120 | B37: SALAUN Gurvan | C37: SALAUN | D37: Gurvan | E37: S | F37: 4A | G37: FR | H37: S33 | I37: 2814 | J37: 944 | K37: 1027 | L37: 843 | M37: S | N37: S
A38: 1133297 | B38: DRAUX Michel | C38: DRAUX | D38: Michel | E38: D | F38: 3A | G38: FR | H38: G27 | I38: 2810 | J38: 925 | K38: 1041 | L38: 844 | M38: G | N38: G
A39: 1261602 | B39: COUTURIER Florentin | C39: COUTURIER | D39: Florentin | E39: E | F39: 3A | G39: FR | H39: K06 | I39: 2810 | J39: 964 | K39: 988 | L39: 858 | M39: K | N39: K
A40: 3158126 | B40: PHIPPEN Hubert | C40: PHIPPEN | D40: Hubert | E40: S | F40: 4A | G40: FR | H40: M17 | I40: 2809 | J40: 931 | K40: 1020 | L40: 858 | M40: M | N40: M
A41: 1034123 | B41: SZEZUREK Richard | C41: SZEZUREK | D41: Richard | E41: D | F41: 3B | G41: FR | H41: L12 | I41: 2808 | J41: 906 | K41: 1051 | L41: 851 | M41: L | N41: L
A42: 1680082 | B42: FOLLIOT Jean-Pierre | C42: FOLLIOT | D42: Jean-Pierre | E42: D | F42: 3A | G42: FR | H42: L30 | I42: 2808 | J42: 933 | K42: 1059 | L42: 816 | M42: L | N42: L
A43: 2127194 | B43: BRUN Françoise | C43: BRUN | D43: Françoise | E43: S | F43: 3A | G43: FR | H43: W05 | I43: 2808 | J43: 938 | K43: 1023 | L43: 847 | M43: W | N43: W
A44: 1008257 | B44: HERANNEY Stéphane | C44: HERANNEY | D44: Stéphane | E44: S | F44: 3B | G44: FR | H44: N33 | I44: 2807 | J44: 893 | K44: 1078 | L44: 836 | M44: N | N44: N
A45: 2524495 | B45: HOUDUSSE Christophe | C45: HOUDUSSE | D45: Christophe | E45: S | F45: 3B | G45: FR | H45: S05 | I45: 2804 | J45: 956 | K45: 1019 | L45: 829 | M45: S | N45: S
A46: 1510174 | B46: THERESETTE Jean-François | C46: THERESETTE | D46: Jean-François | E46: V | F46: 3A | G46: FR | H46: F04 | I46: 2801 | J46: 876 | K46: 1062 | L46: 863 | M46: F | N46: F
A47: 2173097 | B47: PEPINO Régis | C47: PEPINO | D47: Régis | E47: S | F47: 3A | G47: FR | H47: Y03 | I47: 2798 | J47: 948 | K47: 1002 | L47: 848 | M47: Y | N47: Y
A48: 1004522 | B48: GUEREL Stéphane | C48: GUEREL | D48: Stéphane | E48: E | F48: 3A | G48: FR | H48: PJ07 | I48: 2796 | J48: 883 | K48: 1095 | L48: 818 | M48: P | N48: P
A49: 2283358 | B49: JOUNEL Chantal | C49: JOUNEL | D49: Chantal | E49: V | F49: 3B | G49: FR | H49: D04 | I49: 2796 | J49: 909 | K49: 1054 | L49: 833 | M49: D | N49: D
A50: 2299284 | B50: JOYE Guy | C50: JOYE | D50: Guy | E50: V | F50: 3B | G50: FR | H50: B14 | I50: 2796 | J50: 878 | K50: 1077 | L50: 841 | M50: D | N50: B
A51: 1301486 | B51: BOUTIN-BILLEY Véronique | C51: BOUTIN-BILLEY | D51: Véronique | E51: V | F51: 3A | G51: FR | H51: O27 | I51: 2795 | J51: 895 | K51: 1042 | L51: 858 | M51: O | N51: O
A52: 2279021 | B52: QUENNESSON Jean-Luc | C52: QUENNESSON | D52: Jean-Luc | E52: V | F52: 3B | G52: FR | H52: O11 | I52: 2795 | J52: 942 | K52: 1047 | L52: 806 | M52: O | N52: O
A53: 2784147 | B53: SALENGROIS Marie-José | C53: SALENGROIS | D53: Marie-José | E53: S | F53: 3A | G53: FR | H53: G05 | I53: 2795 | J53: 920 | K53: 1040 | L53: 835 | M53: G | N53: G
A54: 2063979 | B54: MARCHAND Claude-Annie | C54: MARCHAND | D54: Claude-Annie | E54: V | F54: 3A | G54: FR | H54: J18 | I54: 2794 | J54: 970 | K54: 1034 | L54: 790 | M54: J | N54: J
A55: 2630264 | B55: HUGOT Josyane | C55: HUGOT | D55: Josyane | E55: D | F55: 4A | G55: FR | H55: C07 | I55: 2794 | J55: 919 | K55: 1036 | L55: 839 | M55: C | N55: C
A56: 3331169 | B56: LAPORTE Maryse | C56: LAPORTE | D56: Maryse | E56: V | F56: 3B | G56: FR | H56: B22 | I56: 2794 | J56: 907 | K56: 1035 | L56: 852 | M56: B | N56: B
A57: 1006373 | B57: MALTERRE Philippe | C57: MALTERRE | D57: Philippe | E57: V | F57: 3B | G57: FR | H57: P13 | I57: 2793 | J57: 954 | K57: 1011 | L57: 828 | M57: P | N57: P
A58: 2583103 | B58: OLIVIER Denise | C58: OLIVIER | D58: Denise | E58: D | F58: 3B | G58: FR | H58: S02 | I58: 2793 | J58: 932 | K58: 1031 | L58: 830 | M58: S | N58: S
A59: 2607462 | B59: QUÉNEAU Jocelyne | C59: QUÉNEAU | D59: Jocelyne | E59: D | F59: 3A | G59: FR | H59: D05 | I59: 2792 | J59: 922 | K59: 1013 | L59: 857 | M59: D | N59: D
A60: 2342662 | B60: POULIQUEN Jean-Pierre | C60: POULIQUEN | D60: Jean-Pierre | E60: V | F60: 3A | G60: FR | H60: X01 | I60: 2791 | J60: 909 | K60: 1045 | L60: 837 | M60: X | N60: X
A61: 1009808 | B61: CEPITELLI Anne | C61: CEPITELLI | D61: Anne | E61: S | F61: 3A | G61: FR | H61: M43 | I61: 2790 | J61: 900 | K61: 1037 | L61: 853 | M61: M | N61: M
A62: 2209331 | B62: PEYLET Anne-Marie | C62: PEYLET | D62: Anne-Marie | E62: V | F62: 3A | G62: FR | H62: L17 | I62: 2790 | J62: 943 | K62: 996 | L62: 851 | M62: L | N62: L
A63: 2313203 | B63: HAQUIN Irène | C63: HAQUIN | D63: Irène | E63: D | F63: 3B | G63: FR | H63: V33 | I63: 2788 | J63: 920 | K63: 1031 | L63: 837 | M63: V | N63: V
A64: 2103718 | B64: ROLANDO Colette | C64: ROLANDO | D64: Colette | E64: D | F64: 3B | G64: FR | H64: O01 | I64: 2787 | J64: 931 | K64: 1032 | L64: 824 | M64: O | N64: O
A65: 2526098 | B65: SAVELLI Marie-Thérèse | C65: SAVELLI | D65: Marie-Thérèse | E65: D | F65: 3A | G65: FR | H65: B23 | I65: 2787 | J65: 898 | K65: 1086 | L65: 803 | M65: B | N65: B
A66: 1056651 | B66: RODRIGO Nathalie | C66: RODRIGO | D66: Nathalie | E66: S | F66: 3A | G66: FR | H66: U20 | I66: 2786 | J66: 933 | K66: 1041 | L66: 812 | M66: U | N66: U
A67: 2117511 | B67: AUBIER Olivier | C67: AUBIER | D67: Olivier | E67: S | F67: 3B | G67: FR | H67: H09 | I67: 2785 | J67: 969 | K67: 951 | L67: 865 | M67: H | N67: H
A68: 1450243 | B68: LEVACHER Marie-Madeleine | C68: LEVACHER | D68: Marie-Madeleine | E68: D | F68: 3B | G68: FR | H68: P04 | I68: 2784 | J68: 932 | K68: 1012 | L68: 840 | M68: P | N68: P
A69: 1036631 | B69: ROBIN Marie-Claire | C69: ROBIN | D69: Marie-Claire | E69: V | F69: 3B | G69: FR | H69: E17 | I69: 2783 | J69: 915 | K69: 1025 | L69: 843 | M69: E | N69: E
A70: 1123658 | B70: SOUFFLET Roselyne | C70: SOUFFLET | D70: Roselyne | E70: S | F70: 3B | G70: FR | H70: H09 | I70: 2783 | J70: 904 | K70: 1052 | L70: 827 | M70: H | N70: H
A71: 1340742 | B71: ROUGEOT Annie | C71: ROUGEOT | D71: Annie | E71: D | F71: 3B | G71: FR | H71: I03 | I71: 2783 | J71: 910 | K71: 1033 | L71: 840 | M71: I | N71: I
A72: 2293179 | B72: BOURLON Anne-Chantal | C72: BOURLON | D72: Anne-Chantal | E72: V | F72: 3A | G72: FR | H72: T05 | I72: 2783 | J72: 897 | K72: 1029 | L72: 857 | M72: T | N72: T
A73: 1010350 | B73: AUBRIOT Isabelle | C73: AUBRIOT | D73: Isabelle | E73: S | F73: 3B | G73: FR | H73: D15 | I73: 2780 | J73: 951 | K73: 991 | L73: 838 | M73: D | N73: D
A74: 2519118 | B74: PETIT Xavier | C74: PETIT | D74: Xavier | E74: V | F74: 4B | G74: FR | H74: J32 | I74: 2780 | J74: 923 | K74: 1034 | L74: 823 | M74: J | N74: J
A75: 2166461 | B75: MAILHE Annie | C75: MAILHE | D75: Annie | E75: D | F75: 3A | G75: FR | H75: I03 | I75: 2779 | J75: 910 | K75: 1037 | L75: 832 | M75: I | N75: I
A76: 1116138 | B76: GOURDEAU Hélène | C76: GOURDEAU | D76: Hélène | E76: V | F76: 3A | G76: FR | H76: J03 | I76: 2778 | J76: 919 | K76: 998 | L76: 861 | M76: J | N76: J
A77: 2589064 | B77: GROSSE Marie-Agnès | C77: GROSSE | D77: Marie-Agnès | E77: D | F77: 3B | G77: FR | H77: K05 | I77: 2777 | J77: 965 | K77: 991 | L77: 821 | M77: K | N77: K
A78: 1200159 | B78: VICTOR Hugo | C78: VICTOR | D78: Hugo | E78: S | F78: 3B | G78: FR | H78: Q03 | I78: 2776 | J78: 927 | K78: 993 | L78: 856 | M78: Q | N78: Q
A79: 2175786 | B79: BOUCARD Claude | C79: BOUCARD | D79: Claude | E79: V | F79: 4A | G79: FR | H79: R12 | I79: 2776 | J79: 923 | K79: 999 | L79: 854 | M79: R | N79: R
A80: 2528704 | B80: MOURIER Josiane | C80: MOURIER | D80: Josiane | E80: D | F80: 3B | G80: FR | H80: L30 | I80: 2776 | J80: 927 | K80: 999 | L80: 850 | M80: L | N80: L
A81: 2284584 | B81: LEVAVASSEUR Stéphane | C81: LEVAVASSEUR | D81: Stéphane | E81: S | F81: 3A | G81: FR | H81: G12 | I81: 2775 | J81: 957 | K81: 997 | L81: 821 | M81: E | N81: G
A82: 2208771 | B82: TOLLARD Frank | C82: TOLLARD | D82: Frank | E82: S | F82: 3A | G82: FR | H82: K14 | I82: 2774 | J82: 922 | K82: 1008 | L82: 844 | M82: K | N82: K
A83: 2388173 | B83: GUIGUET Vincent | C83: GUIGUET | D83: Vincent | E83: S | F83: 3A | G83: FR | H83: O36 | I83: 2773 | J83: 918 | K83: 1035 | L83: 820 | M83: O | N83: O
A84: 1038447 | B84: FEVRE Patrick | C84: FEVRE | D84: Patrick | E84: V | F84: 3A | G84: FR | H84: L13 | I84: 2772 | J84: 916 | K84: 1016 | L84: 840 | M84: L | N84: L
A85: 1832014 | B85: COUNOTTE Nicole | C85: COUNOTTE | D85: Nicole | E85: D | F85: 3B | G85: FR | H85: Y30 | I85: 2772 | J85: 909 | K85: 1016 | L85: 847 | M85: Y | N85: Y
A86: 1016414 | B86: BAIL Dominique | C86: BAIL | D86: Dominique | E86: V | F86: 4D | G86: FR | H86: V33 | I86: 2771 | J86: 911 | K86: 1013 | L86: 847 | M86: V | N86: V
A87: 2589541 | B87: VERNET Françoise | C87: VERNET | D87: Françoise | E87: V | F87: 3B | G87: FR | H87: L15 | I87: 2770 | J87: 949 | K87: 966 | L87: 855 | M87: L | N87: L
A88: 2766039 | B88: SERVAEGE John | C88: SERVAEGE | D88: John | E88: V | F88: 3B | G88: FR | H88: N34 | I88: 2769 | J88: 948 | K88: 1034 | L88: 787 | M88: N | N88: N
A89: 2512792 | B89: DAVID Huguette | C89: DAVID | D89: Huguette | E89: V | F89: 4A | G89: FR | H89: D05 | I89: 2768 | J89: 905 | K89: 1013 | L89: 850 | M89: D | N89: D
A90: 1320034 | B90: DESBONS Marie-Françoise | C90: DESBONS | D90: Marie-Françoise | E90: D | F90: 3A | G90: FR | H90: B01 | I90: 2767 | J90: 948 | K90: 985 | L90: 834 | M90: B | N90: B
A91: 1600626 | B91: LEGROS Yves | C91: LEGROS | D91: Yves | E91: D | F91: 5A | G91: FR | H91: G27 | I91: 2767 | J91: 922 | K91: 990 | L91: 855 | M91: G | N91: G
A92: 1005075 | B92: VULIN Muriel | C92: VULIN | D92: Muriel | E92: S | F92: 3B | G92: FR | H92: L17 | I92: 2766 | J92: 933 | K92: 978 | L92: 855 | M92: L | N92: L
A93: 1036188 | B93: ESTELLE Achille | C93: ESTELLE | D93: Achille | E93: S | F93: 3B | G93: FR | H93: Q47 | I93: 2766 | J93: 915 | K93: 1038 | L93: 813 | M93: Q | N93: Q
A94: 2041021 | B94: PAYAN Gérard | C94: PAYAN | D94: Gérard | E94: D | F94: 3A | G94: FR | H94: F08 | I94: 2766 | J94: 884 | K94: 1087 | L94: 795 | M94: F | N94: F
A95: 2324291 | B95: SCHMID François | C95: SCHMID | D95: François | E95: S | F95: 3A | G95: FR | H95: Y12 | I95: 2766 | J95: 902 | K95: 1021 | L95: 843 | M95: Y | N95: Y
A96: 2594701 | B96: BOUDJENANE Rachid | C96: BOUDJENANE | D96: Rachid | E96: S | F96: 4D | G96: FR | H96: U02 | I96: 2766 | J96: 952 | K96: 1006 | L96: 808 | M96: U | N96: U
A97: 1006185 | B97: GASNIER Yves | C97: GASNIER | D97: Yves | E97: V | F97: 4A | G97: FR | H97: M03 | I97: 2765 | J97: 934 | K97: 999 | L97: 832 | M97: M | N97: M
A98: 1020752 | B98: NEUVE EGLISE Cyrille | C98: NEUVE EGLISE | D98: Cyrille | E98: S | F98: 3A | G98: FR | H98: K14 | I98: 2765 | J98: 951 | K98: 997 | L98: 817 | M98: K | N98: K
A99: 2241886 | B99: DARRAS Sylvaine | C99: DARRAS | D99: Sylvaine | E99: V | F99: 3A | G99: FR | H99: G11 | I99: 2765 | J99: 936 | K99: 973 | L99: 856 | M99: G | N99: G
A100: 2316424 | B100: GRUEL Gérard | C100: GRUEL | D100: Gérard | E100: D | F100: 4B | G100: FR | H100: G18 | I100: 2765 | J100: 925 | K100: 1012 | L100: 828 | M100: G | N100: G
A101: 2548612 | B101: BELMANT Jeannine | C101: BELMANT | D101: Jeannine | E101: D | F101: 3B | G101: FR | H101: B44 | I101: 2765 | J101: 907 | K101: 1007 | L101: 851 | M101: B | N101: B
A102: 2595052 | B102: LUCE Rosita | C102: LUCE | D102: Rosita | E102: V | F102: 3A | G102: FR | H102: V36 | I102: 2765 | J102: 945 | K102: 1034 | L102: 786 | M102: V | N102: V
A103: 2600032 | B103: SIMONNET Jean-Guy | C103: SIMONNET | D103: Jean-Guy | E103: V | F103: 3A | G103: FR | H103: J03 | I103: 2765 | J103: 934 | K103: 994 | L103: 837 | M103: J | N103: J
A104: 1390626 | B104: THOMINIAUX Sylvie | C104: THOMINIAUX | D104: Sylvie | E104: S | F104: 4B | G104: FR | H104: C03 | I104: 2764 | J104: 929 | K104: 1002 | L104: 833 | M104: C | N104: C
A105: 2182755 | B105: ZAGAR Dany | C105: ZAGAR | D105: Dany | E105: D | F105: 3A | G105: FR | H105: V07 | I105: 2764 | J105: 898 | K105: 1028 | L105: 838 | M105: V | N105: V
A106: 1172097 | B106: MACQUOY Jean-Luc | C106: MACQUOY | D106: Jean-Luc | E106: V | F106: 3B | G106: FR | H106: M23 | I106: 2763 | J106: 932 | K106: 1050 | L106: 781 | M106: M | N106: M
A107: 1330629 | B107: PLISSON Jean-Yves | C107: PLISSON | D107: Jean-Yves | E107: V | F107: 4A | G107: FR | H107: T05 | I107: 2762 | J107: 944 | K107: 999 | L107: 819 | M107: T | N107: T
A108: 2132323 | B108: GATTI Denis | C108: GATTI | D108: Denis | E108: V | F108: 3B | G108: FR | H108: O09 | I108: 2762 | J108: 861 | K108: 1058 | L108: 843 | M108: I | N108: O
A109: 2355983 | B109: MAGDA Jacqueline | C109: MAGDA | D109: Jacqueline | E109: D | F109: 3B | G109: FR | H109: G26 | I109: 2762 | J109: 920 | K109: 1062 | L109: 780 | M109: G | N109: G
A110: 2165134 | B110: SALETA Jacques | C110: SALETA | D110: Jacques | E110: V | F110: 3A | G110: FR | H110: G05 | I110: 2761 | J110: 890 | K110: 1011 | L110: 860 | M110: G | N110: G
A111: 2313776 | B111: CHASSAGNEUX Jean-Yves | C111: CHASSAGNEUX | D111: Jean-Yves | E111: V | F111: 3A | G111: FR | H111: S02 | I111: 2761 | J111: 936 | K111: 999 | L111: 826 | M111: S | N111: S
A112: 2541417 | B112: RICHARD Philippe | C112: RICHARD | D112: Philippe | E112: V | F112: 3A | G112: FR | H112: A10 | I112: 2761 | J112: 917 | K112: 1012 | L112: 832 | M112: R | N112: A
A113: 2131234 | B113: PELLAE Nicole | C113: PELLAE | D113: Nicole | E113: D | F113: 4A | G113: FR | H113: S21 | I113: 2759 | J113: 934 | K113: 991 | L113: 834 | M113: S | N113: S
A114: 1035878 | B114: LEGRAND Mireille | C114: LEGRAND | D114: Mireille | E114: V | F114: 3B | G114: FR | H114: C03 | I114: 2757 | J114: 971 | K114: 988 | L114: 798 | M114: C | N114: C
A115: 1087347 | B115: PETIT Fabrice | C115: PETIT | D115: Fabrice | E115: S | F115: 3A | G115: FR | H115: K03 | I115: 2757 | J115: 923 | K115: 1007 | L115: 827 | M115: K | N115: K
A116: 2276063 | B116: CLEUZIOU Olivier | C116: CLEUZIOU | D116: Olivier | E116: S | F116: 3A | G116: FR | H116: H14 | I116: 2757 | J116: 951 | K116: 972 | L116: 834 | M116: H | N116: H
A117: 1005363 | B117: PELLEGRINO Gilles | C117: PELLEGRINO | D117: Gilles | E117: S | F117: 4D | G117: FR | H117: Y21 | I117: 2756 | J117: 925 | K117: 981 | L117: 850 | M117: Y | N117: Y
A118: 1210305 | B118: BERNARD Thierry | C118: BERNARD | D118: Thierry | E118: S | F118: 4A | G118: FR | H118: S06 | I118: 2755 | J118: 935 | K118: 987 | L118: 833 | M118: S | N118: S
A119: 2354321 | B119: GAUDIN Eric | C119: GAUDIN | D119: Eric | E119: S | F119: 3A | G119: FR | H119: G32 | I119: 2755 | J119: 917 | K119: 1015 | L119: 823 | M119: G | N119: G
A120: 2275323 | B120: AUBOIN Jean-François | C120: AUBOIN | D120: Jean-François | E120: V | F120: 4D | G120: FR | H120: H10 | I120: 2754 | J120: 932 | K120: 961 | L120: 861 | M120: H | N120: H
A121: 2348529 | B121: MULLER Jean-Pierre | C121: MULLER | D121: Jean-Pierre | E121: S | F121: 3A | G121: FR | H121: A04 | I121: 2754 | J121: 885 | K121: 1060 | L121: 809 | M121: A | N121: A
A122: 2628266 | B122: LASALLE Michelle | C122: LASALLE | D122: Michelle | E122: D | F122: 4A | G122: FR | H122: K32 | I122: 2754 | J122: 937 | K122: 975 | L122: 842 | M122: K | N122: K
A123: 1001773 | B123: MORAGLIA Christian | C123: MORAGLIA | D123: Christian | E123: S | F123: 4A | G123: FR | H123: Y21 | I123: 2753 | J123: 933 | K123: 989 | L123: 831 | M123: Y | N123: Y
A124: 1002141 | B124: SIBADE Pascale | C124: SIBADE | D124: Pascale | E124: S | F124: 3B | G124: FR | H124: Q24 | I124: 2753 | J124: 888 | K124: 1019 | L124: 846 | M124: Q | N124: Q
A125: 1021255 | B125: JOUBERT Denise | C125: JOUBERT | D125: Denise | E125: D | F125: 3A | G125: FR | H125: J35 | I125: 2753 | J125: 876 | K125: 1032 | L125: 845 | M125: J | N125: J
A126: 1141669 | B126: BEYLS Benoit | C126: BEYLS | D126: Benoit | E126: S | F126: 3A | G126: FR | H126: G12 | I126: 2752 | J126: 953 | K126: 973 | L126: 826 | M126: G | N126: G
A127: 2182259 | B127: BOISSIER Jocelyne | C127: BOISSIER | D127: Jocelyne | E127: D | F127: 3B | G127: FR | H127: N15 | I127: 2752 | J127: 916 | K127: 1005 | L127: 831 | M127: N | N127: N
A128: 1007086 | B128: UGUEN Guillaume | C128: UGUEN | D128: Guillaume | E128: E | F128: 4D | G128: FR | H128: DJ22 | I128: 2751 | J128: 969 | K128: 961 | L128: 821 | M128: D | N128: D
A129: 1007616 | B129: GEORGEL Patrick | C129: GEORGEL | D129: Patrick | E129: V | F129: 4B | G129: FR | H129: K09 | I129: 2751 | J129: 896 | K129: 1025 | L129: 830 | M129: K | N129: K
A130: 1010192 | B130: GRENIER Aloys | C130: GRENIER | D130: Aloys | E130: C | F130: 5A | G130: FR | H130: A03 | I130: 2751 | J130: 932 | K130: 1000 | L130: 819 | M130: A | N130: A
A131: 2240527 | B131: MERCHIER Gisèle | C131: MERCHIER | D131: Gisèle | E131: D | F131: 3A | G131: FR | H131: G12 | I131: 2751 | J131: 920 | K131: 1056 | L131: 775 | M131: G | N131: G
A132: 2027643 | B132: BOIRON Jacqueline | C132: BOIRON | D132: Jacqueline | E132: S | F132: 3B | G132: FR | H132: L37 | I132: 2750 | J132: 952 | K132: 980 | L132: 818 | M132: L | N132: L
A133: 2244725 | B133: LAUDILLAY Catherine | C133: LAUDILLAY | D133: Catherine | E133: V | F133: 3B | G133: FR | H133: P07 | I133: 2750 | J133: 897 | K133: 1031 | L133: 822 | M133: P | N133: P
A134: 1092028 | B134: CAMUS Gioconde | C134: CAMUS | D134: Gioconde | E134: D | F134: 4A | G134: FR | H134: V33 | I134: 2749 | J134: 899 | K134: 1012 | L134: 838 | M134: V | N134: V
A135: 1201485 | B135: LECOCQ Arlette | C135: LECOCQ | D135: Arlette | E135: V | F135: 4D | G135: FR | H135: G34 | I135: 2749 | J135: 852 | K135: 1090 | L135: 807 | M135: G | N135: G
A136: 2116387 | B136: FAVRELLE Renée | C136: FAVRELLE | D136: Renée | E136: R | F136: 3B | G136: FR | H136: O15 | I136: 2749 | J136: 933 | K136: 983 | L136: 833 | M136: O | N136: O
A137: 1026889 | B137: RIPONI Eric | C137: RIPONI | D137: Eric | E137: V | F137: 3B | G137: FR | H137: N06 | I137: 2748 | J137: 890 | K137: 1026 | L137: 832 | M137: N | N137: N
A138: 2083742 | B138: BALLANGER Arlette | C138: BALLANGER | D138: Arlette | E138: D | F138: 3A | G138: FR | H138: J18 | I138: 2748 | J138: 923 | K138: 1000 | L138: 825 | M138: J | N138: J
A139: 2612139 | B139: COMTE Christophe | C139: COMTE | D139: Christophe | E139: S | F139: 3A | G139: FR | H139: R01 | I139: 2747 | J139: 939 | K139: 967 | L139: 841 | M139: R | N139: R
A140: 1081575 | B140: WEBER Sylvie | C140: WEBER | D140: Sylvie | E140: D | F140: 3A | G140: FR | H140: L13 | I140: 2746 | J140: 933 | K140: 970 | L140: 843 | M140: L | N140: L
A141: 1014022 | B141: GIRARDO Elisabeth | C141: GIRARDO | D141: Elisabeth | E141: V | F141: 4A | G141: FR | H141: N34 | I141: 2745 | J141: 917 | K141: 1044 | L141: 784 | M141: N | N141: N
A142: 1085192 | B142: DELOT Lucienne | C142: DELOT | D142: Lucienne | E142: V | F142: 4A | G142: FR | H142: G15 | I142: 2745 | J142: 891 | K142: 1026 | L142: 828 | M142: G | N142: G
A143: 2383375 | B143: COBET Patrice | C143: COBET | D143: Patrice | E143: S | F143: 3A | G143: FR | H143: G05 | I143: 2745 | J143: 836 | K143: 1072 | L143: 837 | M143: G | N143: G
A144: 2577621 | B144: LEFORT Christiane | C144: LEFORT | D144: Christiane | E144: D | F144: 3A | G144: FR | H144: O16 | I144: 2745 | J144: 907 | K144: 1021 | L144: 817 | M144: O | N144: O
A145: 1010311 | B145: GASTAL Laurent | C145: GASTAL | D145: Laurent | E145: S | F145: 3B | G145: FR | H145: V11 | I145: 2744 | J145: 951 | K145: 968 | L145: 825 | M145: V | N145: V
A146: 1029932 | B146: FESTOC Pierrette | C146: FESTOC | D146: Pierrette | E146: V | F146: 4B | G146: FR | H146: S20 | I146: 2744 | J146: 896 | K146: 1026 | L146: 822 | M146: S | N146: S
A147: 2033031 | B147: SEGUIER Martine | C147: SEGUIER | D147: Martine | E147: S | F147: 3A | G147: FR | H147: I02 | I147: 2744 | J147: 905 | K147: 1036 | L147: 803 | M147: I | N147: I
A148: 2302385 | B148: MALLECOT Patricia | C148: MALLECOT | D148: Patricia | E148: V | F148: 4A | G148: FR | H148: D17 | I148: 2744 | J148: 927 | K148: 979 | L148: 838 | M148: D | N148: D
A149: 1014077 | B149: WINTZ Agnès | C149: WINTZ | D149: Agnès | E149: S | F149: 3B | G149: FR | H149: A09 | I149: 2743 | J149: 958 | K149: 955 | L149: 830 | M149: A | N149: A
A150: 1030929 | B150: GEUBEL Marie-Louise | C150: GEUBEL | D150: Marie-Louise | E150: D | F150: 3A | G150: FR | H150: I07 | I150: 2743 | J150: 931 | K150: 973 | L150: 839 | M150: I | N150: I
A151: 1117341 | B151: BONNET Mélanie | C151: BONNET | D151: Mélanie | E151: S | F151: 4A | G151: FR | H151: B23 | I151: 2743 | J151: 942 | K151: 960 | L151: 841 | M151: B | N151: B
A152: 1182557 | B152: NAVARON Patricia | C152: NAVARON | D152: Patricia | E152: S | F152: 3B | G152: FR | H152: O23 | I152: 2743 | J152: 903 | K152: 997 | L152: 843 | M152: O | N152: O
A153: 2336556 | B153: JOFFRE Cécile | C153: JOFFRE | D153: Cécile | E153: D | F153: 3A | G153: FR | H153: H05 | I153: 2743 | J153: 878 | K153: 1017 | L153: 848 | M153: H | N153: H
A154: 1690605 | B154: BELLANGEON Jean-Luc | C154: BELLANGEON | D154: Jean-Luc | E154: D | F154: 3A | G154: FR | H154: L19 | I154: 2742 | J154: 878 | K154: 1012 | L154: 852 | M154: L | N154: L
A155: 2174719 | B155: PAYET Gilles | C155: PAYET | D155: Gilles | E155: S | F155: 4D | G155: FR | H155: V11 | I155: 2742 | J155: 912 | K155: 985 | L155: 845 | M155: V | N155: V
A156: 1004145 | B156: GRÜN Isabelle | C156: GRÜN | D156: Isabelle | E156: S | F156: 4A | G156: FR | H156: V10 | I156: 2741 | J156: 903 | K156: 1010 | L156: 828 | M156: V | N156: V
A157: 1013184 | B157: HILTGUN Jean-Michel | C157: HILTGUN | D157: Jean-Michel | E157: S | F157: 4B | G157: FR | H157: L10 | I157: 2741 | J157: 927 | K157: 990 | L157: 824 | M157: L | N157: L
A158: 1119899 | B158: LEGROS Alain | C158: LEGROS | D158: Alain | E158: D | F158: 3A | G158: FR | H158: T22 | I158: 2740 | J158: 922 | K158: 1013 | L158: 805 | M158: T | N158: T
A159: 1771018 | B159: GUILCHER Cathy | C159: GUILCHER | D159: Cathy | E159: V | F159: 4A | G159: FR | H159: V24 | I159: 2740 | J159: 930 | K159: 986 | L159: 824 | M159: V | N159: V
A160: 2037315 | B160: GAUMONT André | C160: GAUMONT | D160: André | E160: D | F160: 3B | G160: FR | H160: C10 | I160: 2740 | J160: 911 | K160: 989 | L160: 840 | M160: C | N160: C
A161: 1005359 | B161: BADOIL Joël | C161: BADOIL | D161: Joël | E161: S | F161: 6D | G161: FR | H161: U00 | I161: 2739 | J161: 918 | K161: 983 | L161: 838 | M161: U | N161: U
A162: 2259739 | B162: PERNAK Simon | C162: PERNAK | D162: Simon | E162: S | F162: 3B | G162: FR | H162: T12 | I162: 2739 | J162: 914 | K162: 982 | L162: 843 | M162: T | N162: T
A163: 1176488 | B163: JARRY Yvette | C163: JARRY | D163: Yvette | E163: V | F163: 4A | G163: FR | H163: J32 | I163: 2738 | J163: 957 | K163: 941 | L163: 840 | M163: J | N163: J
A164: 2323865 | B164: LEFEVRE Maryse | C164: LEFEVRE | D164: Maryse | E164: R | F164: 4A | G164: FR | H164: V33 | I164: 2738 | J164: 916 | K164: 1020 | L164: 802 | M164: V | N164: V
A165: 2585573 | B165: RETORY Roseline | C165: RETORY | D165: Roseline | E165: V | F165: 3A | G165: FR | H165: U24 | I165: 2738 | J165: 871 | K165: 1048 | L165: 819 | M165: U | N165: U
A166: 1013392 | B166: MIGNOT Rudy | C166: MIGNOT | D166: Rudy | E166: S | F166: 4A | G166: FR | H166: H14 | I166: 2737 | J166: 938 | K166: 985 | L166: 814 | M166: H | N166: H
A167: 1110585 | B167: TSAKRIOS Ange | C167: TSAKRIOS | D167: Ange | E167: S | F167: 3A | G167: FR | H167: O16 | I167: 2737 | J167: 971 | K167: 943 | L167: 823 | M167: O | N167: O
A168: 1128719 | B168: VIANO Christine | C168: VIANO | D168: Christine | E168: V | F168: 4A | G168: FR | H168: N20 | I168: 2737 | J168: 862 | K168: 1023 | L168: 852 | M168: N | N168: N
A169: 2650971 | B169: PINERI Michelle | C169: PINERI | D169: Michelle | E169: V | F169: 3A | G169: FR | H169: F17 | I169: 2737 | J169: 924 | K169: 969 | L169: 844 | M169: F | N169: F
A170: 1005362 | B170: SLABODSKY Gérard | C170: SLABODSKY | D170: Gérard | E170: D | F170: 3A | G170: FR | H170: H05 | I170: 2736 | J170: 934 | K170: 1000 | L170: 802 | M170: H | N170: H
A171: 1450288 | B171: BELLEVILLE Pierre | C171: BELLEVILLE | D171: Pierre | E171: D | F171: 3B | G171: FR | H171: P04 | I171: 2736 | J171: 943 | K171: 1006 | L171: 787 | M171: P | N171: P
A172: 1057209 | B172: BUDA Brigitte | C172: BUDA | D172: Brigitte | E172: V | F172: 4A | G172: FR | H172: R03 | I172: 2735 | J172: 935 | K172: 960 | L172: 840 | M172: R | N172: R
A173: 1510725 | B173: VALLIET Pascal | C173: VALLIET | D173: Pascal | E173: V | F173: 3A | G173: FR | H173: E03 | I173: 2735 | J173: 900 | K173: 1038 | L173: 797 | M173: E | N173: E
A174: 2103167 | B174: LEDE Nathalie | C174: LEDE | D174: Nathalie | E174: S | F174: 4A | G174: FR | H174: M11 | I174: 2735 | J174: 929 | K174: 985 | L174: 821 | M174: M | N174: M
A175: 2165528 | B175: DERACHE Pascal | C175: DERACHE | D175: Pascal | E175: V | F175: 3A | G175: FR | H175: G27 | I175: 2735 | J175: 918 | K175: 1053 | L175: 764 | M175: G | N175: G
A176: 1001823 | B176: FAVIER Annie | C176: FAVIER | D176: Annie | E176: V | F176: 4C | G176: FR | H176: F33 | I176: 2734 | J176: 938 | K176: 961 | L176: 835 | M176: F | N176: F
A177: 1007050 | B177: LERETRE Philippe | C177: LERETRE | D177: Philippe | E177: S | F177: 3B | G177: FR | H177: O16 | I177: 2734 | J177: 931 | K177: 963 | L177: 840 | M177: O | N177: O
A178: 1017043 | B178: LE MOAL Ginette | C178: LE MOAL | D178: Ginette | E178: D | F178: 4A | G178: FR | H178: E07 | I178: 2734 | J178: 915 | K178: 1013 | L178: 806 | M178: E | N178: E
A179: 1024803 | B179: LE ROUGE Christian | C179: LE ROUGE | D179: Christian | E179: D | F179: 3B | G179: FR | H179: J42 | I179: 2734 | J179: 912 | K179: 1029 | L179: 793 | M179: D | N179: J
A180: 1330721 | B180: LAUPENIE Thierry | C180: LAUPENIE | D180: Thierry | E180: V | F180: 3B | G180: FR | H180: T03 | I180: 2732 | J180: 820 | K180: 1068 | L180: 844 | M180: T | N180: T
A181: 2347699 | B181: PREFAUT Elisabeth | C181: PREFAUT | D181: Elisabeth | E181: S | F181: 3B | G181: FR | H181: I04 | I181: 2732 | J181: 915 | K181: 987 | L181: 830 | M181: I | N181: I
A182: 1012671 | B182: DELHOME Raphaël | C182: DELHOME | D182: Raphaël | E182: S | F182: 3A | G182: FR | H182: M18 | I182: 2731 | J182: 877 | K182: 990 | L182: 864 | M182: M | N182: M
A183: 1026891 | B183: COCHET Pierre-Charles | C183: COCHET | D183: Pierre-Charles | E183: V | F183: 3A | G183: FR | H183: Q37 | I183: 2731 | J183: 927 | K183: 987 | L183: 817 | M183: Q | N183: Q
A184: 2009114 | B184: MADELINE Joëlle | C184: MADELINE | D184: Joëlle | E184: V | F184: 3A | G184: FR | H184: D14 | I184: 2731 | J184: 920 | K184: 988 | L184: 823 | M184: D | N184: D
A185: 2182812 | B185: ANTHOINE Serge | C185: ANTHOINE | D185: Serge | E185: V | F185: 3A | G185: FR | H185: Y03 | I185: 2731 | J185: 922 | K185: 1056 | L185: 753 | M185: Y | N185: Y
A186: 2332292 | B186: TREMEAU Martine | C186: TREMEAU | D186: Martine | E186: V | F186: 3B | G186: FR | H186: W27 | I186: 2731 | J186: 939 | K186: 982 | L186: 810 | M186: W | N186: W
A187: 1005839 | B187: THIEBAUT Martine | C187: THIEBAUT | D187: Martine | E187: V | F187: 4B | G187: FR | H187: K06 | I187: 2730 | J187: 916 | K187: 977 | L187: 837 | M187: K | N187: K
A188: 1064261 | B188: LE Cécile | C188: LE | D188: Cécile | E188: S | F188: 5A | G188: FR | H188: H03 | I188: 2730 | J188: 928 | K188: 974 | L188: 828 | M188: H | N188: H
A189: 2101338 | B189: CARQUILLE Eveline | C189: CARQUILLE | D189: Eveline | E189: V | F189: 4A | G189: FR | H189: M42 | I189: 2730 | J189: 893 | K189: 1009 | L189: 828 | M189: M | N189: M
A190: 2118778 | B190: LEPIN Jacqueline | C190: LEPIN | D190: Jacqueline | E190: V | F190: 3A | G190: FR | H190: R05 | I190: 2730 | J190: 942 | K190: 937 | L190: 851 | M190: N | N190: R
A191: 2667212 | B191: MATHIEN Patrick | C191: MATHIEN | D191: Patrick | E191: V | F191: 4A | G191: FR | H191: V33 | I191: 2730 | J191: 913 | K191: 983 | L191: 834 | M191: V | N191: V
A192: 1144699 | B192: STOME Patrick | C192: STOME | D192: Patrick | E192: V | F192: 4A | G192: FR | H192: T05 | I192: 2729 | J192: 934 | K192: 977 | L192: 818 | M192: T | N192: T
A193: 1223817 | B193: DAYDE Monique | C193: DAYDE | D193: Monique | E193: V | F193: 4B | G193: FR | H193: I01 | I193: 2729 | J193: 915 | K193: 992 | L193: 822 | M193: I | N193: I
A194: 2293449 | B194: MOUTON Olivier | C194: MOUTON | D194: Olivier | E194: S | F194: 3B | G194: FR | H194: U17 | I194: 2729 | J194: 935 | K194: 985 | L194: 809 | M194: U | N194: U
A195: 2335388 | B195: CHABAUD Michel | C195: CHABAUD | D195: Michel | E195: V | F195: 3A | G195: FR | H195: S23 | I195: 2729 | J195: 906 | K195: 1008 | L195: 815 | M195: S | N195: S
A196: 1004954 | B196: CADALEN Jean-Paul | C196: CADALEN | D196: Jean-Paul | E196: V | F196: 4A | G196: FR | H196: H09 | I196: 2728 | J196: 898 | K196: 1013 | L196: 817 | M196: H | N196: H
A197: 1005384 | B197: DECHAMP Laurence | C197: DECHAMP | D197: Laurence | E197: S | F197: 4A | G197: FR | H197: N34 | I197: 2726 | J197: 935 | K197: 957 | L197: 834 | M197: N | N197: N
A198: 1017316 | B198: AMIOT Michel | C198: AMIOT | D198: Michel | E198: S | F198: 4A | G198: FR | H198: C03 | I198: 2726 | J198: 944 | K198: 964 | L198: 818 | M198: C | N198: C
A199: 2140515 | B199: GRIMAL Manuella | C199: GRIMAL | D199: Manuella | E199: S | F199: 3A | G199: FR | H199: P01 | I199: 2726 | J199: 937 | K199: 969 | L199: 820 | M199: P | N199: P
A200: 2393502 | B200: CHAUVREAU Claude | C200: CHAUVREAU | D200: Claude | E200: V | F200: 4A | G200: FR | H200: P05 | I200: 2726 | J200: 895 | K200: 1019 | L200: 812 | M200: P | N200: P
... 1581 more rows
